Workbook

Sheet Races, Positions & Points
A1: Winter 2016 | C1: BASS Points Races | L1: DATE | M1: 2016-01-02 | P1: 2016-01-02 | S1: 2016-01-03 | V1: 2016-01-03 | Y1: 2016-01-04 | AB1: 2016-01-05 | AE1: 2016-01-06 | AH1: 2016-01-07 | AK1: 2016-01-08 | AN1: 2016-01-09 | AQ1: 2016-01-11 | AT1: 2016-01-12 | AW1: 2016-01-13 | AZ1: 2016-01-14 | BC1: 2016-01-19 | BF1: 2016-01-20 | BI1: 2016-01-21 | BM1: 2016-01-22 | BQ1: 2016-01-23 | BT1: 2016-02-14 | BX1: 2016-02-14 | CA1: 2016-02-15 | CD1: 2016-02-15 | CG1: 2016-02-16 | CJ1: 2016-02-16 | CM1: 2016-02-17 | CP1: 2016-02-17 | CS1: 2016-02-18 | CV1: 2016-02-19 | CZ1: 2016-03-07 | DD1: 2016-03-07 | DG1: 2016-03-08 | DK1: 2016-03-08 | DN1: 2016-03-10 | DR1: 2016-03-11 | DV1: 2016-03-13 | DY1: 2016-03-28 | EB1: 2016-03-29 | EF1: 2016-03-30 | EI1: 2016-03-31 | EM1: 2016-04-01
L2: EVENT | M2: BSA SL U10/12 | P2: BSA SL U14/16 | S2: Anglo-Scot SL U10/12 | V2: Anglo-Scot SL U12/14 | Y2: Anglo-Scot GS | AB2: BSA GS | AE2: Scot FIS SL | AH2: Scot FIS SL | AK2: Scot FIS GS | AN2: Scot FIS GS | AQ2: Amb Champ GS | AT2: Amb Cup GS | AW2: Amb Champ SL | AZ2: Amb Cup SL | BC2: Welsh FIS GS | BF2: Welsh FIS SL | BI2: Welsh Ch. SL | BM2: Welsh Ch. GS | BQ2: Gordon Op. GS | BT2: Eng Ch GS U16/14 | BX2: Eng Ch FIS SL1 | CA2: Eng Ch GS U12/10 | CD2: Eng Ch FIS SL2 | CG2: Eng Ch SG1 | CJ2: Eng Ch FIS GS1 | CM2: Eng Ch SG2 | CP2: Eng Ch FIS GS2 | CS2: Eng Ch Combi U12/10 | CV2: Eng Ch SL U16/14 | CZ2: Interschools U14 SL | DD2: In'sch's U10/U12/U16+ GS | DG2: In'sch's U14 GS | DK2: In'sch's U10/12/U16+ SL | DN2: Aiglon GS | DR2: Aiglon SL/Combi | DV2: Scot. Bains Bucket | DY2: British Champs Kombi | EB2: British Champs GS | EF2: Br Champs SG | EI2: British Champs GS | EM2: British Champs SL
L3: VENUE | M3: Chamonix Planards, FR | P3: Les Houches, FR | S3: Chamonix Planards, FR | V3: Les Houches, FR | Y3: Les Houches, FR | AB3: Les Houches, FR | AE3: Reiteralm, AT | AH3: Reiteralm, AT | AK3: Reiteralm, AT | AN3: Reiteralm, AT | AQ3: Leogang, AT | AT3: Leogang, AT | AW3: Leogang, AT | AZ3: Leogang, AT | BC3: Champery, CH | BF3: Champery, CH | BI3: Champery, CH | BM3: Champery, CH | BQ3: Lecht, SCO | BT3: Bormio, IT | BX3: Bormio, IT | CA3: Bormio, IT | CD3: Bormio, IT | CG3: Bormio, IT | CJ3: Bormio, IT | CM3: Bormio, IT | CP3: Bormio, IT | CS3: Bormio, IT | CV3: Bormio, IT | CZ3: Les Houches, FR | DD3: Les Houches, FR | DG3: Les Houches, FR | DK3: Les Houches, FR | DN3: Villars, CH | DR3: Les Houches, FR | DV3: Nevis, SCO | DY3: Tignes, FR | EB3: Tignes, FR | EF3: Tignes, FR | EI3: Tignes, FR | EM3: Tignes, FR
B4: M/F | D4: AGE GROUP | E4: REG | F4: PAST | G4: SL POINTS | I4: GS POINTS | K4: SG POINTS | M4: Overall | N4: Age | O4: Event Points | P4: Overall | Q4: Age | R4: Event Points | S4: Overall | T4: Age | U4: Event Points | V4: Overall | W4: Age | X4: Event Points | Y4: Overall | Z4: Age | AA4: Event Points | AB4: Overall | AC4: Age | AD4: Event Points | AE4: Overall | AF4: Age | AG4: Event Points | AH4: Overall | AI4: Age | AJ4: Event Points | AK4: Overall | AL4: Age | AM4: Event Points | AN4: Overall | AO4: Age | AP4: Event Points | AQ4: Overall | AR4: Age | AS4: Event Points | AT4: Overall | AU4: Age | AV4: Event Points | AW4: Overall | AX4: Age | AY4: Event Points | AZ4: Overall | BA4: Age | BB4: Event Points | BC4: Overall | BD4: Age | BE4: Event Points | BF4: Overall | BG4: Age | BH4: Event Points | BI4: Overall | BJ4: Age | BK4: Event Points | BL4: Event Points (U14) | BM4: Overall | BN4: Age | BO4: Event Points | BP4: Event Points (U14) | BQ4: Overall | BR4: Age | BS4: Event Points | BT4: Overall | BU4: Age | BV4: Event Points | BW4: Event Points (U14) | BX4: Overall | BY4: Age | BZ4: Event Points | CA4: Overall | CB4: Age | CC4: Event Points | CD4: Overall | CE4: Age | CF4: Event Points | CG4: Overall | CH4: Age | CI4: Event Points | CJ4: Overall | CK4: Age | CL4: Event Points | CM4: Overall | CN4: Age | CO4: Event Points | CP4: Overall | CQ4: Age | CR4: Event Points | CS4: Overall | CT4: Age | CU4: Event Points | CV4: Overall | CW4: Age | CX4: Event Points | CY4: Event Points (U14) | CZ4: Overall | DA4: Age | DB4: Event Points | DC4: Event Points (U14) | DD4: Overall | DE4: Age | DF4: Event Points | DG4: Overall | DH4: Age | DI4: Event Points | DJ4: Event Points (U14) | DK4: Overall | DL4: Age | DM4: Event Points | DN4: Overall | DO4: Age | DP4: Event Points | DQ4: Event Points (U14) | DR4: Overall | DS4: Age | DT4: Event Points | DU4: Event Points (U14) | DV4: Overall | DW4: Age | DX4: Event Points | DY4: Overall | DZ4: Age | EA4: Event Points | EB4: Overall | EC4: Age | ED4: Event Points | EE4: Event Points (U14) | EF4: Overall | EG4: Age | EH4: Event Points | EI4: Overall | EJ4: Age | EK4: Event Points | EL4: Event Points (U14) | EM4: Overall | EN4: Age | EO4: Event Points | EP4: Event Points (U14)
C5: YEAR | E5: NUM | G5: 2016.1 | H5: Latest | I5: 2016.1 | J5: Latest | K5: 2016.1 | L5: Latest
A6: GIRLS
A7: Emilia Orzel | B7: F | C7: 2006 | D7: U10 | E7: 22136 | CA7: 29 | CB7: 9 | CC7: - | CS7: 22 | CT7: 9 | CU7: - | DV7: 11 | DW7: 3 | DX7: - | EB7: 34 | EC7: 14 | ED7: - | EF7: 30 | EG7: 11 | EH7: (combi)
A8: Amber Fennell | B8: F | C8: 2007 | D8: U10 | E8: 22729 | CA8: 24 | CB8: 7 | CC8: - | CS8: 21 | CT8: 8 | CU8: -
A9: Erin Jennings | B9: F | C9: 2006 | D9: U10 | E9: nr | CA9: 29 | CB9: 9 | CC9: - | DN9: 38 | DP9: - | DR9: 29 | DS9: 14 | DT9: -
A10: BOYS
A11: Charlie Deem | B11: M | C11: 2005 | D11: U12 | E11: 21827
A12: Jack Upton | B12: M | C12: 2004 | D12: U12 | E12: 21052 | AQ12: 2 | AT12: 2 | AZ12: 2 | BI12: 1 | BM12: 1 | BN12: 1 | CA12: 2 | CB12: 2 | CC12: - | CS12: - | CT12: - | CU12: dnf | DE12: 1 | DF12: - | DL12: 2 | DM12: - | EB12: 6 | EC12: 6 | ED12: - | EF12: 4 | EG12: 4 | EH12: (combi)
A13: Kieran Woolley | B13: M | C13: 2005 | D13: U12 | E13: 21837 | AQ13: 4 | AT13: 6 | AW13: 4 | AZ13: 6
A14: Toby Weeks | B14: M | C14: 2007 | D14: U10 | E14: 45064 | M14: 24 | S14: 22 | Y14: 36 | Z14: 10
A15: Alex Horne | B15: M | D15: U12 | E15: nr | DE15: 60 | DF15: - | DL15: - | DM15: dns | DN15: 47 | DP15: - | DR15: 39 | DS15: 25 | DT15: -
A16: John Jennings | B16: M | D16: U12 | E16: nr | CA16: 29 | CB16: 9 | CC16: - | DN16: 49 | DP16: - | DR16: 40 | DS16: 26 | DT16: -
A17: John Gallagher | B17: M | D17: U10 | E17: nr | DE17: 47 | DF17: - | DL17: 48 | DM17: - | DN17: 50 | DP17: - | DR17: 41 | DS17: 15 | DT17: -
A18: Adam Orzel | B18: M | C18: 2008 | D18: U8 | E18: 23186 | DV18: 22 | DW18: 2 | DX18: -
A19: FEMALES
A20: Maxine Hancock | B20: F | C20: 1997 | D20: U21 | E20: F225688 | G20: 316.37 | H20: 264.98 | J20: 260.64 | AE20: 50 | AG20: 503.17 | AH20: 38 | AJ20: 430.23 | AK20: 71 | AM20: 283.73 | AN20: dnf | AP20: - | BC20: 35 | BE20: 268.39 | BF20: 24 | BH20: 242.88 | BX20: 19 | BY20: - | BZ20: 300.87 | CD20: 21 | CE20: - | CF20: 281.07 | CJ20: 52 | CK20: - | CL20: 263.4 | CP20: 47 | CQ20: - | CR20: 251.87
A21: Ellie Jackson | B21: F | C21: 2002 | D21: U14 | E21: 21024 | H21: 327.05 | J21: 319.83 | BI21: 5 | BK21: 340.23 | BL21: 313.87 | BM21: 8 | BO21: 323.58 | BP21: 316.08
A22: Ella Giles | B22: F | C22: 2003 | D22: U14 | E22: 22176 | H22: 393.46 | J22: 372.52 | L22: 532.44 | BT22: - | BU22: 35 | BV22: 478.91 | BW22: 478.37 | CG22: 68 | CH22: - | CI22: 484.04 | CM22: - | CN22: - | CO22: dns | CV22: - | CW22: - | CX22: 461.37 | CY22: dnf | DA22: 16 | DB22: =208.88+212.16 -> 421.04 | DC22: =147.35+218.53 -> 365.88 | DH22: 20 | DI22: =190.34+189.4 -> 379.74 | DJ22: =176.76+188.53 -> 365.29 | DO22: - | DP22: dns | DR22: - | DS22: - | DT22: dsq
A23: MALES
A24: Oliver Weeks | B24: M | C24: 2001 | D24: U16 | E24: 19051 | G24: 172 | H24: 172 | I24: 182.77 | J24: 182.77 | K24: 239.1 | L24: 228.55 | P24: dnf | R24: - | V24: 5 | X24: =30.85+150.9 -> 181.75 | Y24: 4 | AA24: =36.5+147.55 -> 184.05 | AB24: 10 | AD24: =59.87+150.15 -> 210.02 | BI24: 8 | BK24: 195.95 | BM24: dnf | BO24: - | CG24: 11 | CH24: 10 | CI24: 207.77 | CM24: - | CN24: - | CO24: dns | CV24: - | CW24: 6 | CX24: 176.37 | DZ24: 15 | EA24: ns | EB24: - | EC24: - | ED24: dnf | EF24: 18 | EG24: 15 | EH24: 208.99 | EI24: - | EJ24: 7 | EK24: 186.88 | EM24: - | EN24: 11 | EO24: 183.4
A25: Thomas Upton | B25: M | C25: 2001 | D25: U16 | E25: 21051 | H25: 228.91 | J25: 320.05 | L25: 299.82 | BT25: - | BU25: 29 | BV25: 290.95 | CG25: 54 | CH25: - | CI25: 317.54 | CM25: 50 | CN25: - | CO25: 282.1 | CV25: - | CW25: 9 | CX25: 208.1 | DZ25: 26 | EA25: ns | EB25: - | EC25: - | ED25: dnf | EF25: 50 | EH25: 304.86 | EI25: - | EJ25: 17 | EK25: 273.05 | EM25: - | EN25: 25 | EO25: 263.79
A26: Thomas Lawrence | B26: M | C26: 1999 | D26: U18 | E26: 19941 | G26: 297.66 | H26: 297.66 | I26: 313.25 | J26: 313.25 | DE26: 23 | DF26: =197.51+133.53 -> 331.04 | DN26: 16 | DO26: 11 | DP26: =160.71+169.1 -> 329.81 | DS26: - | DT26: dnf
A27: Thomas Jinks | B27: M | C27: 2001 | D27: U16 | E27: 22484 | G27: 430.81 | H27: 325.21 | I27: 381.35 | J27: 318.8 | K27: 455.98 | L27: 452.23 | P27: 41 | R27: =182.6+154.19 -> 336.79 | V27: 24 | X27: =219.24+150.9 -> 370.14 | Y27: 30 | AA27: =192.39+147.55 -> 339.94 | AB27: 29 | AD27: =182.83+150.15 -> 332.98 | BT27: - | BU27: 40 | BV27: 441.78 | CG27: 94 | CH27: - | CI27: 466.99 | CM27: 97 | CN27: - | CO27: 437.46 | CV27: - | CW27: - | CX27: dnf | DE27: 32 | DF27: =173.24+153.51 -> 326.75 | DO27: 14 | DP27: =145.02+165.83 -> 310.85 | DS27: 5 | DT27: =173.64+146.84 -> 320.48 | DZ27: 35 | EA27: ns | EC27: 26 | ED27: 426.49 | EF27: 80 | EH27: 436.74 | EI27: - | EJ27: 32 | EK27: 412.01 | EM27: - | EN27: 30 | EO27: 359.78
A28: Daniel Giles | B28: M | C28: 2003 | D28: U14 | E28: 22203 | DA28: 31 | DB28: =219.25+221.36 -> 440.61 | DC28: =272.85+188.94 -> 461.79 | DH28: 49 | DI28: =351.04+206.09 -> 557.13 | DJ28: =341+211.81 -> 552.81 | DO28: 14 | DP28: =175.27+222.87 -> 398.14 | DQ28: =180.25+220.43 -> 400.68 | DS28: 10 | DT28: =207.68+207.64 -> 415.32 | DU28: =230.23+220.8 -> 451.03
A29: Alex Johnson | B29: M | C29: 1999 | D29: U18 | E29: nr | DE29: 24 | DF29: =198.54+133.53 -> 332.07 | DO29: - | DP29: dnf | DS29: 11 | DT29: =322.43+139.78 -> 462.21
A30: George Daly | B30: M | C30: 2002 | D30: U14 | E30: nr | DA30: - | DB30: =232.52+221.36 -> 453.88 | DC30: dnf | DH30: 40 | DI30: =289.21+206.09 -> 495.3 | DJ30: =275.71+211.81 -> 487.52 | DO30: 15 | DP30: ns | DQ30: ns | DS30: - | DT30: dnf | DU30: dsq
A31: James Shakeshaft | B31: M | C31: 2003 | D31: U14 | E31: nr | DA31: - | DB31: =241.33+221.36 -> 462.69 | DC31: dsq | DH31: 48 | DI31: =317.35+206.09 -> 523.44 | DJ31: =374.72+211.81 -> 586.53
A33: Figures in blue - lowest points this year.

Sheet Points Calculation (hidden)
A1: Race | B1: ='Races, Positions & Points'!M2 -> BSA SL U10/12 | C1: ='Races, Positions & Points'!P2 -> BSA SL U14/16 | D1: ='Races, Positions & Points'!#REF! ->  | E1: ='Races, Positions & Points'!S2 -> Anglo-Scot SL U10/12 | F1: ='Races, Positions & Points'!S2 -> Anglo-Scot SL U10/12 | G1: ='Races, Positions & Points'!W2 -> 0 | H1: ='Races, Positions & Points'!W2 -> 0 | I1: ='Races, Positions & Points'!Z2 -> 0 | J1: ='Races, Positions & Points'!#REF! ->  | K1: ='Races, Positions & Points'!AB2 -> BSA GS | L1: ='Races, Positions & Points'!#REF! ->  | M1: ='Races, Positions & Points'!#REF! ->  | N1: ='Races, Positions & Points'!AS2 -> 0 | O1: ='Races, Positions & Points'!AV2 -> 0 | P1: ='Races, Positions & Points'!AY2 -> 0 | Q1: ='Races, Positions & Points'!BB2 -> 0 | R1: ='Races, Positions & Points'!BK2 -> 0 | S1: ='Races, Positions & Points'!BO2 -> 0 | T1: ='Races, Positions & Points'!#REF! ->  | U1: ='Races, Positions & Points'!BT2 -> Eng Ch GS U16/14 | V1: ='Races, Positions & Points'!CA2 -> Eng Ch GS U12/10 | W1: ='Races, Positions & Points'!CG2 -> Eng Ch SG1 | X1: ='Races, Positions & Points'!CG2 -> Eng Ch SG1 | Y1: ='Races, Positions & Points'!CM2 -> Eng Ch SG2 | Z1: ='Races, Positions & Points'!CV2 -> Eng Ch SL U16/14 | AA1: ='Races, Positions & Points'!CS2 -> Eng Ch Combi U12/10 | AB1: ='Races, Positions & Points'!DA2 -> 0 | AC1: ='Races, Positions & Points'!DD2 -> In'sch's U10/U12/U16+ GS | AD1: ='Races, Positions & Points'!DM2 -> 0 | AE1: ='Races, Positions & Points'!DG2 -> In'sch's U14 GS | AF1: ='Races, Positions & Points'!DQ2 -> 0 | AG1: ='Races, Positions & Points'!#REF! ->  | AH1: ='Races, Positions & Points'!DT2 -> 0 | AI1: ='Races, Positions & Points'!#REF! ->  | AJ1: ='Races, Positions & Points'!DV2 -> Scot. Bains Bucket | AK1: ='Races, Positions & Points'!DY2 -> British Champs Kombi | AL1: ='Races, Positions & Points'!EB2 -> British Champs GS | AM1: ='Races, Positions & Points'!EF2 -> Br Champs SG | AN1: ='Races, Positions & Points'!#REF! ->  | AO1: ='Races, Positions & Points'!EI2 -> British Champs GS | AP1: ='Races, Positions & Points'!EM2 -> British Champs SL | AQ1: ='Races, Positions & Points'!EP2 -> 0 | AR1: ='Races, Positions & Points'!ES2 -> 0 | AS1: ='Races, Positions & Points'!EV2 -> 0 | AT1: ='Races, Positions & Points'!#REF! ->  | AU1: ='Races, Positions & Points'!#REF! ->  | AV1: ='Races, Positions & Points'!#REF! ->  | AW1: ='Races, Positions & Points'!#REF! ->  | AX1: ='Races, Positions & Points'!#REF! ->  | AY1: ='Races, Positions & Points'!#REF! ->  | BA1: CN/10pt In | BB1: CN/10 pt Out | BC1: GBR In | BD1: GBR Out | BE1: Ch In | BF1: Ch Out | BH1: Registration Number | BI1: Start of Year Points | BJ1: Best Race Points | BK1: Second Best Race Points | BL1: Points Calc Based on Best Two Races | BM1: Points Based on Best Result and start of year | BN1: Points Calc Based on Best Race Plus 20% Loading | BO1: Points | BP1: End of Season Maximum | BQ1: Projected End of Season Points | BS1: Best Race Points | BT1: Second Best Race Points | BU1: Points Calc Based on Best Two Races | BV1: Points Based on Best Result and start of year | BW1: Points Calc Based on Best Race Plus 20% Loading | BX1: Points | BY1: End of Season Maximum | BZ1: Projected End of Season Points | CB1: min Castleford | CC1: min CF | CD1: min Braehead | CE1: min Hemel | CF1: min Pontypool | CG1: min glos | CH1: min Pendle | CI1: min FirPark | CJ1: min Hillend | CK1: min Sunderland | CL1: min Bromley | CM1: min Norfolk | CN1: min Ipswich | CO1: min welwyn | CP1: min Southampton | CQ1: min Dublin | CS1: Best Race Points (0/5pt races) | CT1: Second Best Race Points (0/5pt races) | CU1: Points Calc Based on Best Two Races (0/5pt races) | CV1: Points Calc Based on Best Race Plus 20% Loading (0/5pt races) | CX1: Best Race Points (0/5pt races) | CY1: Second Best Race Points (0/5pt races) | CZ1: Points Calc Based on Best Two Races (0/5pt races) | DA1: Points Calc Based on Best Race Plus 20% Loading (0/5pt races) | DC1: min Castleford (0/5pt races) | DD1: min CF (0/5pt races) | DE1: min Braehead (0/5pt races) | DF1: min Pontypool (0/5pt races) | DG1: min glos (0/5pt races) | DH1: min Pendle (0/5pt races) | DI1: min Hillend (0/5pt races) | DJ1: min Sunderland (0/5pt races) | DK1: min Norfolk (0/5pt races) | DL1: min Dublin (0/5pt races)
A2: Venue | B2: ='Races, Positions & Points'!M3 -> Chamonix Planards, FR | C2: ='Races, Positions & Points'!P3 -> Les Houches, FR | D2: ='Races, Positions & Points'!#REF! ->  | E2: ='Races, Positions & Points'!S3 -> Chamonix Planards, FR | F2: ='Races, Positions & Points'!S3 -> Chamonix Planards, FR | G2: ='Races, Positions & Points'!W3 -> 0 | H2: ='Races, Positions & Points'!W3 -> 0 | I2: ='Races, Positions & Points'!Z3 -> 0 | J2: ='Races, Positions & Points'!#REF! ->  | K2: ='Races, Positions & Points'!AB3 -> Les Houches, FR | L2: ='Races, Positions & Points'!#REF! ->  | M2: ='Races, Positions & Points'!#REF! ->  | N2: ='Races, Positions & Points'!AS3 -> 0 | O2: ='Races, Positions & Points'!AV3 -> 0 | P2: ='Races, Positions & Points'!AY3 -> 0 | Q2: ='Races, Positions & Points'!BB3 -> 0 | R2: ='Races, Positions & Points'!BK3 -> 0 | S2: ='Races, Positions & Points'!BO3 -> 0 | T2: ='Races, Positions & Points'!#REF! ->  | U2: ='Races, Positions & Points'!BT3 -> Bormio, IT | V2: ='Races, Positions & Points'!CA3 -> Bormio, IT | W2: ='Races, Positions & Points'!CG3 -> Bormio, IT | X2: ='Races, Positions & Points'!CG3 -> Bormio, IT | Y2: ='Races, Positions & Points'!CM3 -> Bormio, IT | Z2: ='Races, Positions & Points'!CV3 -> Bormio, IT | AA2: ='Races, Positions & Points'!CS3 -> Bormio, IT | AB2: ='Races, Positions & Points'!DA3 -> 0 | AC2: ='Races, Positions & Points'!DD3 -> Les Houches, FR | AD2: ='Races, Positions & Points'!DM3 -> 0 | AE2: ='Races, Positions & Points'!DG3 -> Les Houches, FR | AF2: ='Races, Positions & Points'!DQ3 -> 0 | AG2: ='Races, Positions & Points'!#REF! ->  | AH2: ='Races, Positions & Points'!DT3 -> 0 | AI2: ='Races, Positions & Points'!#REF! ->  | AJ2: ='Races, Positions & Points'!DV3 -> Nevis, SCO | AK2: ='Races, Positions & Points'!DY3 -> Tignes, FR | AL2: ='Races, Positions & Points'!EB3 -> Tignes, FR | AM2: ='Races, Positions & Points'!EF3 -> Tignes, FR | AN2: ='Races, Positions & Points'!#REF! ->  | AO2: ='Races, Positions & Points'!EI3 -> Tignes, FR | AP2: ='Races, Positions & Points'!EM3 -> Tignes, FR | AQ2: ='Races, Positions & Points'!EP3 -> 0 | AR2: ='Races, Positions & Points'!ES3 -> 0 | AS2: ='Races, Positions & Points'!EV3 -> 0 | AT2: ='Races, Positions & Points'!#REF! ->  | AU2: ='Races, Positions & Points'!#REF! ->  | AV2: ='Races, Positions & Points'!#REF! ->  | AW2: ='Races, Positions & Points'!#REF! ->  | AX2: ='Races, Positions & Points'!#REF! ->  | AY2: ='Races, Positions & Points'!#REF! ->  | BJ2: Outdoor | BS2: Indoor | CS2: Outdoor | CX2: Indoor
A3: Min Penalty | B3: ='Races, Positions & Points'!#REF! ->  | C3: ='Races, Positions & Points'!#REF! ->  | D3: ='Races, Positions & Points'!#REF! ->  | E3: ='Races, Positions & Points'!#REF! ->  | F3: ='Races, Positions & Points'!#REF! ->  | G3: ='Races, Positions & Points'!#REF! ->  | H3: ='Races, Positions & Points'!#REF! ->  | I3: ='Races, Positions & Points'!#REF! ->  | J3: ='Races, Positions & Points'!#REF! ->  | K3: ='Races, Positions & Points'!#REF! ->  | L3: ='Races, Positions & Points'!#REF! ->  | M3: ='Races, Positions & Points'!#REF! ->  | N3: ='Races, Positions & Points'!#REF! ->  | O3: ='Races, Positions & Points'!#REF! ->  | P3: ='Races, Positions & Points'!#REF! ->  | Q3: ='Races, Positions & Points'!#REF! ->  | R3: ='Races, Positions & Points'!#REF! ->  | S3: ='Races, Positions & Points'!#REF! ->  | T3: ='Races, Positions & Points'!#REF! ->  | U3: ='Races, Positions & Points'!#REF! ->  | V3: ='Races, Positions & Points'!#REF! ->  | W3: ='Races, Positions & Points'!#REF! ->  | X3: ='Races, Positions & Points'!#REF! ->  | Y3: ='Races, Positions & Points'!#REF! ->  | Z3: ='Races, Positions & Points'!#REF! ->  | AA3: ='Races, Positions & Points'!#REF! ->  | AB3: ='Races, Positions & Points'!#REF! ->  | AC3: ='Races, Positions & Points'!#REF! ->  | AD3: ='Races, Positions & Points'!#REF! ->  | AE3: ='Races, Positions & Points'!#REF! ->  | AF3: ='Races, Positions & Points'!#REF! ->  | AG3: ='Races, Positions & Points'!#REF! ->  | AH3: ='Races, Positions & Points'!#REF! ->  | AI3: ='Races, Positions & Points'!#REF! ->  | AJ3: ='Races, Positions & Points'!#REF! ->  | AK3: ='Races, Positions & Points'!#REF! ->  | AL3: ='Races, Positions & Points'!#REF! ->  | AM3: ='Races, Positions & Points'!#REF! ->  | AN3: ='Races, Positions & Points'!#REF! ->  | AO3: ='Races, Positions & Points'!#REF! ->  | AP3: ='Races, Positions & Points'!#REF! ->  | AQ3: ='Races, Positions & Points'!#REF! ->  | AR3: ='Races, Positions & Points'!#REF! ->  | AS3: ='Races, Positions & Points'!#REF! ->  | AT3: ='Races, Positions & Points'!#REF! ->  | AU3: ='Races, Positions & Points'!#REF! ->  | AV3: ='Races, Positions & Points'!#REF! ->  | AW3: ='Races, Positions & Points'!#REF! ->  | AX3: ='Races, Positions & Points'!#REF! ->  | AY3: ='Races, Positions & Points'!#REF! -> 
A4: Type | B4: ='Races, Positions & Points'!#REF! ->  | C4: ='Races, Positions & Points'!#REF! ->  | D4: ='Races, Positions & Points'!#REF! ->  | E4: ='Races, Positions & Points'!#REF! ->  | F4: ='Races, Positions & Points'!#REF! ->  | G4: ='Races, Positions & Points'!#REF! ->  | H4: ='Races, Positions & Points'!#REF! ->  | I4: ='Races, Positions & Points'!#REF! ->  | J4: ='Races, Positions & Points'!#REF! ->  | K4: ='Races, Positions & Points'!#REF! ->  | L4: ='Races, Positions & Points'!#REF! ->  | M4: ='Races, Positions & Points'!#REF! ->  | N4: ='Races, Positions & Points'!#REF! ->  | O4: ='Races, Positions & Points'!#REF! ->  | P4: ='Races, Positions & Points'!#REF! ->  | Q4: ='Races, Positions & Points'!#REF! ->  | R4: ='Races, Positions & Points'!#REF! ->  | S4: ='Races, Positions & Points'!#REF! ->  | T4: ='Races, Positions & Points'!#REF! ->  | U4: ='Races, Positions & Points'!#REF! ->  | V4: ='Races, Positions & Points'!#REF! ->  | W4: ='Races, Positions & Points'!#REF! ->  | X4: ='Races, Positions & Points'!#REF! ->  | Y4: ='Races, Positions & Points'!#REF! ->  | Z4: ='Races, Positions & Points'!#REF! ->  | AA4: ='Races, Positions & Points'!#REF! ->  | AB4: ='Races, Positions & Points'!#REF! ->  | AC4: ='Races, Positions & Points'!#REF! ->  | AD4: ='Races, Positions & Points'!#REF! ->  | AE4: ='Races, Positions & Points'!#REF! ->  | AF4: ='Races, Positions & Points'!#REF! ->  | AG4: ='Races, Positions & Points'!#REF! ->  | AH4: ='Races, Positions & Points'!#REF! ->  | AI4: ='Races, Positions & Points'!#REF! ->  | AJ4: ='Races, Positions & Points'!#REF! ->  | AK4: ='Races, Positions & Points'!#REF! ->  | AL4: ='Races, Positions & Points'!#REF! ->  | AM4: ='Races, Positions & Points'!#REF! ->  | AN4: ='Races, Positions & Points'!#REF! ->  | AO4: ='Races, Positions & Points'!#REF! ->  | AP4: ='Races, Positions & Points'!#REF! ->  | AQ4: ='Races, Positions & Points'!#REF! ->  | AR4: ='Races, Positions & Points'!#REF! ->  | AS4: ='Races, Positions & Points'!#REF! ->  | AT4: ='Races, Positions & Points'!#REF! ->  | AU4: ='Races, Positions & Points'!#REF! ->  | AV4: ='Races, Positions & Points'!#REF! ->  | AW4: ='Races, Positions & Points'!#REF! ->  | AX4: ='Races, Positions & Points'!#REF! ->  | AY4: ='Races, Positions & Points'!#REF! -> 
A5: Separate Event? | B5: Y | C5: Y | D5: Y | E5: Y | F5: N | G5: Y | H5: N | I5: Y | J5: Y | K5: Y | L5: Y | M5: Y | N5: Y | O5: Y | P5: Y | Q5: Y | R5: Y | S5: Y | T5: Y | U5: Y | V5: Y | W5: Y | X5: N | Y5: Y | Z5: Y | AA5: Y | AB5: Y | AC5: Y | AD5: Y | AE5: Y | AF5: Y | AG5: Y | AH5: Y | AI5: Y | AJ5: Y | AK5: Y | AL5: Y | AM5: Y | AN5: Y | AO5: Y | AP5: Y | AQ5: Y | AR5: Y | AS5: Y | AT5: Y | AU5: Y | AV5: Y | AW5: Y | AX5: Y | AY5: Y
A8: ='Races, Positions & Points'!#REF! ->  | B8: =IF('Races, Positions & Points'!#REF!="","",'Races, Positions & Points'!#REF!) ->  | C8: =IF('Races, Positions & Points'!#REF!="","",'Races, Positions & Points'!#REF!) ->  | D8: =IF('Races, Positions & Points'!#REF!="","",'Races, Positions & Points'!#REF!) ->  | E8: =IF('Races, Positions & Points'!#REF!="","",'Races, Positions & Points'!#REF!) ->  | F8: =IF('Races, Positions & Points'!#REF!="","",'Races, Positions & Points'!#REF!) ->  | G8: =IF('Races, Positions & Points'!#REF!="","",'Races, Positions & Points'!#REF!) ->  | H8: =IF('Races, Positions & Points'!#REF!="","",'Races, Positions & Points'!#REF!) ->  | I8: =IF('Races, Positions & Points'!#REF!="","",'Races, Positions & Points'!#REF!) ->  | J8: =IF('Races, Positions & Points'!#REF!="","",'Races, Positions & Points'!#REF!) ->  | K8: =IF('Races, Positions & Points'!#REF!="","",'Races, Positions & Points'!#REF!) ->  | L8: =IF('Races, Positions & Points'!#REF!="","",'Races, Positions & Points'!#REF!) ->  | M8: =IF('Races, Positions & Points'!#REF!="","",'Races, Positions & Points'!#REF!) ->  | N8: =IF('Races, Positions & Points'!#REF!="","",'Races, Positions & Points'!#REF!) ->  | O8: =IF('Races, Positions & Points'!#REF!="","",'Races, Positions & Points'!#REF!) ->  | P8: =IF('Races, Positions & Points'!#REF!="","",'Races, Positions & Points'!#REF!) ->  | Q8: =IF('Races, Positions & Points'!#REF!="","",'Races, Positions & Points'!#REF!) ->  | R8: =IF('Races, Positions & Points'!#REF!="","",'Races, Positions & Points'!#REF!) ->  | S8: =IF('Races, Positions & Points'!#REF!="","",'Races, Positions & Points'!#REF!) ->  | T8: =IF('Races, Positions & Points'!#REF!="","",'Races, Positions & Points'!#REF!) ->  | U8: =IF('Races, Positions & Points'!#REF!="","",'Races, Positions & Points'!#REF!) ->  | V8: =IF('Races, Positions & Points'!#REF!="","",'Races, Positions & Points'!#REF!) ->  | W8: =IF('Races, Positions & Points'!#REF!="","",'Races, Positions & Points'!#REF!) ->  | X8: =IF('Races, Positions & Points'!#REF!="","",'Races, Positions & Points'!#REF!) ->  | Y8: =IF('Races, Positions & Points'!#REF!="","",'Races, Positions & Points'!#REF!) ->  | Z8: =IF('Races, Positions & Points'!#REF!="","",'Races, Positions & Points'!#REF!) ->  | AA8: =IF('Races, Positions & Points'!#REF!="","",'Races, Positions & Points'!#REF!) ->  | AB8: =IF('Races, Positions & Points'!#REF!="","",'Races, Positions & Points'!#REF!) ->  | AC8: =IF('Races, Positions & Points'!#REF!="","",'Races, Positions & Points'!#REF!) ->  | AD8: =IF('Races, Positions & Points'!#REF!="","",'Races, Positions & Points'!#REF!) ->  | AE8: =IF('Races, Positions & Points'!#REF!="","",'Races, Positions & Points'!#REF!) ->  | AF8: =IF('Races, Positions & Points'!#REF!="","",'Races, Positions & Points'!#REF!) ->  | AG8: =IF('Races, Positions & Points'!#REF!="","",'Races, Positions & Points'!#REF!) ->  | AH8: =IF('Races, Positions & Points'!#REF!="","",'Races, Positions & Points'!#REF!) ->  | AI8: =IF('Races, Positions & Points'!#REF!="","",'Races, Positions & Points'!#REF!) ->  | AJ8: =IF('Races, Positions & Points'!#REF!="","",'Races, Positions & Points'!#REF!) ->  | AK8: =IF('Races, Positions & Points'!#REF!="","",'Races, Positions & Points'!#REF!) ->  | AL8: =IF('Races, Positions & Points'!#REF!="","",'Races, Positions & Points'!#REF!) ->  | AM8: =IF('Races, Positions & Points'!#REF!="","",'Races, Positions & Points'!#REF!) ->  | AN8: =IF('Races, Positions & Points'!#REF!="","",'Races, Positions & Points'!#REF!) ->  | AO8: =IF('Races, Positions & Points'!#REF!="","",'Races, Positions & Points'!#REF!) ->  | AP8: =IF('Races, Positions & Points'!#REF!="","",'Races, Positions & Points'!#REF!) ->  | AQ8: =IF('Races, Positions & Points'!#REF!="","",'Races, Positions & Points'!#REF!) ->  | AR8: =IF('Races, Positions & Points'!#REF!="","",'Races, Positions & Points'!#REF!) ->  | AS8: =IF('Races, Positions & Points'!#REF!="","",'Races, Positions & Points'!#REF!) ->  | AT8: =IF('Races, Positions & Points'!#REF!="","",'Races, Positions & Points'!#REF!) ->  | AU8: =IF('Races, Positions & Points'!#REF!="","",'Races, Positions & Points'!#REF!) ->  | AV8: =IF('Races, Positions & Points'!#REF!="","",'Races, Positions & Points'!#REF!) ->  | AW8: =IF('Races, Positions & Points'!#REF!="","",'Races, Positions & Points'!#REF!) ->  | AX8: =IF('Races, Positions & Points'!#REF!="","",'Races, Positions & Points'!#REF!) ->  | AY8: =IF('Races, Positions & Points'!#REF!="","",'Races, Positions & Points'!#REF!) ->  | BA8: =SUMPRODUCT(--(B$4:AY$4="In"),--(B$3:AY$3>5),--(B$5:AY$5="Y"),--(B8:AY8<>"")) ->  | BB8: =SUMPRODUCT(--(B$4:AY$4="Out"),--(B$3:AY$3>5),--(B$5:AY$5="Y"),--(B8:AY8<>"")) ->  | BC8: =SUMPRODUCT(--(B$4:AY$4="In"),--(B$3:AY$3=5),--(B$5:AY$5="Y"),--(B8:AY8<>"")) ->  | BD8: =SUMPRODUCT(--(B$4:AY$4="Out"),--(B$3:AY$3=5),--(B$5:AY$5="Y"),--(B8:AY8<>"")) ->  | BE8: =SUMPRODUCT(--(B$4:AY$4="In"),--(B$3:AY$3=0),--(B$5:AY$5="Y"),--(B8:AY8<>"")) ->  | BF8: =SUMPRODUCT(--(B$4:AY$4="Out"),--(B$3:AY$3=0),--(B$5:AY$5="Y"),--(B8:AY8<>"")) ->  | BH8: ='Races, Positions & Points'!#REF! -> 
A9: ='Races, Positions & Points'!#REF! ->  | B9: =IF('Races, Positions & Points'!#REF!="","",'Races, Positions & Points'!#REF!) ->  | C9: =IF('Races, Positions & Points'!#REF!="","",'Races, Positions & Points'!#REF!) ->  | D9: =IF('Races, Positions & Points'!#REF!="","",'Races, Positions & Points'!#REF!) ->  | E9: =IF('Races, Positions & Points'!#REF!="","",'Races, Positions & Points'!#REF!) ->  | F9: =IF('Races, Positions & Points'!#REF!="","",'Races, Positions & Points'!#REF!) ->  | G9: =IF('Races, Positions & Points'!#REF!="","",'Races, Positions & Points'!#REF!) ->  | H9: =IF('Races, Positions & Points'!#REF!="","",'Races, Positions & Points'!#REF!) ->  | I9: =IF('Races, Positions & Points'!#REF!="","",'Races, Positions & Points'!#REF!) ->  | J9: =IF('Races, Positions & Points'!#REF!="","",'Races, Positions & Points'!#REF!) ->  | K9: =IF('Races, Positions & Points'!#REF!="","",'Races, Positions & Points'!#REF!) ->  | L9: =IF('Races, Positions & Points'!#REF!="","",'Races, Positions & Points'!#REF!) ->  | M9: =IF('Races, Positions & Points'!#REF!="","",'Races, Positions & Points'!#REF!) ->  | N9: =IF('Races, Positions & Points'!#REF!="","",'Races, Positions & Points'!#REF!) ->  | O9: =IF('Races, Positions & Points'!#REF!="","",'Races, Positions & Points'!#REF!) ->  | P9: =IF('Races, Positions & Points'!#REF!="","",'Races, Positions & Points'!#REF!) ->  | Q9: =IF('Races, Positions & Points'!#REF!="","",'Races, Positions & Points'!#REF!) ->  | R9: =IF('Races, Positions & Points'!#REF!="","",'Races, Positions & Points'!#REF!) ->  | S9: =IF('Races, Positions & Points'!#REF!="","",'Races, Positions & Points'!#REF!) ->  | T9: =IF('Races, Positions & Points'!#REF!="","",'Races, Positions & Points'!#REF!) ->  | U9: =IF('Races, Positions & Points'!#REF!="","",'Races, Positions & Points'!#REF!) ->  | V9: =IF('Races, Positions & Points'!#REF!="","",'Races, Positions & Points'!#REF!) ->  | W9: =IF('Races, Positions & Points'!#REF!="","",'Races, Positions & Points'!#REF!) ->  | X9: =IF('Races, Positions & Points'!#REF!="","",'Races, Positions & Points'!#REF!) ->  | Y9: =IF('Races, Positions & Points'!#REF!="","",'Races, Positions & Points'!#REF!) ->  | Z9: =IF('Races, Positions & Points'!#REF!="","",'Races, Positions & Points'!#REF!) ->  | AA9: =IF('Races, Positions & Points'!#REF!="","",'Races, Positions & Points'!#REF!) ->  | AB9: =IF('Races, Positions & Points'!#REF!="","",'Races, Positions & Points'!#REF!) ->  | AC9: =IF('Races, Positions & Points'!#REF!="","",'Races, Positions & Points'!#REF!) ->  | AD9: =IF('Races, Positions & Points'!#REF!="","",'Races, Positions & Points'!#REF!) ->  | AE9: =IF('Races, Positions & Points'!#REF!="","",'Races, Positions & Points'!#REF!) ->  | AF9: =IF('Races, Positions & Points'!#REF!="","",'Races, Positions & Points'!#REF!) ->  | AG9: =IF('Races, Positions & Points'!#REF!="","",'Races, Positions & Points'!#REF!) ->  | AH9: =IF('Races, Positions & Points'!#REF!="","",'Races, Positions & Points'!#REF!) ->  | AI9: =IF('Races, Positions & Points'!#REF!="","",'Races, Positions & Points'!#REF!) ->  | AJ9: =IF('Races, Positions & Points'!#REF!="","",'Races, Positions & Points'!#REF!) ->  | AK9: =IF('Races, Positions & Points'!#REF!="","",'Races, Positions & Points'!#REF!) ->  | AL9: =IF('Races, Positions & Points'!#REF!="","",'Races, Positions & Points'!#REF!) ->  | AM9: =IF('Races, Positions & Points'!#REF!="","",'Races, Positions & Points'!#REF!) ->  | AN9: =IF('Races, Positions & Points'!#REF!="","",'Races, Positions & Points'!#REF!) ->  | AO9: =IF('Races, Positions & Points'!#REF!="","",'Races, Positions & Points'!#REF!) ->  | AP9: =IF('Races, Positions & Points'!#REF!="","",'Races, Positions & Points'!#REF!) ->  | AQ9: =IF('Races, Positions & Points'!#REF!="","",'Races, Positions & Points'!#REF!) ->  | AR9: =IF('Races, Positions & Points'!#REF!="","",'Races, Positions & Points'!#REF!) ->  | AS9: =IF('Races, Positions & Points'!#REF!="","",'Races, Positions & Points'!#REF!) ->  | AT9: =IF('Races, Positions & Points'!#REF!="","",'Races, Positions & Points'!#REF!) ->  | AU9: =IF('Races, Positions & Points'!#REF!="","",'Races, Positions & Points'!#REF!) ->  | AV9: =IF('Races, Positions & Points'!#REF!="","",'Races, Positions & Points'!#REF!) ->  | AW9: =IF('Races, Positions & Points'!#REF!="","",'Races, Positions & Points'!#REF!) ->  | AX9: =IF('Races, Positions & Points'!#REF!="","",'Races, Positions & Points'!#REF!) ->  | AY9: =IF('Races, Positions & Points'!#REF!="","",'Races, Positions & Points'!#REF!) ->  | BA9: =SUMPRODUCT(--(B$4:AY$4="In"),--(B$3:AY$3>5),--(B$5:AY$5="Y"),--(B9:AY9<>"")) ->  | BB9: =SUMPRODUCT(--(B$4:AY$4="Out"),--(B$3:AY$3>5),--(B$5:AY$5="Y"),--(B9:AY9<>"")) ->  | BC9: =SUMPRODUCT(--(B$4:AY$4="In"),--(B$3:AY$3=5),--(B$5:AY$5="Y"),--(B9:AY9<>"")) ->  | BE9: =SUMPRODUCT(--(B$4:AY$4="In"),--(B$3:AY$3=0),--(B$5:AY$5="Y"),--(B9:AY9<>"")) ->  | BF9: =SUMPRODUCT(--(B$4:AY$4="Out"),--(B$3:AY$3=0),--(B$5:AY$5="Y"),--(B9:AY9<>"")) ->  | BH9: ='Races, Positions & Points'!#REF! -> 
A10: ='Races, Positions & Points'!#REF! ->  | B10: =IF('Races, Positions & Points'!#REF!="","",'Races, Positions & Points'!#REF!) ->  | C10: =IF('Races, Positions & Points'!#REF!="","",'Races, Positions & Points'!#REF!) ->  | D10: =IF('Races, Positions & Points'!#REF!="","",'Races, Positions & Points'!#REF!) ->  | E10: =IF('Races, Positions & Points'!#REF!="","",'Races, Positions & Points'!#REF!) ->  | F10: =IF('Races, Positions & Points'!#REF!="","",'Races, Positions & Points'!#REF!) ->  | G10: =IF('Races, Positions & Points'!#REF!="","",'Races, Positions & Points'!#REF!) ->  | H10: =IF('Races, Positions & Points'!#REF!="","",'Races, Positions & Points'!#REF!) ->  | I10: =IF('Races, Positions & Points'!#REF!="","",'Races, Positions & Points'!#REF!) ->  | J10: =IF('Races, Positions & Points'!#REF!="","",'Races, Positions & Points'!#REF!) ->  | K10: =IF('Races, Positions & Points'!#REF!="","",'Races, Positions & Points'!#REF!) ->  | L10: =IF('Races, Positions & Points'!#REF!="","",'Races, Positions & Points'!#REF!) ->  | M10: =IF('Races, Positions & Points'!#REF!="","",'Races, Positions & Points'!#REF!) ->  | N10: =IF('Races, Positions & Points'!#REF!="","",'Races, Positions & Points'!#REF!) ->  | O10: =IF('Races, Positions & Points'!#REF!="","",'Races, Positions & Points'!#REF!) ->  | P10: =IF('Races, Positions & Points'!#REF!="","",'Races, Positions & Points'!#REF!) ->  | Q10: =IF('Races, Positions & Points'!#REF!="","",'Races, Positions & Points'!#REF!) ->  | R10: =IF('Races, Positions & Points'!#REF!="","",'Races, Positions & Points'!#REF!) ->  | S10: =IF('Races, Positions & Points'!#REF!="","",'Races, Positions & Points'!#REF!) ->  | T10: =IF('Races, Positions & Points'!#REF!="","",'Races, Positions & Points'!#REF!) ->  | U10: =IF('Races, Positions & Points'!#REF!="","",'Races, Positions & Points'!#REF!) ->  | V10: =IF('Races, Positions & Points'!#REF!="","",'Races, Positions & Points'!#REF!) ->  | W10: =IF('Races, Positions & Points'!#REF!="","",'Races, Positions & Points'!#REF!) ->  | X10: =IF('Races, Positions & Points'!#REF!="","",'Races, Positions & Points'!#REF!) ->  | Y10: =IF('Races, Positions & Points'!#REF!="","",'Races, Positions & Points'!#REF!) ->  | Z10: =IF('Races, Positions & Points'!#REF!="","",'Races, Positions & Points'!#REF!) ->  | AA10: =IF('Races, Positions & Points'!#REF!="","",'Races, Positions & Points'!#REF!) ->  | AB10: =IF('Races, Positions & Points'!#REF!="","",'Races, Positions & Points'!#REF!) ->  | AC10: =IF('Races, Positions & Points'!#REF!="","",'Races, Positions & Points'!#REF!) ->  | AD10: =IF('Races, Positions & Points'!#REF!="","",'Races, Positions & Points'!#REF!) ->  | AE10: =IF('Races, Positions & Points'!#REF!="","",'Races, Positions & Points'!#REF!) ->  | AF10: =IF('Races, Positions & Points'!#REF!="","",'Races, Positions & Points'!#REF!) ->  | AG10: =IF('Races, Positions & Points'!#REF!="","",'Races, Positions & Points'!#REF!) ->  | AH10: =IF('Races, Positions & Points'!#REF!="","",'Races, Positions & Points'!#REF!) ->  | AI10: =IF('Races, Positions & Points'!#REF!="","",'Races, Positions & Points'!#REF!) ->  | AJ10: =IF('Races, Positions & Points'!#REF!="","",'Races, Positions & Points'!#REF!) ->  | AK10: =IF('Races, Positions & Points'!#REF!="","",'Races, Positions & Points'!#REF!) ->  | AL10: =IF('Races, Positions & Points'!#REF!="","",'Races, Positions & Points'!#REF!) ->  | AM10: =IF('Races, Positions & Points'!#REF!="","",'Races, Positions & Points'!#REF!) ->  | AN10: =IF('Races, Positions & Points'!#REF!="","",'Races, Positions & Points'!#REF!) ->  | AO10: =IF('Races, Positions & Points'!#REF!="","",'Races, Positions & Points'!#REF!) ->  | AP10: =IF('Races, Positions & Points'!#REF!="","",'Races, Positions & Points'!#REF!) ->  | AQ10: =IF('Races, Positions & Points'!#REF!="","",'Races, Positions & Points'!#REF!) ->  | AR10: =IF('Races, Positions & Points'!#REF!="","",'Races, Positions & Points'!#REF!) ->  | AS10: =IF('Races, Positions & Points'!#REF!="","",'Races, Positions & Points'!#REF!) ->  | AT10: =IF('Races, Positions & Points'!#REF!="","",'Races, Positions & Points'!#REF!) ->  | AU10: =IF('Races, Positions & Points'!#REF!="","",'Races, Positions & Points'!#REF!) ->  | AV10: =IF('Races, Positions & Points'!#REF!="","",'Races, Positions & Points'!#REF!) ->  | AW10: =IF('Races, Positions & Points'!#REF!="","",'Races, Positions & Points'!#REF!) ->  | AX10: =IF('Races, Positions & Points'!#REF!="","",'Races, Positions & Points'!#REF!) ->  | AY10: =IF('Races, Positions & Points'!#REF!="","",'Races, Positions & Points'!#REF!) ->  | BH10: ='Races, Positions & Points'!#REF! -> 
A11: ='Races, Positions & Points'!#REF! ->  | B11: =IF('Races, Positions & Points'!#REF!="","",'Races, Positions & Points'!#REF!) ->  | C11: =IF('Races, Positions & Points'!#REF!="","",'Races, Positions & Points'!#REF!) ->  | D11: =IF('Races, Positions & Points'!#REF!="","",'Races, Positions & Points'!#REF!) ->  | E11: =IF('Races, Positions & Points'!#REF!="","",'Races, Positions & Points'!#REF!) ->  | F11: =IF('Races, Positions & Points'!#REF!="","",'Races, Positions & Points'!#REF!) ->  | G11: =IF('Races, Positions & Points'!#REF!="","",'Races, Positions & Points'!#REF!) ->  | H11: =IF('Races, Positions & Points'!#REF!="","",'Races, Positions & Points'!#REF!) ->  | I11: =IF('Races, Positions & Points'!#REF!="","",'Races, Positions & Points'!#REF!) ->  | J11: =IF('Races, Positions & Points'!#REF!="","",'Races, Positions & Points'!#REF!) ->  | K11: =IF('Races, Positions & Points'!#REF!="","",'Races, Positions & Points'!#REF!) ->  | L11: =IF('Races, Positions & Points'!#REF!="","",'Races, Positions & Points'!#REF!) ->  | M11: =IF('Races, Positions & Points'!#REF!="","",'Races, Positions & Points'!#REF!) ->  | N11: =IF('Races, Positions & Points'!#REF!="","",'Races, Positions & Points'!#REF!) ->  | O11: =IF('Races, Positions & Points'!#REF!="","",'Races, Positions & Points'!#REF!) ->  | P11: =IF('Races, Positions & Points'!#REF!="","",'Races, Positions & Points'!#REF!) ->  | Q11: =IF('Races, Positions & Points'!#REF!="","",'Races, Positions & Points'!#REF!) ->  | R11: =IF('Races, Positions & Points'!#REF!="","",'Races, Positions & Points'!#REF!) ->  | S11: =IF('Races, Positions & Points'!#REF!="","",'Races, Positions & Points'!#REF!) ->  | T11: =IF('Races, Positions & Points'!#REF!="","",'Races, Positions & Points'!#REF!) ->  | U11: =IF('Races, Positions & Points'!#REF!="","",'Races, Positions & Points'!#REF!) ->  | V11: =IF('Races, Positions & Points'!#REF!="","",'Races, Positions & Points'!#REF!) ->  | W11: =IF('Races, Positions & Points'!#REF!="","",'Races, Positions & Points'!#REF!) ->  | X11: =IF('Races, Positions & Points'!#REF!="","",'Races, Positions & Points'!#REF!) ->  | Y11: =IF('Races, Positions & Points'!#REF!="","",'Races, Positions & Points'!#REF!) ->  | Z11: =IF('Races, Positions & Points'!#REF!="","",'Races, Positions & Points'!#REF!) ->  | AA11: =IF('Races, Positions & Points'!#REF!="","",'Races, Positions & Points'!#REF!) ->  | AB11: =IF('Races, Positions & Points'!#REF!="","",'Races, Positions & Points'!#REF!) ->  | AC11: =IF('Races, Positions & Points'!#REF!="","",'Races, Positions & Points'!#REF!) ->  | AD11: =IF('Races, Positions & Points'!#REF!="","",'Races, Positions & Points'!#REF!) ->  | AE11: =IF('Races, Positions & Points'!#REF!="","",'Races, Positions & Points'!#REF!) ->  | AF11: =IF('Races, Positions & Points'!#REF!="","",'Races, Positions & Points'!#REF!) ->  | AG11: =IF('Races, Positions & Points'!#REF!="","",'Races, Positions & Points'!#REF!) ->  | AH11: =IF('Races, Positions & Points'!#REF!="","",'Races, Positions & Points'!#REF!) ->  | AI11: =IF('Races, Positions & Points'!#REF!="","",'Races, Positions & Points'!#REF!) ->  | AJ11: =IF('Races, Positions & Points'!#REF!="","",'Races, Positions & Points'!#REF!) ->  | AK11: =IF('Races, Positions & Points'!#REF!="","",'Races, Positions & Points'!#REF!) ->  | AL11: =IF('Races, Positions & Points'!#REF!="","",'Races, Positions & Points'!#REF!) ->  | AM11: =IF('Races, Positions & Points'!#REF!="","",'Races, Positions & Points'!#REF!) ->  | AN11: =IF('Races, Positions & Points'!#REF!="","",'Races, Positions & Points'!#REF!) ->  | AO11: =IF('Races, Positions & Points'!#REF!="","",'Races, Positions & Points'!#REF!) ->  | AP11: =IF('Races, Positions & Points'!#REF!="","",'Races, Positions & Points'!#REF!) ->  | AQ11: =IF('Races, Positions & Points'!#REF!="","",'Races, Positions & Points'!#REF!) ->  | AR11: =IF('Races, Positions & Points'!#REF!="","",'Races, Positions & Points'!#REF!) ->  | AS11: =IF('Races, Positions & Points'!#REF!="","",'Races, Positions & Points'!#REF!) ->  | AT11: =IF('Races, Positions & Points'!#REF!="","",'Races, Positions & Points'!#REF!) ->  | AU11: =IF('Races, Positions & Points'!#REF!="","",'Races, Positions & Points'!#REF!) ->  | AV11: =IF('Races, Positions & Points'!#REF!="","",'Races, Positions & Points'!#REF!) ->  | AW11: =IF('Races, Positions & Points'!#REF!="","",'Races, Positions & Points'!#REF!) ->  | AX11: =IF('Races, Positions & Points'!#REF!="","",'Races, Positions & Points'!#REF!) ->  | AY11: =IF('Races, Positions & Points'!#REF!="","",'Races, Positions & Points'!#REF!) ->  | BH11: ='Races, Positions & Points'!#REF! -> 
A12: ='Races, Positions & Points'!#REF! ->  | B12: =IF('Races, Positions & Points'!#REF!="","",'Races, Positions & Points'!#REF!) ->  | C12: =IF('Races, Positions & Points'!#REF!="","",'Races, Positions & Points'!#REF!) ->  | D12: =IF('Races, Positions & Points'!#REF!="","",'Races, Positions & Points'!#REF!) ->  | E12: =IF('Races, Positions & Points'!#REF!="","",'Races, Positions & Points'!#REF!) ->  | F12: =IF('Races, Positions & Points'!#REF!="","",'Races, Positions & Points'!#REF!) ->  | G12: =IF('Races, Positions & Points'!#REF!="","",'Races, Positions & Points'!#REF!) ->  | H12: =IF('Races, Positions & Points'!#REF!="","",'Races, Positions & Points'!#REF!) ->  | I12: =IF('Races, Positions & Points'!#REF!="","",'Races, Positions & Points'!#REF!) ->  | J12: =IF('Races, Positions & Points'!#REF!="","",'Races, Positions & Points'!#REF!) ->  | K12: =IF('Races, Positions & Points'!#REF!="","",'Races, Positions & Points'!#REF!) ->  | L12: =IF('Races, Positions & Points'!#REF!="","",'Races, Positions & Points'!#REF!) ->  | M12: =IF('Races, Positions & Points'!#REF!="","",'Races, Positions & Points'!#REF!) ->  | N12: =IF('Races, Positions & Points'!#REF!="","",'Races, Positions & Points'!#REF!) ->  | O12: =IF('Races, Positions & Points'!#REF!="","",'Races, Positions & Points'!#REF!) ->  | P12: =IF('Races, Positions & Points'!#REF!="","",'Races, Positions & Points'!#REF!) ->  | Q12: =IF('Races, Positions & Points'!#REF!="","",'Races, Positions & Points'!#REF!) ->  | R12: =IF('Races, Positions & Points'!#REF!="","",'Races, Positions & Points'!#REF!) ->  | S12: =IF('Races, Positions & Points'!#REF!="","",'Races, Positions & Points'!#REF!) ->  | T12: =IF('Races, Positions & Points'!#REF!="","",'Races, Positions & Points'!#REF!) ->  | U12: =IF('Races, Positions & Points'!#REF!="","",'Races, Positions & Points'!#REF!) ->  | V12: =IF('Races, Positions & Points'!#REF!="","",'Races, Positions & Points'!#REF!) ->  | W12: =IF('Races, Positions & Points'!#REF!="","",'Races, Positions & Points'!#REF!) ->  | X12: =IF('Races, Positions & Points'!#REF!="","",'Races, Positions & Points'!#REF!) ->  | Y12: =IF('Races, Positions & Points'!#REF!="","",'Races, Positions & Points'!#REF!) ->  | Z12: =IF('Races, Positions & Points'!#REF!="","",'Races, Positions & Points'!#REF!) ->  | AA12: =IF('Races, Positions & Points'!#REF!="","",'Races, Positions & Points'!#REF!) ->  | AB12: =IF('Races, Positions & Points'!#REF!="","",'Races, Positions & Points'!#REF!) ->  | AC12: =IF('Races, Positions & Points'!#REF!="","",'Races, Positions & Points'!#REF!) ->  | AD12: =IF('Races, Positions & Points'!#REF!="","",'Races, Positions & Points'!#REF!) ->  | AE12: =IF('Races, Positions & Points'!#REF!="","",'Races, Positions & Points'!#REF!) ->  | AF12: =IF('Races, Positions & Points'!#REF!="","",'Races, Positions & Points'!#REF!) ->  | AG12: =IF('Races, Positions & Points'!#REF!="","",'Races, Positions & Points'!#REF!) ->  | AH12: =IF('Races, Positions & Points'!#REF!="","",'Races, Positions & Points'!#REF!) ->  | AI12: =IF('Races, Positions & Points'!#REF!="","",'Races, Positions & Points'!#REF!) ->  | AJ12: =IF('Races, Positions & Points'!#REF!="","",'Races, Positions & Points'!#REF!) ->  | AK12: =IF('Races, Positions & Points'!#REF!="","",'Races, Positions & Points'!#REF!) ->  | AL12: =IF('Races, Positions & Points'!#REF!="","",'Races, Positions & Points'!#REF!) ->  | AM12: =IF('Races, Positions & Points'!#REF!="","",'Races, Positions & Points'!#REF!) ->  | AN12: =IF('Races, Positions & Points'!#REF!="","",'Races, Positions & Points'!#REF!) ->  | AO12: =IF('Races, Positions & Points'!#REF!="","",'Races, Positions & Points'!#REF!) ->  | AP12: =IF('Races, Positions & Points'!#REF!="","",'Races, Positions & Points'!#REF!) ->  | AQ12: =IF('Races, Positions & Points'!#REF!="","",'Races, Positions & Points'!#REF!) ->  | AR12: =IF('Races, Positions & Points'!#REF!="","",'Races, Positions & Points'!#REF!) ->  | AS12: =IF('Races, Positions & Points'!#REF!="","",'Races, Positions & Points'!#REF!) ->  | AT12: =IF('Races, Positions & Points'!#REF!="","",'Races, Positions & Points'!#REF!) ->  | AU12: =IF('Races, Positions & Points'!#REF!="","",'Races, Positions & Points'!#REF!) ->  | AV12: =IF('Races, Positions & Points'!#REF!="","",'Races, Positions & Points'!#REF!) ->  | AW12: =IF('Races, Positions & Points'!#REF!="","",'Races, Positions & Points'!#REF!) ->  | AX12: =IF('Races, Positions & Points'!#REF!="","",'Races, Positions & Points'!#REF!) ->  | AY12: =IF('Races, Positions & Points'!#REF!="","",'Races, Positions & Points'!#REF!) ->  | BH12: ='Races, Positions & Points'!#REF! -> 
A14: ='Races, Positions & Points'!#REF! ->  | B14: =IF('Races, Positions & Points'!#REF!="","",'Races, Positions & Points'!#REF!) ->  | C14: =IF('Races, Positions & Points'!#REF!="","",'Races, Positions & Points'!#REF!) ->  | D14: =IF('Races, Positions & Points'!#REF!="","",'Races, Positions & Points'!#REF!) ->  | E14: =IF('Races, Positions & Points'!#REF!="","",'Races, Positions & Points'!#REF!) ->  | F14: =IF('Races, Positions & Points'!#REF!="","",'Races, Positions & Points'!#REF!) ->  | G14: =IF('Races, Positions & Points'!#REF!="","",'Races, Positions & Points'!#REF!) ->  | H14: =IF('Races, Positions & Points'!#REF!="","",'Races, Positions & Points'!#REF!) ->  | I14: =IF('Races, Positions & Points'!#REF!="","",'Races, Positions & Points'!#REF!) ->  | J14: =IF('Races, Positions & Points'!#REF!="","",'Races, Positions & Points'!#REF!) ->  | K14: =IF('Races, Positions & Points'!#REF!="","",'Races, Positions & Points'!#REF!) ->  | L14: =IF('Races, Positions & Points'!#REF!="","",'Races, Positions & Points'!#REF!) ->  | M14: =IF('Races, Positions & Points'!#REF!="","",'Races, Positions & Points'!#REF!) ->  | N14: =IF('Races, Positions & Points'!#REF!="","",'Races, Positions & Points'!#REF!) ->  | O14: =IF('Races, Positions & Points'!#REF!="","",'Races, Positions & Points'!#REF!) ->  | P14: =IF('Races, Positions & Points'!#REF!="","",'Races, Positions & Points'!#REF!) ->  | Q14: =IF('Races, Positions & Points'!#REF!="","",'Races, Positions & Points'!#REF!) ->  | R14: =IF('Races, Positions & Points'!#REF!="","",'Races, Positions & Points'!#REF!) ->  | S14: =IF('Races, Positions & Points'!#REF!="","",'Races, Positions & Points'!#REF!) ->  | T14: =IF('Races, Positions & Points'!#REF!="","",'Races, Positions & Points'!#REF!) ->  | U14: =IF('Races, Positions & Points'!#REF!="","",'Races, Positions & Points'!#REF!) ->  | V14: =IF('Races, Positions & Points'!#REF!="","",'Races, Positions & Points'!#REF!) ->  | W14: =IF('Races, Positions & Points'!#REF!="","",'Races, Positions & Points'!#REF!) ->  | X14: =IF('Races, Positions & Points'!#REF!="","",'Races, Positions & Points'!#REF!) ->  | Y14: =IF('Races, Positions & Points'!#REF!="","",'Races, Positions & Points'!#REF!) ->  | Z14: =IF('Races, Positions & Points'!#REF!="","",'Races, Positions & Points'!#REF!) ->  | AA14: =IF('Races, Positions & Points'!#REF!="","",'Races, Positions & Points'!#REF!) ->  | AB14: =IF('Races, Positions & Points'!#REF!="","",'Races, Positions & Points'!#REF!) ->  | AC14: =IF('Races, Positions & Points'!#REF!="","",'Races, Positions & Points'!#REF!) ->  | AD14: =IF('Races, Positions & Points'!#REF!="","",'Races, Positions & Points'!#REF!) ->  | AE14: =IF('Races, Positions & Points'!#REF!="","",'Races, Positions & Points'!#REF!) ->  | AF14: =IF('Races, Positions & Points'!#REF!="","",'Races, Positions & Points'!#REF!) ->  | AG14: =IF('Races, Positions & Points'!#REF!="","",'Races, Positions & Points'!#REF!) ->  | AH14: =IF('Races, Positions & Points'!#REF!="","",'Races, Positions & Points'!#REF!) ->  | AI14: =IF('Races, Positions & Points'!#REF!="","",'Races, Positions & Points'!#REF!) ->  | AJ14: =IF('Races, Positions & Points'!#REF!="","",'Races, Positions & Points'!#REF!) ->  | AK14: =IF('Races, Positions & Points'!#REF!="","",'Races, Positions & Points'!#REF!) ->  | AL14: =IF('Races, Positions & Points'!#REF!="","",'Races, Positions & Points'!#REF!) ->  | AM14: =IF('Races, Positions & Points'!#REF!="","",'Races, Positions & Points'!#REF!) ->  | AN14: =IF('Races, Positions & Points'!#REF!="","",'Races, Positions & Points'!#REF!) ->  | AO14: =IF('Races, Positions & Points'!#REF!="","",'Races, Positions & Points'!#REF!) ->  | AP14: =IF('Races, Positions & Points'!#REF!="","",'Races, Positions & Points'!#REF!) ->  | AQ14: =IF('Races, Positions & Points'!#REF!="","",'Races, Positions & Points'!#REF!) ->  | AR14: =IF('Races, Positions & Points'!#REF!="","",'Races, Positions & Points'!#REF!) ->  | AS14: =IF('Races, Positions & Points'!#REF!="","",'Races, Positions & Points'!#REF!) ->  | AT14: =IF('Races, Positions & Points'!#REF!="","",'Races, Positions & Points'!#REF!) ->  | AU14: =IF('Races, Positions & Points'!#REF!="","",'Races, Positions & Points'!#REF!) ->  | AV14: =IF('Races, Positions & Points'!#REF!="","",'Races, Positions & Points'!#REF!) ->  | AW14: =IF('Races, Positions & Points'!#REF!="","",'Races, Positions & Points'!#REF!) ->  | AX14: =IF('Races, Positions & Points'!#REF!="","",'Races, Positions & Points'!#REF!) ->  | AY14: =IF('Races, Positions & Points'!#REF!="","",'Races, Positions & Points'!#REF!) ->  | BA14: =SUMPRODUCT(--(B$4:AY$4="In"),--(B$3:AY$3>5),--(B$5:AY$5="Y"),--(B14:AY14<>"")) ->  | BB14: =SUMPRODUCT(--(B$4:AY$4="Out"),--(B$3:AY$3>5),--(B$5:AY$5="Y"),--(B14:AY14<>"")) ->  | BC14: =SUMPRODUCT(--(B$4:AY$4="In"),--(B$3:AY$3=5),--(B$5:AY$5="Y"),--(B14:AY14<>"")) ->  | BD14: =SUMPRODUCT(--(B$4:AY$4="Out"),--(B$3:AY$3=5),--(B$5:AY$5="Y"),--(B14:AY14<>"")) ->  | BE14: =SUMPRODUCT(--(B$4:AY$4="In"),--(B$3:AY$3=0),--(B$5:AY$5="Y"),--(B14:AY14<>"")) ->  | BF14: =SUMPRODUCT(--(B$4:AY$4="Out"),--(B$3:AY$3=0),--(B$5:AY$5="Y"),--(B14:AY14<>"")) ->  | BH14: ='Races, Positions & Points'!#REF! -> 
A15: ='Races, Positions & Points'!#REF! ->  | B15: =IF('Races, Positions & Points'!#REF!="","",'Races, Positions & Points'!#REF!) ->  | C15: =IF('Races, Positions & Points'!#REF!="","",'Races, Positions & Points'!#REF!) ->  | D15: =IF('Races, Positions & Points'!#REF!="","",'Races, Positions & Points'!#REF!) ->  | E15: =IF('Races, Positions & Points'!#REF!="","",'Races, Positions & Points'!#REF!) ->  | F15: =IF('Races, Positions & Points'!#REF!="","",'Races, Positions & Points'!#REF!) ->  | G15: =IF('Races, Positions & Points'!#REF!="","",'Races, Positions & Points'!#REF!) ->  | H15: =IF('Races, Positions & Points'!#REF!="","",'Races, Positions & Points'!#REF!) ->  | I15: =IF('Races, Positions & Points'!#REF!="","",'Races, Positions & Points'!#REF!) ->  | J15: =IF('Races, Positions & Points'!#REF!="","",'Races, Positions & Points'!#REF!) ->  | K15: =IF('Races, Positions & Points'!#REF!="","",'Races, Positions & Points'!#REF!) ->  | L15: =IF('Races, Positions & Points'!#REF!="","",'Races, Positions & Points'!#REF!) ->  | M15: =IF('Races, Positions & Points'!#REF!="","",'Races, Positions & Points'!#REF!) ->  | N15: =IF('Races, Positions & Points'!#REF!="","",'Races, Positions & Points'!#REF!) ->  | O15: =IF('Races, Positions & Points'!#REF!="","",'Races, Positions & Points'!#REF!) ->  | P15: =IF('Races, Positions & Points'!#REF!="","",'Races, Positions & Points'!#REF!) ->  | Q15: =IF('Races, Positions & Points'!#REF!="","",'Races, Positions & Points'!#REF!) ->  | R15: =IF('Races, Positions & Points'!#REF!="","",'Races, Positions & Points'!#REF!) ->  | S15: =IF('Races, Positions & Points'!#REF!="","",'Races, Positions & Points'!#REF!) ->  | T15: =IF('Races, Positions & Points'!#REF!="","",'Races, Positions & Points'!#REF!) ->  | U15: =IF('Races, Positions & Points'!#REF!="","",'Races, Positions & Points'!#REF!) ->  | V15: =IF('Races, Positions & Points'!#REF!="","",'Races, Positions & Points'!#REF!) ->  | W15: =IF('Races, Positions & Points'!#REF!="","",'Races, Positions & Points'!#REF!) ->  | X15: =IF('Races, Positions & Points'!#REF!="","",'Races, Positions & Points'!#REF!) ->  | Y15: =IF('Races, Positions & Points'!#REF!="","",'Races, Positions & Points'!#REF!) ->  | Z15: =IF('Races, Positions & Points'!#REF!="","",'Races, Positions & Points'!#REF!) ->  | AA15: =IF('Races, Positions & Points'!#REF!="","",'Races, Positions & Points'!#REF!) ->  | AB15: =IF('Races, Positions & Points'!#REF!="","",'Races, Positions & Points'!#REF!) ->  | AC15: =IF('Races, Positions & Points'!#REF!="","",'Races, Positions & Points'!#REF!) ->  | AD15: =IF('Races, Positions & Points'!#REF!="","",'Races, Positions & Points'!#REF!) ->  | AE15: =IF('Races, Positions & Points'!#REF!="","",'Races, Positions & Points'!#REF!) ->  | AF15: =IF('Races, Positions & Points'!#REF!="","",'Races, Positions & Points'!#REF!) ->  | AG15: =IF('Races, Positions & Points'!#REF!="","",'Races, Positions & Points'!#REF!) ->  | AH15: =IF('Races, Positions & Points'!#REF!="","",'Races, Positions & Points'!#REF!) ->  | AI15: =IF('Races, Positions & Points'!#REF!="","",'Races, Positions & Points'!#REF!) ->  | AJ15: =IF('Races, Positions & Points'!#REF!="","",'Races, Positions & Points'!#REF!) ->  | AK15: =IF('Races, Positions & Points'!#REF!="","",'Races, Positions & Points'!#REF!) ->  | AL15: =IF('Races, Positions & Points'!#REF!="","",'Races, Positions & Points'!#REF!) ->  | AM15: =IF('Races, Positions & Points'!#REF!="","",'Races, Positions & Points'!#REF!) ->  | AN15: =IF('Races, Positions & Points'!#REF!="","",'Races, Positions & Points'!#REF!) ->  | AO15: =IF('Races, Positions & Points'!#REF!="","",'Races, Positions & Points'!#REF!) ->  | AP15: =IF('Races, Positions & Points'!#REF!="","",'Races, Positions & Points'!#REF!) ->  | AQ15: =IF('Races, Positions & Points'!#REF!="","",'Races, Positions & Points'!#REF!) ->  | AR15: =IF('Races, Positions & Points'!#REF!="","",'Races, Positions & Points'!#REF!) ->  | AS15: =IF('Races, Positions & Points'!#REF!="","",'Races, Positions & Points'!#REF!) ->  | AT15: =IF('Races, Positions & Points'!#REF!="","",'Races, Positions & Points'!#REF!) ->  | AU15: =IF('Races, Positions & Points'!#REF!="","",'Races, Positions & Points'!#REF!) ->  | AV15: =IF('Races, Positions & Points'!#REF!="","",'Races, Positions & Points'!#REF!) ->  | AW15: =IF('Races, Positions & Points'!#REF!="","",'Races, Positions & Points'!#REF!) ->  | AX15: =IF('Races, Positions & Points'!#REF!="","",'Races, Positions & Points'!#REF!) ->  | AY15: =IF('Races, Positions & Points'!#REF!="","",'Races, Positions & Points'!#REF!) ->  | BH15: ='Races, Positions & Points'!#REF! -> 
A16: ='Races, Positions & Points'!#REF! ->  | B16: =IF('Races, Positions & Points'!#REF!="","",'Races, Positions & Points'!#REF!) ->  | C16: =IF('Races, Positions & Points'!#REF!="","",'Races, Positions & Points'!#REF!) ->  | D16: =IF('Races, Positions & Points'!#REF!="","",'Races, Positions & Points'!#REF!) ->  | E16: =IF('Races, Positions & Points'!#REF!="","",'Races, Positions & Points'!#REF!) ->  | F16: =IF('Races, Positions & Points'!#REF!="","",'Races, Positions & Points'!#REF!) ->  | G16: =IF('Races, Positions & Points'!#REF!="","",'Races, Positions & Points'!#REF!) ->  | H16: =IF('Races, Positions & Points'!#REF!="","",'Races, Positions & Points'!#REF!) ->  | I16: =IF('Races, Positions & Points'!#REF!="","",'Races, Positions & Points'!#REF!) ->  | J16: =IF('Races, Positions & Points'!#REF!="","",'Races, Positions & Points'!#REF!) ->  | K16: =IF('Races, Positions & Points'!#REF!="","",'Races, Positions & Points'!#REF!) ->  | L16: =IF('Races, Positions & Points'!#REF!="","",'Races, Positions & Points'!#REF!) ->  | M16: =IF('Races, Positions & Points'!#REF!="","",'Races, Positions & Points'!#REF!) ->  | N16: =IF('Races, Positions & Points'!#REF!="","",'Races, Positions & Points'!#REF!) ->  | O16: =IF('Races, Positions & Points'!#REF!="","",'Races, Positions & Points'!#REF!) ->  | P16: =IF('Races, Positions & Points'!#REF!="","",'Races, Positions & Points'!#REF!) ->  | Q16: =IF('Races, Positions & Points'!#REF!="","",'Races, Positions & Points'!#REF!) ->  | R16: =IF('Races, Positions & Points'!#REF!="","",'Races, Positions & Points'!#REF!) ->  | S16: =IF('Races, Positions & Points'!#REF!="","",'Races, Positions & Points'!#REF!) ->  | T16: =IF('Races, Positions & Points'!#REF!="","",'Races, Positions & Points'!#REF!) ->  | U16: =IF('Races, Positions & Points'!#REF!="","",'Races, Positions & Points'!#REF!) ->  | V16: =IF('Races, Positions & Points'!#REF!="","",'Races, Positions & Points'!#REF!) ->  | W16: =IF('Races, Positions & Points'!#REF!="","",'Races, Positions & Points'!#REF!) ->  | X16: =IF('Races, Positions & Points'!#REF!="","",'Races, Positions & Points'!#REF!) ->  | Y16: =IF('Races, Positions & Points'!#REF!="","",'Races, Positions & Points'!#REF!) ->  | Z16: =IF('Races, Positions & Points'!#REF!="","",'Races, Positions & Points'!#REF!) ->  | AA16: =IF('Races, Positions & Points'!#REF!="","",'Races, Positions & Points'!#REF!) ->  | AB16: =IF('Races, Positions & Points'!#REF!="","",'Races, Positions & Points'!#REF!) ->  | AC16: =IF('Races, Positions & Points'!#REF!="","",'Races, Positions & Points'!#REF!) ->  | AD16: =IF('Races, Positions & Points'!#REF!="","",'Races, Positions & Points'!#REF!) ->  | AE16: =IF('Races, Positions & Points'!#REF!="","",'Races, Positions & Points'!#REF!) ->  | AF16: =IF('Races, Positions & Points'!#REF!="","",'Races, Positions & Points'!#REF!) ->  | AG16: =IF('Races, Positions & Points'!#REF!="","",'Races, Positions & Points'!#REF!) ->  | AH16: =IF('Races, Positions & Points'!#REF!="","",'Races, Positions & Points'!#REF!) ->  | AI16: =IF('Races, Positions & Points'!#REF!="","",'Races, Positions & Points'!#REF!) ->  | AJ16: =IF('Races, Positions & Points'!#REF!="","",'Races, Positions & Points'!#REF!) ->  | AK16: =IF('Races, Positions & Points'!#REF!="","",'Races, Positions & Points'!#REF!) ->  | AL16: =IF('Races, Positions & Points'!#REF!="","",'Races, Positions & Points'!#REF!) ->  | AM16: =IF('Races, Positions & Points'!#REF!="","",'Races, Positions & Points'!#REF!) ->  | AN16: =IF('Races, Positions & Points'!#REF!="","",'Races, Positions & Points'!#REF!) ->  | AO16: =IF('Races, Positions & Points'!#REF!="","",'Races, Positions & Points'!#REF!) ->  | AP16: =IF('Races, Positions & Points'!#REF!="","",'Races, Positions & Points'!#REF!) ->  | AQ16: =IF('Races, Positions & Points'!#REF!="","",'Races, Positions & Points'!#REF!) ->  | AR16: =IF('Races, Positions & Points'!#REF!="","",'Races, Positions & Points'!#REF!) ->  | AS16: =IF('Races, Positions & Points'!#REF!="","",'Races, Positions & Points'!#REF!) ->  | AT16: =IF('Races, Positions & Points'!#REF!="","",'Races, Positions & Points'!#REF!) ->  | AU16: =IF('Races, Positions & Points'!#REF!="","",'Races, Positions & Points'!#REF!) ->  | AV16: =IF('Races, Positions & Points'!#REF!="","",'Races, Positions & Points'!#REF!) ->  | AW16: =IF('Races, Positions & Points'!#REF!="","",'Races, Positions & Points'!#REF!) ->  | AX16: =IF('Races, Positions & Points'!#REF!="","",'Races, Positions & Points'!#REF!) ->  | AY16: =IF('Races, Positions & Points'!#REF!="","",'Races, Positions & Points'!#REF!) ->  | BH16: ='Races, Positions & Points'!#REF! -> 
A17: ='Races, Positions & Points'!#REF! ->  | B17: =IF('Races, Positions & Points'!#REF!="","",'Races, Positions & Points'!#REF!) ->  | C17: =IF('Races, Positions & Points'!#REF!="","",'Races, Positions & Points'!#REF!) ->  | D17: =IF('Races, Positions & Points'!#REF!="","",'Races, Positions & Points'!#REF!) ->  | E17: =IF('Races, Positions & Points'!#REF!="","",'Races, Positions & Points'!#REF!) ->  | F17: =IF('Races, Positions & Points'!#REF!="","",'Races, Positions & Points'!#REF!) ->  | G17: =IF('Races, Positions & Points'!#REF!="","",'Races, Positions & Points'!#REF!) ->  | H17: =IF('Races, Positions & Points'!#REF!="","",'Races, Positions & Points'!#REF!) ->  | I17: =IF('Races, Positions & Points'!#REF!="","",'Races, Positions & Points'!#REF!) ->  | J17: =IF('Races, Positions & Points'!#REF!="","",'Races, Positions & Points'!#REF!) ->  | K17: =IF('Races, Positions & Points'!#REF!="","",'Races, Positions & Points'!#REF!) ->  | L17: =IF('Races, Positions & Points'!#REF!="","",'Races, Positions & Points'!#REF!) ->  | M17: =IF('Races, Positions & Points'!#REF!="","",'Races, Positions & Points'!#REF!) ->  | N17: =IF('Races, Positions & Points'!#REF!="","",'Races, Positions & Points'!#REF!) ->  | O17: =IF('Races, Positions & Points'!#REF!="","",'Races, Positions & Points'!#REF!) ->  | P17: =IF('Races, Positions & Points'!#REF!="","",'Races, Positions & Points'!#REF!) ->  | Q17: =IF('Races, Positions & Points'!#REF!="","",'Races, Positions & Points'!#REF!) ->  | R17: =IF('Races, Positions & Points'!#REF!="","",'Races, Positions & Points'!#REF!) ->  | S17: =IF('Races, Positions & Points'!#REF!="","",'Races, Positions & Points'!#REF!) ->  | T17: =IF('Races, Positions & Points'!#REF!="","",'Races, Positions & Points'!#REF!) ->  | U17: =IF('Races, Positions & Points'!#REF!="","",'Races, Positions & Points'!#REF!) ->  | V17: =IF('Races, Positions & Points'!#REF!="","",'Races, Positions & Points'!#REF!) ->  | W17: =IF('Races, Positions & Points'!#REF!="","",'Races, Positions & Points'!#REF!) ->  | X17: =IF('Races, Positions & Points'!#REF!="","",'Races, Positions & Points'!#REF!) ->  | Y17: =IF('Races, Positions & Points'!#REF!="","",'Races, Positions & Points'!#REF!) ->  | Z17: =IF('Races, Positions & Points'!#REF!="","",'Races, Positions & Points'!#REF!) ->  | AA17: =IF('Races, Positions & Points'!#REF!="","",'Races, Positions & Points'!#REF!) ->  | AB17: =IF('Races, Positions & Points'!#REF!="","",'Races, Positions & Points'!#REF!) ->  | AC17: =IF('Races, Positions & Points'!#REF!="","",'Races, Positions & Points'!#REF!) ->  | AD17: =IF('Races, Positions & Points'!#REF!="","",'Races, Positions & Points'!#REF!) ->  | AE17: =IF('Races, Positions & Points'!#REF!="","",'Races, Positions & Points'!#REF!) ->  | AF17: =IF('Races, Positions & Points'!#REF!="","",'Races, Positions & Points'!#REF!) ->  | AG17: =IF('Races, Positions & Points'!#REF!="","",'Races, Positions & Points'!#REF!) ->  | AH17: =IF('Races, Positions & Points'!#REF!="","",'Races, Positions & Points'!#REF!) ->  | AI17: =IF('Races, Positions & Points'!#REF!="","",'Races, Positions & Points'!#REF!) ->  | AJ17: =IF('Races, Positions & Points'!#REF!="","",'Races, Positions & Points'!#REF!) ->  | AK17: =IF('Races, Positions & Points'!#REF!="","",'Races, Positions & Points'!#REF!) ->  | AL17: =IF('Races, Positions & Points'!#REF!="","",'Races, Positions & Points'!#REF!) ->  | AM17: =IF('Races, Positions & Points'!#REF!="","",'Races, Positions & Points'!#REF!) ->  | AN17: =IF('Races, Positions & Points'!#REF!="","",'Races, Positions & Points'!#REF!) ->  | AO17: =IF('Races, Positions & Points'!#REF!="","",'Races, Positions & Points'!#REF!) ->  | AP17: =IF('Races, Positions & Points'!#REF!="","",'Races, Positions & Points'!#REF!) ->  | AQ17: =IF('Races, Positions & Points'!#REF!="","",'Races, Positions & Points'!#REF!) ->  | AR17: =IF('Races, Positions & Points'!#REF!="","",'Races, Positions & Points'!#REF!) ->  | AS17: =IF('Races, Positions & Points'!#REF!="","",'Races, Positions & Points'!#REF!) ->  | AT17: =IF('Races, Positions & Points'!#REF!="","",'Races, Positions & Points'!#REF!) ->  | AU17: =IF('Races, Positions & Points'!#REF!="","",'Races, Positions & Points'!#REF!) ->  | AV17: =IF('Races, Positions & Points'!#REF!="","",'Races, Positions & Points'!#REF!) ->  | AW17: =IF('Races, Positions & Points'!#REF!="","",'Races, Positions & Points'!#REF!) ->  | AX17: =IF('Races, Positions & Points'!#REF!="","",'Races, Positions & Points'!#REF!) ->  | AY17: =IF('Races, Positions & Points'!#REF!="","",'Races, Positions & Points'!#REF!) ->  | BH17: ='Races, Positions & Points'!#REF! -> 
A18: ='Races, Positions & Points'!#REF! ->  | B18: =IF('Races, Positions & Points'!#REF!="","",'Races, Positions & Points'!#REF!) ->  | C18: =IF('Races, Positions & Points'!#REF!="","",'Races, Positions & Points'!#REF!) ->  | D18: =IF('Races, Positions & Points'!#REF!="","",'Races, Positions & Points'!#REF!) ->  | E18: =IF('Races, Positions & Points'!#REF!="","",'Races, Positions & Points'!#REF!) ->  | F18: =IF('Races, Positions & Points'!#REF!="","",'Races, Positions & Points'!#REF!) ->  | G18: =IF('Races, Positions & Points'!#REF!="","",'Races, Positions & Points'!#REF!) ->  | H18: =IF('Races, Positions & Points'!#REF!="","",'Races, Positions & Points'!#REF!) ->  | I18: =IF('Races, Positions & Points'!#REF!="","",'Races, Positions & Points'!#REF!) ->  | J18: =IF('Races, Positions & Points'!#REF!="","",'Races, Positions & Points'!#REF!) ->  | K18: =IF('Races, Positions & Points'!#REF!="","",'Races, Positions & Points'!#REF!) ->  | L18: =IF('Races, Positions & Points'!#REF!="","",'Races, Positions & Points'!#REF!) ->  | M18: =IF('Races, Positions & Points'!#REF!="","",'Races, Positions & Points'!#REF!) ->  | N18: =IF('Races, Positions & Points'!#REF!="","",'Races, Positions & Points'!#REF!) ->  | O18: =IF('Races, Positions & Points'!#REF!="","",'Races, Positions & Points'!#REF!) ->  | P18: =IF('Races, Positions & Points'!#REF!="","",'Races, Positions & Points'!#REF!) ->  | Q18: =IF('Races, Positions & Points'!#REF!="","",'Races, Positions & Points'!#REF!) ->  | R18: =IF('Races, Positions & Points'!#REF!="","",'Races, Positions & Points'!#REF!) ->  | S18: =IF('Races, Positions & Points'!#REF!="","",'Races, Positions & Points'!#REF!) ->  | T18: =IF('Races, Positions & Points'!#REF!="","",'Races, Positions & Points'!#REF!) ->  | U18: =IF('Races, Positions & Points'!#REF!="","",'Races, Positions & Points'!#REF!) ->  | V18: =IF('Races, Positions & Points'!#REF!="","",'Races, Positions & Points'!#REF!) ->  | W18: =IF('Races, Positions & Points'!#REF!="","",'Races, Positions & Points'!#REF!) ->  | X18: =IF('Races, Positions & Points'!#REF!="","",'Races, Positions & Points'!#REF!) ->  | Y18: =IF('Races, Positions & Points'!#REF!="","",'Races, Positions & Points'!#REF!) ->  | Z18: =IF('Races, Positions & Points'!#REF!="","",'Races, Positions & Points'!#REF!) ->  | AA18: =IF('Races, Positions & Points'!#REF!="","",'Races, Positions & Points'!#REF!) ->  | AB18: =IF('Races, Positions & Points'!#REF!="","",'Races, Positions & Points'!#REF!) ->  | AC18: =IF('Races, Positions & Points'!#REF!="","",'Races, Positions & Points'!#REF!) ->  | AD18: =IF('Races, Positions & Points'!#REF!="","",'Races, Positions & Points'!#REF!) ->  | AE18: =IF('Races, Positions & Points'!#REF!="","",'Races, Positions & Points'!#REF!) ->  | AF18: =IF('Races, Positions & Points'!#REF!="","",'Races, Positions & Points'!#REF!) ->  | AG18: =IF('Races, Positions & Points'!#REF!="","",'Races, Positions & Points'!#REF!) ->  | AH18: =IF('Races, Positions & Points'!#REF!="","",'Races, Positions & Points'!#REF!) ->  | AI18: =IF('Races, Positions & Points'!#REF!="","",'Races, Positions & Points'!#REF!) ->  | AJ18: =IF('Races, Positions & Points'!#REF!="","",'Races, Positions & Points'!#REF!) ->  | AK18: =IF('Races, Positions & Points'!#REF!="","",'Races, Positions & Points'!#REF!) ->  | AL18: =IF('Races, Positions & Points'!#REF!="","",'Races, Positions & Points'!#REF!) ->  | AM18: =IF('Races, Positions & Points'!#REF!="","",'Races, Positions & Points'!#REF!) ->  | AN18: =IF('Races, Positions & Points'!#REF!="","",'Races, Positions & Points'!#REF!) ->  | AO18: =IF('Races, Positions & Points'!#REF!="","",'Races, Positions & Points'!#REF!) ->  | AP18: =IF('Races, Positions & Points'!#REF!="","",'Races, Positions & Points'!#REF!) ->  | AQ18: =IF('Races, Positions & Points'!#REF!="","",'Races, Positions & Points'!#REF!) ->  | AR18: =IF('Races, Positions & Points'!#REF!="","",'Races, Positions & Points'!#REF!) ->  | AS18: =IF('Races, Positions & Points'!#REF!="","",'Races, Positions & Points'!#REF!) ->  | AT18: =IF('Races, Positions & Points'!#REF!="","",'Races, Positions & Points'!#REF!) ->  | AU18: =IF('Races, Positions & Points'!#REF!="","",'Races, Positions & Points'!#REF!) ->  | AV18: =IF('Races, Positions & Points'!#REF!="","",'Races, Positions & Points'!#REF!) ->  | AW18: =IF('Races, Positions & Points'!#REF!="","",'Races, Positions & Points'!#REF!) ->  | AX18: =IF('Races, Positions & Points'!#REF!="","",'Races, Positions & Points'!#REF!) ->  | AY18: =IF('Races, Positions & Points'!#REF!="","",'Races, Positions & Points'!#REF!) ->  | BH18: ='Races, Positions & Points'!#REF! -> 
A19: ='Races, Positions & Points'!#REF! ->  | B19: =IF('Races, Positions & Points'!#REF!="","",'Races, Positions & Points'!#REF!) ->  | C19: =IF('Races, Positions & Points'!#REF!="","",'Races, Positions & Points'!#REF!) ->  | D19: =IF('Races, Positions & Points'!#REF!="","",'Races, Positions & Points'!#REF!) ->  | E19: =IF('Races, Positions & Points'!#REF!="","",'Races, Positions & Points'!#REF!) ->  | F19: =IF('Races, Positions & Points'!#REF!="","",'Races, Positions & Points'!#REF!) ->  | G19: =IF('Races, Positions & Points'!#REF!="","",'Races, Positions & Points'!#REF!) ->  | H19: =IF('Races, Positions & Points'!#REF!="","",'Races, Positions & Points'!#REF!) ->  | I19: =IF('Races, Positions & Points'!#REF!="","",'Races, Positions & Points'!#REF!) ->  | J19: =IF('Races, Positions & Points'!#REF!="","",'Races, Positions & Points'!#REF!) ->  | K19: =IF('Races, Positions & Points'!#REF!="","",'Races, Positions & Points'!#REF!) ->  | L19: =IF('Races, Positions & Points'!#REF!="","",'Races, Positions & Points'!#REF!) ->  | M19: =IF('Races, Positions & Points'!#REF!="","",'Races, Positions & Points'!#REF!) ->  | N19: =IF('Races, Positions & Points'!#REF!="","",'Races, Positions & Points'!#REF!) ->  | O19: =IF('Races, Positions & Points'!#REF!="","",'Races, Positions & Points'!#REF!) ->  | P19: =IF('Races, Positions & Points'!#REF!="","",'Races, Positions & Points'!#REF!) ->  | Q19: =IF('Races, Positions & Points'!#REF!="","",'Races, Positions & Points'!#REF!) ->  | R19: =IF('Races, Positions & Points'!#REF!="","",'Races, Positions & Points'!#REF!) ->  | S19: =IF('Races, Positions & Points'!#REF!="","",'Races, Positions & Points'!#REF!) ->  | T19: =IF('Races, Positions & Points'!#REF!="","",'Races, Positions & Points'!#REF!) ->  | U19: =IF('Races, Positions & Points'!#REF!="","",'Races, Positions & Points'!#REF!) ->  | V19: =IF('Races, Positions & Points'!#REF!="","",'Races, Positions & Points'!#REF!) ->  | W19: =IF('Races, Positions & Points'!#REF!="","",'Races, Positions & Points'!#REF!) ->  | X19: =IF('Races, Positions & Points'!#REF!="","",'Races, Positions & Points'!#REF!) ->  | Y19: =IF('Races, Positions & Points'!#REF!="","",'Races, Positions & Points'!#REF!) ->  | Z19: =IF('Races, Positions & Points'!#REF!="","",'Races, Positions & Points'!#REF!) ->  | AA19: =IF('Races, Positions & Points'!#REF!="","",'Races, Positions & Points'!#REF!) ->  | AB19: =IF('Races, Positions & Points'!#REF!="","",'Races, Positions & Points'!#REF!) ->  | AC19: =IF('Races, Positions & Points'!#REF!="","",'Races, Positions & Points'!#REF!) ->  | AD19: =IF('Races, Positions & Points'!#REF!="","",'Races, Positions & Points'!#REF!) ->  | AE19: =IF('Races, Positions & Points'!#REF!="","",'Races, Positions & Points'!#REF!) ->  | AF19: =IF('Races, Positions & Points'!#REF!="","",'Races, Positions & Points'!#REF!) ->  | AG19: =IF('Races, Positions & Points'!#REF!="","",'Races, Positions & Points'!#REF!) ->  | AH19: =IF('Races, Positions & Points'!#REF!="","",'Races, Positions & Points'!#REF!) ->  | AI19: =IF('Races, Positions & Points'!#REF!="","",'Races, Positions & Points'!#REF!) ->  | AJ19: =IF('Races, Positions & Points'!#REF!="","",'Races, Positions & Points'!#REF!) ->  | AK19: =IF('Races, Positions & Points'!#REF!="","",'Races, Positions & Points'!#REF!) ->  | AL19: =IF('Races, Positions & Points'!#REF!="","",'Races, Positions & Points'!#REF!) ->  | AM19: =IF('Races, Positions & Points'!#REF!="","",'Races, Positions & Points'!#REF!) ->  | AN19: =IF('Races, Positions & Points'!#REF!="","",'Races, Positions & Points'!#REF!) ->  | AO19: =IF('Races, Positions & Points'!#REF!="","",'Races, Positions & Points'!#REF!) ->  | AP19: =IF('Races, Positions & Points'!#REF!="","",'Races, Positions & Points'!#REF!) ->  | AQ19: =IF('Races, Positions & Points'!#REF!="","",'Races, Positions & Points'!#REF!) ->  | AR19: =IF('Races, Positions & Points'!#REF!="","",'Races, Positions & Points'!#REF!) ->  | AS19: =IF('Races, Positions & Points'!#REF!="","",'Races, Positions & Points'!#REF!) ->  | AT19: =IF('Races, Positions & Points'!#REF!="","",'Races, Positions & Points'!#REF!) ->  | AU19: =IF('Races, Positions & Points'!#REF!="","",'Races, Positions & Points'!#REF!) ->  | AV19: =IF('Races, Positions & Points'!#REF!="","",'Races, Positions & Points'!#REF!) ->  | AW19: =IF('Races, Positions & Points'!#REF!="","",'Races, Positions & Points'!#REF!) ->  | AX19: =IF('Races, Positions & Points'!#REF!="","",'Races, Positions & Points'!#REF!) ->  | AY19: =IF('Races, Positions & Points'!#REF!="","",'Races, Positions & Points'!#REF!) ->  | BH19: ='Races, Positions & Points'!#REF! -> 
A20: ='Races, Positions & Points'!#REF! ->  | B20: =IF('Races, Positions & Points'!#REF!="","",'Races, Positions & Points'!#REF!) ->  | C20: =IF('Races, Positions & Points'!#REF!="","",'Races, Positions & Points'!#REF!) ->  | D20: =IF('Races, Positions & Points'!#REF!="","",'Races, Positions & Points'!#REF!) ->  | E20: =IF('Races, Positions & Points'!#REF!="","",'Races, Positions & Points'!#REF!) ->  | F20: =IF('Races, Positions & Points'!#REF!="","",'Races, Positions & Points'!#REF!) ->  | G20: =IF('Races, Positions & Points'!#REF!="","",'Races, Positions & Points'!#REF!) ->  | H20: =IF('Races, Positions & Points'!#REF!="","",'Races, Positions & Points'!#REF!) ->  | I20: =IF('Races, Positions & Points'!#REF!="","",'Races, Positions & Points'!#REF!) ->  | J20: =IF('Races, Positions & Points'!#REF!="","",'Races, Positions & Points'!#REF!) ->  | K20: =IF('Races, Positions & Points'!#REF!="","",'Races, Positions & Points'!#REF!) ->  | L20: =IF('Races, Positions & Points'!#REF!="","",'Races, Positions & Points'!#REF!) ->  | M20: =IF('Races, Positions & Points'!#REF!="","",'Races, Positions & Points'!#REF!) ->  | N20: =IF('Races, Positions & Points'!#REF!="","",'Races, Positions & Points'!#REF!) ->  | O20: =IF('Races, Positions & Points'!#REF!="","",'Races, Positions & Points'!#REF!) ->  | P20: =IF('Races, Positions & Points'!#REF!="","",'Races, Positions & Points'!#REF!) ->  | Q20: =IF('Races, Positions & Points'!#REF!="","",'Races, Positions & Points'!#REF!) ->  | R20: =IF('Races, Positions & Points'!#REF!="","",'Races, Positions & Points'!#REF!) ->  | S20: =IF('Races, Positions & Points'!#REF!="","",'Races, Positions & Points'!#REF!) ->  | T20: =IF('Races, Positions & Points'!#REF!="","",'Races, Positions & Points'!#REF!) ->  | U20: =IF('Races, Positions & Points'!#REF!="","",'Races, Positions & Points'!#REF!) ->  | V20: =IF('Races, Positions & Points'!#REF!="","",'Races, Positions & Points'!#REF!) ->  | W20: =IF('Races, Positions & Points'!#REF!="","",'Races, Positions & Points'!#REF!) ->  | X20: =IF('Races, Positions & Points'!#REF!="","",'Races, Positions & Points'!#REF!) ->  | Y20: =IF('Races, Positions & Points'!#REF!="","",'Races, Positions & Points'!#REF!) ->  | Z20: =IF('Races, Positions & Points'!#REF!="","",'Races, Positions & Points'!#REF!) ->  | AA20: =IF('Races, Positions & Points'!#REF!="","",'Races, Positions & Points'!#REF!) ->  | AB20: =IF('Races, Positions & Points'!#REF!="","",'Races, Positions & Points'!#REF!) ->  | AC20: =IF('Races, Positions & Points'!#REF!="","",'Races, Positions & Points'!#REF!) ->  | AD20: =IF('Races, Positions & Points'!#REF!="","",'Races, Positions & Points'!#REF!) ->  | AE20: =IF('Races, Positions & Points'!#REF!="","",'Races, Positions & Points'!#REF!) ->  | AF20: =IF('Races, Positions & Points'!#REF!="","",'Races, Positions & Points'!#REF!) ->  | AG20: =IF('Races, Positions & Points'!#REF!="","",'Races, Positions & Points'!#REF!) ->  | AH20: =IF('Races, Positions & Points'!#REF!="","",'Races, Positions & Points'!#REF!) ->  | AI20: =IF('Races, Positions & Points'!#REF!="","",'Races, Positions & Points'!#REF!) ->  | AJ20: =IF('Races, Positions & Points'!#REF!="","",'Races, Positions & Points'!#REF!) ->  | AK20: =IF('Races, Positions & Points'!#REF!="","",'Races, Positions & Points'!#REF!) ->  | AL20: =IF('Races, Positions & Points'!#REF!="","",'Races, Positions & Points'!#REF!) ->  | AM20: =IF('Races, Positions & Points'!#REF!="","",'Races, Positions & Points'!#REF!) ->  | AN20: =IF('Races, Positions & Points'!#REF!="","",'Races, Positions & Points'!#REF!) ->  | AO20: =IF('Races, Positions & Points'!#REF!="","",'Races, Positions & Points'!#REF!) ->  | AP20: =IF('Races, Positions & Points'!#REF!="","",'Races, Positions & Points'!#REF!) ->  | AQ20: =IF('Races, Positions & Points'!#REF!="","",'Races, Positions & Points'!#REF!) ->  | AR20: =IF('Races, Positions & Points'!#REF!="","",'Races, Positions & Points'!#REF!) ->  | AS20: =IF('Races, Positions & Points'!#REF!="","",'Races, Positions & Points'!#REF!) ->  | AT20: =IF('Races, Positions & Points'!#REF!="","",'Races, Positions & Points'!#REF!) ->  | AU20: =IF('Races, Positions & Points'!#REF!="","",'Races, Positions & Points'!#REF!) ->  | AV20: =IF('Races, Positions & Points'!#REF!="","",'Races, Positions & Points'!#REF!) ->  | AW20: =IF('Races, Positions & Points'!#REF!="","",'Races, Positions & Points'!#REF!) ->  | AX20: =IF('Races, Positions & Points'!#REF!="","",'Races, Positions & Points'!#REF!) ->  | AY20: =IF('Races, Positions & Points'!#REF!="","",'Races, Positions & Points'!#REF!) ->  | BH20: ='Races, Positions & Points'!#REF! -> 
CB21: =IF(MIN(C21,K21,L21,AH21,AI21,,AK21,AL21)>0,MIN(C21,K21,L21,AH21,AI21,,AK21,AL21),"") ->  | CC21: =IF(MIN(E21,F21,G21,H21,Z21,AF21,AG21,AP21,AQ21,AU21)>0,MIN(E21,F21,G21,H21,Z21,AF21,AG21,AP21,AQ21,AU21),"") ->  | CD21: =IF(MIN(T21,V21)>0,MIN(T21,V21),"") ->  | CE21: =IF(MIN(W21,X21)>0,MIN(W21,X21),"") ->  | CF21: =IF(MIN(B21,M21,N21,AR21,AS21)>0,MIN(B21,M21,N21,AR21,AS21),"") ->  | CG21: =IF(MIN(D21,O21,AB21,AC21,AE21)>0,MIN(D21,O21,AB21,AC21,AE21),"") ->  | CH21: =IF(MIN(I21,J21)>0,MIN(I21,J21),"") ->  | CI21: =IF(Q21>0,Q21,"") ->  | CJ21: =IF(MIN(S21,AM21,AT21,AY21)>0,MIN(S21,AM21,AT21,AY21),"") ->  | CK21: =IF(MIN(P21,R21)>0,MIN(P21,R21),"") ->  | CL21: =IF(U21>0,U21,"") ->  | CM21: =IF(MIN(Y21,AO21)>0,MIN(Y21,AO21),"") ->  | CN21: =IF(AA21>0,AA21,"") ->  | CO21: =IF(AD21>0,AD21,"") ->  | CP21: =IF(AJ21>0,AJ21,"") ->  | CQ21: =IF(MIN(AV21,AW21)>0,MIN(AV21,AW21),"") ->  | CS21: =IF(MIN(DF21:DL21)>0,MIN(DF21:DL21),"") ->  | CT21: =IF(ISERROR(SMALL(DF21:DL21,2)),"",SMALL(DF21:DL21,2)) ->  | CU21: =IF(ISERROR(SMALL(DF21:DL21,2)),"",AVERAGE(CS21,CT21)) ->  | CV21: =IF(ISERROR(CS21*1.2),"",IF(CS21<50,CS21+10,CS21*1.2)) ->  | CX21: =IF(MIN(DC21:DE21)>0,MIN(DC21:DE21),"") ->  | CY21: =IF(ISERROR(SMALL(DC21:DE21,2)),"",SMALL(DC21:DE21,2)) ->  | CZ21: =IF(ISERROR(SMALL(DC21:DE21,2)),"",AVERAGE(CX21,CY21)) ->  | DA21: =IF(ISERROR(CX21*1.2),"",IF(CX21<50,CX21+10,CX21*1.2)) ->  | DC21: =IF(MIN(C21,K21,L21,AH21,AI21,AK21,AL21)>0,MIN(C21,K21,L21,AH21,AI21,AK21,AL21),"") ->  | DD21: =IF(MIN(Z21,AF21,AG21,AP21,AQ21,AU21)>0,MIN(Z21,AF21,AG21,AP21,AQ21,AU21),"") ->  | DE21: =IF(MIN(T21,V21)>0,MIN(T21,V21),"") ->  | DF21: =IF(MIN(M21,N21,AR21,AS21)>0,MIN(M21,N21,AR21,AS21),"") ->  | DG21: =IF(MIN(O21,AE21),MIN(O21,AE21),"") ->  | DH21: =IF(J21>0,J21,"") ->  | DI21: =IF(MIN(AM21,AY21)>0,MIN(AM21,AY21),"") ->  | DJ21: =IF(R21>0,R21,"") ->  | DK21: =IF(AO21>0,AO21,"") ->  | DL21: =IF(MIN(AV21,AW21),MIN(AV21,AW21),"") -> 
A22: ='Races, Positions & Points'!#REF! ->  | B22: =IF('Races, Positions & Points'!#REF!="","",'Races, Positions & Points'!#REF!) ->  | C22: =IF('Races, Positions & Points'!#REF!="","",'Races, Positions & Points'!#REF!) ->  | D22: =IF('Races, Positions & Points'!#REF!="","",'Races, Positions & Points'!#REF!) ->  | E22: =IF('Races, Positions & Points'!#REF!="","",'Races, Positions & Points'!#REF!) ->  | F22: =IF('Races, Positions & Points'!#REF!="","",'Races, Positions & Points'!#REF!) ->  | G22: =IF('Races, Positions & Points'!#REF!="","",'Races, Positions & Points'!#REF!) ->  | H22: =IF('Races, Positions & Points'!#REF!="","",'Races, Positions & Points'!#REF!) ->  | I22: =IF('Races, Positions & Points'!#REF!="","",'Races, Positions & Points'!#REF!) ->  | J22: =IF('Races, Positions & Points'!#REF!="","",'Races, Positions & Points'!#REF!) ->  | K22: =IF('Races, Positions & Points'!#REF!="","",'Races, Positions & Points'!#REF!) ->  | L22: =IF('Races, Positions & Points'!#REF!="","",'Races, Positions & Points'!#REF!) ->  | M22: =IF('Races, Positions & Points'!#REF!="","",'Races, Positions & Points'!#REF!) ->  | N22: =IF('Races, Positions & Points'!#REF!="","",'Races, Positions & Points'!#REF!) ->  | O22: =IF('Races, Positions & Points'!#REF!="","",'Races, Positions & Points'!#REF!) ->  | P22: =IF('Races, Positions & Points'!#REF!="","",'Races, Positions & Points'!#REF!) ->  | Q22: =IF('Races, Positions & Points'!#REF!="","",'Races, Positions & Points'!#REF!) ->  | R22: =IF('Races, Positions & Points'!#REF!="","",'Races, Positions & Points'!#REF!) ->  | S22: =IF('Races, Positions & Points'!#REF!="","",'Races, Positions & Points'!#REF!) ->  | T22: =IF('Races, Positions & Points'!#REF!="","",'Races, Positions & Points'!#REF!) ->  | U22: =IF('Races, Positions & Points'!#REF!="","",'Races, Positions & Points'!#REF!) ->  | V22: =IF('Races, Positions & Points'!#REF!="","",'Races, Positions & Points'!#REF!) ->  | W22: =IF('Races, Positions & Points'!#REF!="","",'Races, Positions & Points'!#REF!) ->  | X22: =IF('Races, Positions & Points'!#REF!="","",'Races, Positions & Points'!#REF!) ->  | Y22: =IF('Races, Positions & Points'!#REF!="","",'Races, Positions & Points'!#REF!) ->  | Z22: =IF('Races, Positions & Points'!#REF!="","",'Races, Positions & Points'!#REF!) ->  | AA22: =IF('Races, Positions & Points'!#REF!="","",'Races, Positions & Points'!#REF!) ->  | AB22: =IF('Races, Positions & Points'!#REF!="","",'Races, Positions & Points'!#REF!) ->  | AC22: =IF('Races, Positions & Points'!#REF!="","",'Races, Positions & Points'!#REF!) ->  | AD22: =IF('Races, Positions & Points'!#REF!="","",'Races, Positions & Points'!#REF!) ->  | AE22: =IF('Races, Positions & Points'!#REF!="","",'Races, Positions & Points'!#REF!) ->  | AF22: =IF('Races, Positions & Points'!#REF!="","",'Races, Positions & Points'!#REF!) ->  | AG22: =IF('Races, Positions & Points'!#REF!="","",'Races, Positions & Points'!#REF!) ->  | AH22: =IF('Races, Positions & Points'!#REF!="","",'Races, Positions & Points'!#REF!) ->  | AI22: =IF('Races, Positions & Points'!#REF!="","",'Races, Positions & Points'!#REF!) ->  | AJ22: =IF('Races, Positions & Points'!#REF!="","",'Races, Positions & Points'!#REF!) ->  | AK22: =IF('Races, Positions & Points'!#REF!="","",'Races, Positions & Points'!#REF!) ->  | AL22: =IF('Races, Positions & Points'!#REF!="","",'Races, Positions & Points'!#REF!) ->  | AM22: =IF('Races, Positions & Points'!#REF!="","",'Races, Positions & Points'!#REF!) ->  | AN22: =IF('Races, Positions & Points'!#REF!="","",'Races, Positions & Points'!#REF!) ->  | AO22: =IF('Races, Positions & Points'!#REF!="","",'Races, Positions & Points'!#REF!) ->  | AP22: =IF('Races, Positions & Points'!#REF!="","",'Races, Positions & Points'!#REF!) ->  | AQ22: =IF('Races, Positions & Points'!#REF!="","",'Races, Positions & Points'!#REF!) ->  | AR22: =IF('Races, Positions & Points'!#REF!="","",'Races, Positions & Points'!#REF!) ->  | AS22: =IF('Races, Positions & Points'!#REF!="","",'Races, Positions & Points'!#REF!) ->  | AT22: =IF('Races, Positions & Points'!#REF!="","",'Races, Positions & Points'!#REF!) ->  | AU22: =IF('Races, Positions & Points'!#REF!="","",'Races, Positions & Points'!#REF!) ->  | AV22: =IF('Races, Positions & Points'!#REF!="","",'Races, Positions & Points'!#REF!) ->  | AW22: =IF('Races, Positions & Points'!#REF!="","",'Races, Positions & Points'!#REF!) ->  | AX22: =IF('Races, Positions & Points'!#REF!="","",'Races, Positions & Points'!#REF!) ->  | AY22: =IF('Races, Positions & Points'!#REF!="","",'Races, Positions & Points'!#REF!) ->  | BA22: =SUMPRODUCT(--(B$4:AY$4="In"),--(B$3:AY$3>5),--(B$5:AY$5="Y"),--(B22:AY22<>"")) ->  | BB22: =SUMPRODUCT(--(B$4:AY$4="Out"),--(B$3:AY$3>5),--(B$5:AY$5="Y"),--(B22:AY22<>"")) ->  | BC22: =SUMPRODUCT(--(B$4:AY$4="In"),--(B$3:AY$3=5),--(B$5:AY$5="Y"),--(B22:AY22<>"")) ->  | BD22: =SUMPRODUCT(--(B$4:AY$4="Out"),--(B$3:AY$3=5),--(B$5:AY$5="Y"),--(B22:AY22<>"")) ->  | BE22: =SUMPRODUCT(--(B$4:AY$4="In"),--(B$3:AY$3=0),--(B$5:AY$5="Y"),--(B22:AY22<>"")) ->  | BF22: =SUMPRODUCT(--(B$4:AY$4="Out"),--(B$3:AY$3=0),--(B$5:AY$5="Y"),--(B22:AY22<>"")) ->  | BH22: ='Races, Positions & Points'!#REF! ->  | BI22: ='Races, Positions & Points'!#REF! ->  | BJ22: =IF(MIN(CF22:CQ22)<999.99,IF(MIN(CF22:CQ22)>0,MIN(CF22:CQ22),""),"") ->  | BK22: =IF(ISERROR(SMALL(CF22:CQ22,2)),"",SMALL(CF22:CQ22,2)) ->  | BL22: =IF(ISERROR(SMALL(CF22:CQ22,2)),"",ROUND(AVERAGE(BJ22:BK22),2)) ->  | BM22: =IF(BI22<999.99,IF(AVERAGE(BI22,BJ22)>0,ROUND(AVERAGE(BI22,BJ22),2),""),"") ->  | BN22: =IF(ISERROR(BJ22*1.2),"",IF(BJ22<50,BJ22+10,ROUND(BJ22*1.2,2))) ->  | BO22: =MIN(BI22,BL22,BM22,BN22) ->  | BP22: =IF(BI22*0.2<10,BI22+10,IF(BI22*1.2>999.99,999.99,ROUND(BI22*1.2,2))) ->  | BQ22: =MIN(BL22,BN22,BP22) ->  | BS22: =IF(MIN(CB22:CE22)<999.99,IF(MIN(CB22:CE22)>0,MIN(CB22:CE22),""),"") ->  | BT22: =IF(ISERROR(SMALL(CB22:CE22,2)),"",SMALL(CB22:CE22,2)) ->  | BU22: =IF(ISERROR(SMALL(CB22:CE22,2)),"",ROUND(AVERAGE(BS22:BT22),2)) ->  | BV22: =IF(BI22<999.99,IF(AVERAGE(BI22,BS22)>0,ROUND(AVERAGE(BI22,BS22),2),""),"") ->  | BW22: =IF(ISERROR(BS22*1.2),"",IF(BS22<50,BS22+10,ROUND(BS22*1.2,2))) ->  | BX22: =MIN(BI22,BU22,BV22,BW22) ->  | BY22: =IF(BI22*0.2<10,BI22+10,IF(BI22*1.2>999.99,999.99,ROUND(BI22*1.2,2))) ->  | BZ22: =MIN(BU22,BW22,BY22) ->  | CB22: =IF(MIN(C22,K22,L22,AH22,AI22,AK22,AL22)>0,MIN(C22,K22,L22,AH22,AI22,AK22,AL22),"") ->  | CS22: =IF(MIN(DF22:DL22)>0,MIN(DF22:DL22),"") ->  | CT22: =IF(ISERROR(SMALL(DF22:DL22,2)),"",SMALL(DF22:DL22,2)) ->  | CU22: =IF(ISERROR(SMALL(DF22:DL22,2)),"",AVERAGE(CS22,CT22)) ->  | CV22: =IF(ISERROR(CS22*1.2),"",IF(CS22<50,CS22+10,IF(CS22<999.99,CS22*1.2,""))) ->  | CX22: =IF(MIN(DC22:DE22)>0,MIN(DC22:DE22),"") ->  | CY22: =IF(ISERROR(SMALL(DC22:DE22,2)),"",SMALL(DC22:DE22,2)) ->  | CZ22: =IF(ISERROR(SMALL(DC22:DE22,2)),"",AVERAGE(CX22,CY22)) ->  | DA22: =IF(ISERROR(CX22*1.2),"",IF(CX22<50,CX22+10,CX22*1.2)) ->  | DK22: =IF(AO22>0,AO22,"") -> 
A23: ='Races, Positions & Points'!#REF! ->  | B23: =IF('Races, Positions & Points'!#REF!="","",'Races, Positions & Points'!#REF!) ->  | C23: =IF('Races, Positions & Points'!#REF!="","",'Races, Positions & Points'!#REF!) ->  | D23: =IF('Races, Positions & Points'!#REF!="","",'Races, Positions & Points'!#REF!) ->  | E23: =IF('Races, Positions & Points'!#REF!="","",'Races, Positions & Points'!#REF!) ->  | F23: =IF('Races, Positions & Points'!#REF!="","",'Races, Positions & Points'!#REF!) ->  | G23: =IF('Races, Positions & Points'!#REF!="","",'Races, Positions & Points'!#REF!) ->  | H23: =IF('Races, Positions & Points'!#REF!="","",'Races, Positions & Points'!#REF!) ->  | I23: =IF('Races, Positions & Points'!#REF!="","",'Races, Positions & Points'!#REF!) ->  | J23: =IF('Races, Positions & Points'!#REF!="","",'Races, Positions & Points'!#REF!) ->  | K23: =IF('Races, Positions & Points'!#REF!="","",'Races, Positions & Points'!#REF!) ->  | L23: =IF('Races, Positions & Points'!#REF!="","",'Races, Positions & Points'!#REF!) ->  | M23: =IF('Races, Positions & Points'!#REF!="","",'Races, Positions & Points'!#REF!) ->  | N23: =IF('Races, Positions & Points'!#REF!="","",'Races, Positions & Points'!#REF!) ->  | O23: =IF('Races, Positions & Points'!#REF!="","",'Races, Positions & Points'!#REF!) ->  | P23: =IF('Races, Positions & Points'!#REF!="","",'Races, Positions & Points'!#REF!) ->  | Q23: =IF('Races, Positions & Points'!#REF!="","",'Races, Positions & Points'!#REF!) ->  | R23: =IF('Races, Positions & Points'!#REF!="","",'Races, Positions & Points'!#REF!) ->  | S23: =IF('Races, Positions & Points'!#REF!="","",'Races, Positions & Points'!#REF!) ->  | T23: =IF('Races, Positions & Points'!#REF!="","",'Races, Positions & Points'!#REF!) ->  | U23: =IF('Races, Positions & Points'!#REF!="","",'Races, Positions & Points'!#REF!) ->  | V23: =IF('Races, Positions & Points'!#REF!="","",'Races, Positions & Points'!#REF!) ->  | W23: =IF('Races, Positions & Points'!#REF!="","",'Races, Positions & Points'!#REF!) ->  | X23: =IF('Races, Positions & Points'!#REF!="","",'Races, Positions & Points'!#REF!) ->  | Y23: =IF('Races, Positions & Points'!#REF!="","",'Races, Positions & Points'!#REF!) ->  | Z23: =IF('Races, Positions & Points'!#REF!="","",'Races, Positions & Points'!#REF!) ->  | AA23: =IF('Races, Positions & Points'!#REF!="","",'Races, Positions & Points'!#REF!) ->  | AB23: =IF('Races, Positions & Points'!#REF!="","",'Races, Positions & Points'!#REF!) ->  | AC23: =IF('Races, Positions & Points'!#REF!="","",'Races, Positions & Points'!#REF!) ->  | AD23: =IF('Races, Positions & Points'!#REF!="","",'Races, Positions & Points'!#REF!) ->  | AE23: =IF('Races, Positions & Points'!#REF!="","",'Races, Positions & Points'!#REF!) ->  | AF23: =IF('Races, Positions & Points'!#REF!="","",'Races, Positions & Points'!#REF!) ->  | AG23: =IF('Races, Positions & Points'!#REF!="","",'Races, Positions & Points'!#REF!) ->  | AH23: =IF('Races, Positions & Points'!#REF!="","",'Races, Positions & Points'!#REF!) ->  | AI23: =IF('Races, Positions & Points'!#REF!="","",'Races, Positions & Points'!#REF!) ->  | AJ23: =IF('Races, Positions & Points'!#REF!="","",'Races, Positions & Points'!#REF!) ->  | AK23: =IF('Races, Positions & Points'!#REF!="","",'Races, Positions & Points'!#REF!) ->  | AL23: =IF('Races, Positions & Points'!#REF!="","",'Races, Positions & Points'!#REF!) ->  | AM23: =IF('Races, Positions & Points'!#REF!="","",'Races, Positions & Points'!#REF!) ->  | AN23: =IF('Races, Positions & Points'!#REF!="","",'Races, Positions & Points'!#REF!) ->  | AO23: =IF('Races, Positions & Points'!#REF!="","",'Races, Positions & Points'!#REF!) ->  | AP23: =IF('Races, Positions & Points'!#REF!="","",'Races, Positions & Points'!#REF!) ->  | AQ23: =IF('Races, Positions & Points'!#REF!="","",'Races, Positions & Points'!#REF!) ->  | AR23: =IF('Races, Positions & Points'!#REF!="","",'Races, Positions & Points'!#REF!) ->  | AS23: =IF('Races, Positions & Points'!#REF!="","",'Races, Positions & Points'!#REF!) ->  | AT23: =IF('Races, Positions & Points'!#REF!="","",'Races, Positions & Points'!#REF!) ->  | AU23: =IF('Races, Positions & Points'!#REF!="","",'Races, Positions & Points'!#REF!) ->  | AV23: =IF('Races, Positions & Points'!#REF!="","",'Races, Positions & Points'!#REF!) ->  | AW23: =IF('Races, Positions & Points'!#REF!="","",'Races, Positions & Points'!#REF!) ->  | AX23: =IF('Races, Positions & Points'!#REF!="","",'Races, Positions & Points'!#REF!) ->  | AY23: =IF('Races, Positions & Points'!#REF!="","",'Races, Positions & Points'!#REF!) ->  | BH23: ='Races, Positions & Points'!#REF! ->  | BI23: ='Races, Positions & Points'!#REF! ->  | BJ23: =IF(MIN(CF23:CQ23)<999.99,IF(MIN(CF23:CQ23)>0,MIN(CF23:CQ23),""),"") ->  | BK23: =IF(ISERROR(SMALL(CF23:CQ23,2)),"",SMALL(CF23:CQ23,2)) ->  | BL23: =IF(ISERROR(SMALL(CF23:CQ23,2)),"",ROUND(AVERAGE(BJ23:BK23),2)) ->  | BM23: =IF(BI23<999.99,IF(AVERAGE(BI23,BJ23)>0,ROUND(AVERAGE(BI23,BJ23),2),""),"") ->  | BN23: =IF(ISERROR(BJ23*1.2),"",IF(BJ23<50,BJ23+10,ROUND(BJ23*1.2,2))) ->  | BO23: =MIN(BI23,BL23,BM23,BN23) ->  | BP23: =IF(BI23*0.2<10,BI23+10,IF(BI23*1.2>999.99,999.99,ROUND(BI23*1.2,2))) ->  | BQ23: =MIN(BL23,BN23,BP23) ->  | BS23: =IF(MIN(CB23:CE23)<999.99,IF(MIN(CB23:CE23)>0,MIN(CB23:CE23),""),"") ->  | BT23: =IF(ISERROR(SMALL(CB23:CE23,2)),"",SMALL(CB23:CE23,2)) ->  | BU23: =IF(ISERROR(SMALL(CB23:CE23,2)),"",ROUND(AVERAGE(BS23:BT23),2)) ->  | BV23: =IF(BI23<999.99,IF(AVERAGE(BI23,BS23)>0,ROUND(AVERAGE(BI23,BS23),2),""),"") ->  | BW23: =IF(ISERROR(BS23*1.2),"",IF(BS23<50,BS23+10,ROUND(BS23*1.2,2))) ->  | BX23: =MIN(BI23,BU23,BV23,BW23) ->  | BY23: =IF(BI23*0.2<10,BI23+10,IF(BI23*1.2>999.99,999.99,ROUND(BI23*1.2,2))) ->  | BZ23: =MIN(BU23,BW23,BY23) ->  | CS23: =IF(MIN(DF23:DL23)>0,MIN(DF23:DL23),"") ->  | CT23: =IF(ISERROR(SMALL(DF23:DL23,2)),"",SMALL(DF23:DL23,2)) ->  | CX23: =IF(MIN(DC23:DE23)>0,MIN(DC23:DE23),"") ->  | CY23: =IF(ISERROR(SMALL(DC23:DE23,2)),"",SMALL(DC23:DE23,2)) ->  | CZ23: =IF(ISERROR(SMALL(DC23:DE23,2)),"",AVERAGE(CX23,CY23)) ->  | DA23: =IF(ISERROR(CX23*1.2),"",IF(CX23<50,CX23+10,CX23*1.2)) -> 
A24: ='Races, Positions & Points'!#REF! ->  | B24: =IF('Races, Positions & Points'!#REF!="","",'Races, Positions & Points'!#REF!) ->  | C24: =IF('Races, Positions & Points'!#REF!="","",'Races, Positions & Points'!#REF!) ->  | D24: =IF('Races, Positions & Points'!#REF!="","",'Races, Positions & Points'!#REF!) ->  | E24: =IF('Races, Positions & Points'!#REF!="","",'Races, Positions & Points'!#REF!) ->  | F24: =IF('Races, Positions & Points'!#REF!="","",'Races, Positions & Points'!#REF!) ->  | G24: =IF('Races, Positions & Points'!#REF!="","",'Races, Positions & Points'!#REF!) ->  | H24: =IF('Races, Positions & Points'!#REF!="","",'Races, Positions & Points'!#REF!) ->  | I24: =IF('Races, Positions & Points'!#REF!="","",'Races, Positions & Points'!#REF!) ->  | J24: =IF('Races, Positions & Points'!#REF!="","",'Races, Positions & Points'!#REF!) ->  | K24: =IF('Races, Positions & Points'!#REF!="","",'Races, Positions & Points'!#REF!) ->  | L24: =IF('Races, Positions & Points'!#REF!="","",'Races, Positions & Points'!#REF!) ->  | M24: =IF('Races, Positions & Points'!#REF!="","",'Races, Positions & Points'!#REF!) ->  | N24: =IF('Races, Positions & Points'!#REF!="","",'Races, Positions & Points'!#REF!) ->  | O24: =IF('Races, Positions & Points'!#REF!="","",'Races, Positions & Points'!#REF!) ->  | P24: =IF('Races, Positions & Points'!#REF!="","",'Races, Positions & Points'!#REF!) ->  | Q24: =IF('Races, Positions & Points'!#REF!="","",'Races, Positions & Points'!#REF!) ->  | R24: =IF('Races, Positions & Points'!#REF!="","",'Races, Positions & Points'!#REF!) ->  | S24: =IF('Races, Positions & Points'!#REF!="","",'Races, Positions & Points'!#REF!) ->  | T24: =IF('Races, Positions & Points'!#REF!="","",'Races, Positions & Points'!#REF!) ->  | U24: =IF('Races, Positions & Points'!#REF!="","",'Races, Positions & Points'!#REF!) ->  | V24: =IF('Races, Positions & Points'!#REF!="","",'Races, Positions & Points'!#REF!) ->  | W24: =IF('Races, Positions & Points'!#REF!="","",'Races, Positions & Points'!#REF!) ->  | X24: =IF('Races, Positions & Points'!#REF!="","",'Races, Positions & Points'!#REF!) ->  | Y24: =IF('Races, Positions & Points'!#REF!="","",'Races, Positions & Points'!#REF!) ->  | Z24: =IF('Races, Positions & Points'!#REF!="","",'Races, Positions & Points'!#REF!) ->  | AA24: =IF('Races, Positions & Points'!#REF!="","",'Races, Positions & Points'!#REF!) ->  | AB24: =IF('Races, Positions & Points'!#REF!="","",'Races, Positions & Points'!#REF!) ->  | AC24: =IF('Races, Positions & Points'!#REF!="","",'Races, Positions & Points'!#REF!) ->  | AD24: =IF('Races, Positions & Points'!#REF!="","",'Races, Positions & Points'!#REF!) ->  | AE24: =IF('Races, Positions & Points'!#REF!="","",'Races, Positions & Points'!#REF!) ->  | AF24: =IF('Races, Positions & Points'!#REF!="","",'Races, Positions & Points'!#REF!) ->  | AG24: =IF('Races, Positions & Points'!#REF!="","",'Races, Positions & Points'!#REF!) ->  | AH24: =IF('Races, Positions & Points'!#REF!="","",'Races, Positions & Points'!#REF!) ->  | AI24: =IF('Races, Positions & Points'!#REF!="","",'Races, Positions & Points'!#REF!) ->  | AJ24: =IF('Races, Positions & Points'!#REF!="","",'Races, Positions & Points'!#REF!) ->  | AK24: =IF('Races, Positions & Points'!#REF!="","",'Races, Positions & Points'!#REF!) ->  | AL24: =IF('Races, Positions & Points'!#REF!="","",'Races, Positions & Points'!#REF!) ->  | AM24: =IF('Races, Positions & Points'!#REF!="","",'Races, Positions & Points'!#REF!) ->  | AN24: =IF('Races, Positions & Points'!#REF!="","",'Races, Positions & Points'!#REF!) ->  | AO24: =IF('Races, Positions & Points'!#REF!="","",'Races, Positions & Points'!#REF!) ->  | AP24: =IF('Races, Positions & Points'!#REF!="","",'Races, Positions & Points'!#REF!) ->  | AQ24: =IF('Races, Positions & Points'!#REF!="","",'Races, Positions & Points'!#REF!) ->  | AR24: =IF('Races, Positions & Points'!#REF!="","",'Races, Positions & Points'!#REF!) ->  | AS24: =IF('Races, Positions & Points'!#REF!="","",'Races, Positions & Points'!#REF!) ->  | AT24: =IF('Races, Positions & Points'!#REF!="","",'Races, Positions & Points'!#REF!) ->  | AU24: =IF('Races, Positions & Points'!#REF!="","",'Races, Positions & Points'!#REF!) ->  | AV24: =IF('Races, Positions & Points'!#REF!="","",'Races, Positions & Points'!#REF!) ->  | AW24: =IF('Races, Positions & Points'!#REF!="","",'Races, Positions & Points'!#REF!) ->  | AX24: =IF('Races, Positions & Points'!#REF!="","",'Races, Positions & Points'!#REF!) ->  | AY24: =IF('Races, Positions & Points'!#REF!="","",'Races, Positions & Points'!#REF!) ->  | BH24: ='Races, Positions & Points'!#REF! ->  | BI24: ='Races, Positions & Points'!#REF! ->  | CS24: =IF(MIN(DF24:DL24)>0,MIN(DF24:DL24),"") ->  | CT24: =IF(ISERROR(SMALL(DF24:DL24,2)),"",SMALL(DF24:DL24,2)) ->  | CX24: =IF(MIN(DC24:DE24)>0,MIN(DC24:DE24),"") ->  | CY24: =IF(ISERROR(SMALL(DC24:DE24,2)),"",SMALL(DC24:DE24,2)) ->  | CZ24: =IF(ISERROR(SMALL(DC24:DE24,2)),"",AVERAGE(CX24,CY24)) ->  | DA24: =IF(ISERROR(CX24*1.2),"",IF(CX24<50,CX24+10,CX24*1.2)) -> 
A25: ='Races, Positions & Points'!#REF! ->  | B25: =IF('Races, Positions & Points'!#REF!="","",'Races, Positions & Points'!#REF!) ->  | C25: =IF('Races, Positions & Points'!#REF!="","",'Races, Positions & Points'!#REF!) ->  | D25: =IF('Races, Positions & Points'!#REF!="","",'Races, Positions & Points'!#REF!) ->  | E25: =IF('Races, Positions & Points'!#REF!="","",'Races, Positions & Points'!#REF!) ->  | F25: =IF('Races, Positions & Points'!#REF!="","",'Races, Positions & Points'!#REF!) ->  | G25: =IF('Races, Positions & Points'!#REF!="","",'Races, Positions & Points'!#REF!) ->  | H25: =IF('Races, Positions & Points'!#REF!="","",'Races, Positions & Points'!#REF!) ->  | I25: =IF('Races, Positions & Points'!#REF!="","",'Races, Positions & Points'!#REF!) ->  | J25: =IF('Races, Positions & Points'!#REF!="","",'Races, Positions & Points'!#REF!) ->  | K25: =IF('Races, Positions & Points'!#REF!="","",'Races, Positions & Points'!#REF!) ->  | L25: =IF('Races, Positions & Points'!#REF!="","",'Races, Positions & Points'!#REF!) ->  | M25: =IF('Races, Positions & Points'!#REF!="","",'Races, Positions & Points'!#REF!) ->  | N25: =IF('Races, Positions & Points'!#REF!="","",'Races, Positions & Points'!#REF!) ->  | O25: =IF('Races, Positions & Points'!#REF!="","",'Races, Positions & Points'!#REF!) ->  | P25: =IF('Races, Positions & Points'!#REF!="","",'Races, Positions & Points'!#REF!) ->  | Q25: =IF('Races, Positions & Points'!#REF!="","",'Races, Positions & Points'!#REF!) ->  | R25: =IF('Races, Positions & Points'!#REF!="","",'Races, Positions & Points'!#REF!) ->  | S25: =IF('Races, Positions & Points'!#REF!="","",'Races, Positions & Points'!#REF!) ->  | T25: =IF('Races, Positions & Points'!#REF!="","",'Races, Positions & Points'!#REF!) ->  | U25: =IF('Races, Positions & Points'!#REF!="","",'Races, Positions & Points'!#REF!) ->  | V25: =IF('Races, Positions & Points'!#REF!="","",'Races, Positions & Points'!#REF!) ->  | W25: =IF('Races, Positions & Points'!#REF!="","",'Races, Positions & Points'!#REF!) ->  | X25: =IF('Races, Positions & Points'!#REF!="","",'Races, Positions & Points'!#REF!) ->  | Y25: =IF('Races, Positions & Points'!#REF!="","",'Races, Positions & Points'!#REF!) ->  | Z25: =IF('Races, Positions & Points'!#REF!="","",'Races, Positions & Points'!#REF!) ->  | AA25: =IF('Races, Positions & Points'!#REF!="","",'Races, Positions & Points'!#REF!) ->  | AB25: =IF('Races, Positions & Points'!#REF!="","",'Races, Positions & Points'!#REF!) ->  | AC25: =IF('Races, Positions & Points'!#REF!="","",'Races, Positions & Points'!#REF!) ->  | AD25: =IF('Races, Positions & Points'!#REF!="","",'Races, Positions & Points'!#REF!) ->  | AE25: =IF('Races, Positions & Points'!#REF!="","",'Races, Positions & Points'!#REF!) ->  | AF25: =IF('Races, Positions & Points'!#REF!="","",'Races, Positions & Points'!#REF!) ->  | AG25: =IF('Races, Positions & Points'!#REF!="","",'Races, Positions & Points'!#REF!) ->  | AH25: =IF('Races, Positions & Points'!#REF!="","",'Races, Positions & Points'!#REF!) ->  | AI25: =IF('Races, Positions & Points'!#REF!="","",'Races, Positions & Points'!#REF!) ->  | AJ25: =IF('Races, Positions & Points'!#REF!="","",'Races, Positions & Points'!#REF!) ->  | AK25: =IF('Races, Positions & Points'!#REF!="","",'Races, Positions & Points'!#REF!) ->  | AL25: =IF('Races, Positions & Points'!#REF!="","",'Races, Positions & Points'!#REF!) ->  | AM25: =IF('Races, Positions & Points'!#REF!="","",'Races, Positions & Points'!#REF!) ->  | AN25: =IF('Races, Positions & Points'!#REF!="","",'Races, Positions & Points'!#REF!) ->  | AO25: =IF('Races, Positions & Points'!#REF!="","",'Races, Positions & Points'!#REF!) ->  | AP25: =IF('Races, Positions & Points'!#REF!="","",'Races, Positions & Points'!#REF!) ->  | AQ25: =IF('Races, Positions & Points'!#REF!="","",'Races, Positions & Points'!#REF!) ->  | AR25: =IF('Races, Positions & Points'!#REF!="","",'Races, Positions & Points'!#REF!) ->  | AS25: =IF('Races, Positions & Points'!#REF!="","",'Races, Positions & Points'!#REF!) ->  | AT25: =IF('Races, Positions & Points'!#REF!="","",'Races, Positions & Points'!#REF!) ->  | AU25: =IF('Races, Positions & Points'!#REF!="","",'Races, Positions & Points'!#REF!) ->  | AV25: =IF('Races, Positions & Points'!#REF!="","",'Races, Positions & Points'!#REF!) ->  | AW25: =IF('Races, Positions & Points'!#REF!="","",'Races, Positions & Points'!#REF!) ->  | AX25: =IF('Races, Positions & Points'!#REF!="","",'Races, Positions & Points'!#REF!) ->  | AY25: =IF('Races, Positions & Points'!#REF!="","",'Races, Positions & Points'!#REF!) ->  | BH25: ='Races, Positions & Points'!#REF! ->  | BI25: ='Races, Positions & Points'!#REF! ->  | CS25: =IF(MIN(DF25:DL25)>0,MIN(DF25:DL25),"") ->  | CT25: =IF(ISERROR(SMALL(DF25:DL25,2)),"",SMALL(DF25:DL25,2)) ->  | CX25: =IF(MIN(DC25:DE25)>0,MIN(DC25:DE25),"") ->  | CY25: =IF(ISERROR(SMALL(DC25:DE25,2)),"",SMALL(DC25:DE25,2)) ->  | CZ25: =IF(ISERROR(SMALL(DC25:DE25,2)),"",AVERAGE(CX25,CY25)) ->  | DA25: =IF(ISERROR(CX25*1.2),"",IF(CX25<50,CX25+10,CX25*1.2)) -> 
A26: ='Races, Positions & Points'!#REF! ->  | B26: =IF('Races, Positions & Points'!#REF!="","",'Races, Positions & Points'!#REF!) ->  | C26: =IF('Races, Positions & Points'!#REF!="","",'Races, Positions & Points'!#REF!) ->  | D26: =IF('Races, Positions & Points'!#REF!="","",'Races, Positions & Points'!#REF!) ->  | E26: =IF('Races, Positions & Points'!#REF!="","",'Races, Positions & Points'!#REF!) ->  | F26: =IF('Races, Positions & Points'!#REF!="","",'Races, Positions & Points'!#REF!) ->  | G26: =IF('Races, Positions & Points'!#REF!="","",'Races, Positions & Points'!#REF!) ->  | H26: =IF('Races, Positions & Points'!#REF!="","",'Races, Positions & Points'!#REF!) ->  | I26: =IF('Races, Positions & Points'!#REF!="","",'Races, Positions & Points'!#REF!) ->  | J26: =IF('Races, Positions & Points'!#REF!="","",'Races, Positions & Points'!#REF!) ->  | K26: =IF('Races, Positions & Points'!#REF!="","",'Races, Positions & Points'!#REF!) ->  | L26: =IF('Races, Positions & Points'!#REF!="","",'Races, Positions & Points'!#REF!) ->  | M26: =IF('Races, Positions & Points'!#REF!="","",'Races, Positions & Points'!#REF!) ->  | N26: =IF('Races, Positions & Points'!#REF!="","",'Races, Positions & Points'!#REF!) ->  | O26: =IF('Races, Positions & Points'!#REF!="","",'Races, Positions & Points'!#REF!) ->  | P26: =IF('Races, Positions & Points'!#REF!="","",'Races, Positions & Points'!#REF!) ->  | Q26: =IF('Races, Positions & Points'!#REF!="","",'Races, Positions & Points'!#REF!) ->  | R26: =IF('Races, Positions & Points'!#REF!="","",'Races, Positions & Points'!#REF!) ->  | S26: =IF('Races, Positions & Points'!#REF!="","",'Races, Positions & Points'!#REF!) ->  | T26: =IF('Races, Positions & Points'!#REF!="","",'Races, Positions & Points'!#REF!) ->  | U26: =IF('Races, Positions & Points'!#REF!="","",'Races, Positions & Points'!#REF!) ->  | V26: =IF('Races, Positions & Points'!#REF!="","",'Races, Positions & Points'!#REF!) ->  | W26: =IF('Races, Positions & Points'!#REF!="","",'Races, Positions & Points'!#REF!) ->  | X26: =IF('Races, Positions & Points'!#REF!="","",'Races, Positions & Points'!#REF!) ->  | Y26: =IF('Races, Positions & Points'!#REF!="","",'Races, Positions & Points'!#REF!) ->  | Z26: =IF('Races, Positions & Points'!#REF!="","",'Races, Positions & Points'!#REF!) ->  | AA26: =IF('Races, Positions & Points'!#REF!="","",'Races, Positions & Points'!#REF!) ->  | AB26: =IF('Races, Positions & Points'!#REF!="","",'Races, Positions & Points'!#REF!) ->  | AC26: =IF('Races, Positions & Points'!#REF!="","",'Races, Positions & Points'!#REF!) ->  | AD26: =IF('Races, Positions & Points'!#REF!="","",'Races, Positions & Points'!#REF!) ->  | AE26: =IF('Races, Positions & Points'!#REF!="","",'Races, Positions & Points'!#REF!) ->  | AF26: =IF('Races, Positions & Points'!#REF!="","",'Races, Positions & Points'!#REF!) ->  | AG26: =IF('Races, Positions & Points'!#REF!="","",'Races, Positions & Points'!#REF!) ->  | AH26: =IF('Races, Positions & Points'!#REF!="","",'Races, Positions & Points'!#REF!) ->  | AI26: =IF('Races, Positions & Points'!#REF!="","",'Races, Positions & Points'!#REF!) ->  | AJ26: =IF('Races, Positions & Points'!#REF!="","",'Races, Positions & Points'!#REF!) ->  | AK26: =IF('Races, Positions & Points'!#REF!="","",'Races, Positions & Points'!#REF!) ->  | AL26: =IF('Races, Positions & Points'!#REF!="","",'Races, Positions & Points'!#REF!) ->  | AM26: =IF('Races, Positions & Points'!#REF!="","",'Races, Positions & Points'!#REF!) ->  | AN26: =IF('Races, Positions & Points'!#REF!="","",'Races, Positions & Points'!#REF!) ->  | AO26: =IF('Races, Positions & Points'!#REF!="","",'Races, Positions & Points'!#REF!) ->  | AP26: =IF('Races, Positions & Points'!#REF!="","",'Races, Positions & Points'!#REF!) ->  | AQ26: =IF('Races, Positions & Points'!#REF!="","",'Races, Positions & Points'!#REF!) ->  | AR26: =IF('Races, Positions & Points'!#REF!="","",'Races, Positions & Points'!#REF!) ->  | AS26: =IF('Races, Positions & Points'!#REF!="","",'Races, Positions & Points'!#REF!) ->  | AT26: =IF('Races, Positions & Points'!#REF!="","",'Races, Positions & Points'!#REF!) ->  | AU26: =IF('Races, Positions & Points'!#REF!="","",'Races, Positions & Points'!#REF!) ->  | AV26: =IF('Races, Positions & Points'!#REF!="","",'Races, Positions & Points'!#REF!) ->  | AW26: =IF('Races, Positions & Points'!#REF!="","",'Races, Positions & Points'!#REF!) ->  | AX26: =IF('Races, Positions & Points'!#REF!="","",'Races, Positions & Points'!#REF!) ->  | AY26: =IF('Races, Positions & Points'!#REF!="","",'Races, Positions & Points'!#REF!) ->  | BH26: ='Races, Positions & Points'!#REF! ->  | BI26: ='Races, Positions & Points'!#REF! -> 
A27: ='Races, Positions & Points'!#REF! ->  | B27: =IF('Races, Positions & Points'!#REF!="","",'Races, Positions & Points'!#REF!) ->  | C27: =IF('Races, Positions & Points'!#REF!="","",'Races, Positions & Points'!#REF!) ->  | D27: =IF('Races, Positions & Points'!#REF!="","",'Races, Positions & Points'!#REF!) ->  | E27: =IF('Races, Positions & Points'!#REF!="","",'Races, Positions & Points'!#REF!) ->  | F27: =IF('Races, Positions & Points'!#REF!="","",'Races, Positions & Points'!#REF!) ->  | G27: =IF('Races, Positions & Points'!#REF!="","",'Races, Positions & Points'!#REF!) ->  | H27: =IF('Races, Positions & Points'!#REF!="","",'Races, Positions & Points'!#REF!) ->  | I27: =IF('Races, Positions & Points'!#REF!="","",'Races, Positions & Points'!#REF!) ->  | J27: =IF('Races, Positions & Points'!#REF!="","",'Races, Positions & Points'!#REF!) ->  | K27: =IF('Races, Positions & Points'!#REF!="","",'Races, Positions & Points'!#REF!) ->  | L27: =IF('Races, Positions & Points'!#REF!="","",'Races, Positions & Points'!#REF!) ->  | M27: =IF('Races, Positions & Points'!#REF!="","",'Races, Positions & Points'!#REF!) ->  | N27: =IF('Races, Positions & Points'!#REF!="","",'Races, Positions & Points'!#REF!) ->  | O27: =IF('Races, Positions & Points'!#REF!="","",'Races, Positions & Points'!#REF!) ->  | P27: =IF('Races, Positions & Points'!#REF!="","",'Races, Positions & Points'!#REF!) ->  | Q27: =IF('Races, Positions & Points'!#REF!="","",'Races, Positions & Points'!#REF!) ->  | R27: =IF('Races, Positions & Points'!#REF!="","",'Races, Positions & Points'!#REF!) ->  | S27: =IF('Races, Positions & Points'!#REF!="","",'Races, Positions & Points'!#REF!) ->  | T27: =IF('Races, Positions & Points'!#REF!="","",'Races, Positions & Points'!#REF!) ->  | U27: =IF('Races, Positions & Points'!#REF!="","",'Races, Positions & Points'!#REF!) ->  | V27: =IF('Races, Positions & Points'!#REF!="","",'Races, Positions & Points'!#REF!) ->  | W27: =IF('Races, Positions & Points'!#REF!="","",'Races, Positions & Points'!#REF!) ->  | X27: =IF('Races, Positions & Points'!#REF!="","",'Races, Positions & Points'!#REF!) ->  | Y27: =IF('Races, Positions & Points'!#REF!="","",'Races, Positions & Points'!#REF!) ->  | Z27: =IF('Races, Positions & Points'!#REF!="","",'Races, Positions & Points'!#REF!) ->  | AA27: =IF('Races, Positions & Points'!#REF!="","",'Races, Positions & Points'!#REF!) ->  | AB27: =IF('Races, Positions & Points'!#REF!="","",'Races, Positions & Points'!#REF!) ->  | AC27: =IF('Races, Positions & Points'!#REF!="","",'Races, Positions & Points'!#REF!) ->  | AD27: =IF('Races, Positions & Points'!#REF!="","",'Races, Positions & Points'!#REF!) ->  | AE27: =IF('Races, Positions & Points'!#REF!="","",'Races, Positions & Points'!#REF!) ->  | AF27: =IF('Races, Positions & Points'!#REF!="","",'Races, Positions & Points'!#REF!) ->  | AG27: =IF('Races, Positions & Points'!#REF!="","",'Races, Positions & Points'!#REF!) ->  | AH27: =IF('Races, Positions & Points'!#REF!="","",'Races, Positions & Points'!#REF!) ->  | AI27: =IF('Races, Positions & Points'!#REF!="","",'Races, Positions & Points'!#REF!) ->  | AJ27: =IF('Races, Positions & Points'!#REF!="","",'Races, Positions & Points'!#REF!) ->  | AK27: =IF('Races, Positions & Points'!#REF!="","",'Races, Positions & Points'!#REF!) ->  | AL27: =IF('Races, Positions & Points'!#REF!="","",'Races, Positions & Points'!#REF!) ->  | AM27: =IF('Races, Positions & Points'!#REF!="","",'Races, Positions & Points'!#REF!) ->  | AN27: =IF('Races, Positions & Points'!#REF!="","",'Races, Positions & Points'!#REF!) ->  | AO27: =IF('Races, Positions & Points'!#REF!="","",'Races, Positions & Points'!#REF!) ->  | AP27: =IF('Races, Positions & Points'!#REF!="","",'Races, Positions & Points'!#REF!) ->  | AQ27: =IF('Races, Positions & Points'!#REF!="","",'Races, Positions & Points'!#REF!) ->  | AR27: =IF('Races, Positions & Points'!#REF!="","",'Races, Positions & Points'!#REF!) ->  | AS27: =IF('Races, Positions & Points'!#REF!="","",'Races, Positions & Points'!#REF!) ->  | AT27: =IF('Races, Positions & Points'!#REF!="","",'Races, Positions & Points'!#REF!) ->  | AU27: =IF('Races, Positions & Points'!#REF!="","",'Races, Positions & Points'!#REF!) ->  | AV27: =IF('Races, Positions & Points'!#REF!="","",'Races, Positions & Points'!#REF!) ->  | AW27: =IF('Races, Positions & Points'!#REF!="","",'Races, Positions & Points'!#REF!) ->  | AX27: =IF('Races, Positions & Points'!#REF!="","",'Races, Positions & Points'!#REF!) ->  | AY27: =IF('Races, Positions & Points'!#REF!="","",'Races, Positions & Points'!#REF!) ->  | BH27: ='Races, Positions & Points'!#REF! ->  | BI27: ='Races, Positions & Points'!#REF! -> 
A28: ='Races, Positions & Points'!#REF! ->  | B28: =IF('Races, Positions & Points'!#REF!="","",'Races, Positions & Points'!#REF!) ->  | C28: =IF('Races, Positions & Points'!#REF!="","",'Races, Positions & Points'!#REF!) ->  | D28: =IF('Races, Positions & Points'!#REF!="","",'Races, Positions & Points'!#REF!) ->  | E28: =IF('Races, Positions & Points'!#REF!="","",'Races, Positions & Points'!#REF!) ->  | F28: =IF('Races, Positions & Points'!#REF!="","",'Races, Positions & Points'!#REF!) ->  | G28: =IF('Races, Positions & Points'!#REF!="","",'Races, Positions & Points'!#REF!) ->  | H28: =IF('Races, Positions & Points'!#REF!="","",'Races, Positions & Points'!#REF!) ->  | I28: =IF('Races, Positions & Points'!#REF!="","",'Races, Positions & Points'!#REF!) ->  | J28: =IF('Races, Positions & Points'!#REF!="","",'Races, Positions & Points'!#REF!) ->  | K28: =IF('Races, Positions & Points'!#REF!="","",'Races, Positions & Points'!#REF!) ->  | L28: =IF('Races, Positions & Points'!#REF!="","",'Races, Positions & Points'!#REF!) ->  | M28: =IF('Races, Positions & Points'!#REF!="","",'Races, Positions & Points'!#REF!) ->  | N28: =IF('Races, Positions & Points'!#REF!="","",'Races, Positions & Points'!#REF!) ->  | O28: =IF('Races, Positions & Points'!#REF!="","",'Races, Positions & Points'!#REF!) ->  | P28: =IF('Races, Positions & Points'!#REF!="","",'Races, Positions & Points'!#REF!) ->  | Q28: =IF('Races, Positions & Points'!#REF!="","",'Races, Positions & Points'!#REF!) ->  | R28: =IF('Races, Positions & Points'!#REF!="","",'Races, Positions & Points'!#REF!) ->  | S28: =IF('Races, Positions & Points'!#REF!="","",'Races, Positions & Points'!#REF!) ->  | T28: =IF('Races, Positions & Points'!#REF!="","",'Races, Positions & Points'!#REF!) ->  | U28: =IF('Races, Positions & Points'!#REF!="","",'Races, Positions & Points'!#REF!) ->  | V28: =IF('Races, Positions & Points'!#REF!="","",'Races, Positions & Points'!#REF!) ->  | W28: =IF('Races, Positions & Points'!#REF!="","",'Races, Positions & Points'!#REF!) ->  | X28: =IF('Races, Positions & Points'!#REF!="","",'Races, Positions & Points'!#REF!) ->  | Y28: =IF('Races, Positions & Points'!#REF!="","",'Races, Positions & Points'!#REF!) ->  | Z28: =IF('Races, Positions & Points'!#REF!="","",'Races, Positions & Points'!#REF!) ->  | AA28: =IF('Races, Positions & Points'!#REF!="","",'Races, Positions & Points'!#REF!) ->  | AB28: =IF('Races, Positions & Points'!#REF!="","",'Races, Positions & Points'!#REF!) ->  | AC28: =IF('Races, Positions & Points'!#REF!="","",'Races, Positions & Points'!#REF!) ->  | AD28: =IF('Races, Positions & Points'!#REF!="","",'Races, Positions & Points'!#REF!) ->  | AE28: =IF('Races, Positions & Points'!#REF!="","",'Races, Positions & Points'!#REF!) ->  | AF28: =IF('Races, Positions & Points'!#REF!="","",'Races, Positions & Points'!#REF!) ->  | AG28: =IF('Races, Positions & Points'!#REF!="","",'Races, Positions & Points'!#REF!) ->  | AH28: =IF('Races, Positions & Points'!#REF!="","",'Races, Positions & Points'!#REF!) ->  | AI28: =IF('Races, Positions & Points'!#REF!="","",'Races, Positions & Points'!#REF!) ->  | AJ28: =IF('Races, Positions & Points'!#REF!="","",'Races, Positions & Points'!#REF!) ->  | AK28: =IF('Races, Positions & Points'!#REF!="","",'Races, Positions & Points'!#REF!) ->  | AL28: =IF('Races, Positions & Points'!#REF!="","",'Races, Positions & Points'!#REF!) ->  | AM28: =IF('Races, Positions & Points'!#REF!="","",'Races, Positions & Points'!#REF!) ->  | AN28: =IF('Races, Positions & Points'!#REF!="","",'Races, Positions & Points'!#REF!) ->  | AO28: =IF('Races, Positions & Points'!#REF!="","",'Races, Positions & Points'!#REF!) ->  | AP28: =IF('Races, Positions & Points'!#REF!="","",'Races, Positions & Points'!#REF!) ->  | AQ28: =IF('Races, Positions & Points'!#REF!="","",'Races, Positions & Points'!#REF!) ->  | AR28: =IF('Races, Positions & Points'!#REF!="","",'Races, Positions & Points'!#REF!) ->  | AS28: =IF('Races, Positions & Points'!#REF!="","",'Races, Positions & Points'!#REF!) ->  | AT28: =IF('Races, Positions & Points'!#REF!="","",'Races, Positions & Points'!#REF!) ->  | AU28: =IF('Races, Positions & Points'!#REF!="","",'Races, Positions & Points'!#REF!) ->  | AV28: =IF('Races, Positions & Points'!#REF!="","",'Races, Positions & Points'!#REF!) ->  | AW28: =IF('Races, Positions & Points'!#REF!="","",'Races, Positions & Points'!#REF!) ->  | AX28: =IF('Races, Positions & Points'!#REF!="","",'Races, Positions & Points'!#REF!) ->  | AY28: =IF('Races, Positions & Points'!#REF!="","",'Races, Positions & Points'!#REF!) ->  | BH28: ='Races, Positions & Points'!#REF! ->  | BI28: ='Races, Positions & Points'!#REF! -> 
A29: ='Races, Positions & Points'!A21 -> Ellie Jackson | B29: =IF('Races, Positions & Points'!O21="","",'Races, Positions & Points'!O21) ->  | C29: =IF('Races, Positions & Points'!R21="","",'Races, Positions & Points'!R21) ->  | D29: =IF('Races, Positions & Points'!#REF!="","",'Races, Positions & Points'!#REF!) ->  | E29: =IF('Races, Positions & Points'!U21="","",'Races, Positions & Points'!U21) ->  | F29: =IF('Races, Positions & Points'!V21="","",'Races, Positions & Points'!V21) ->  | G29: =IF('Races, Positions & Points'!#REF!="","",'Races, Positions & Points'!#REF!) ->  | H29: =IF('Races, Positions & Points'!Y21="","",'Races, Positions & Points'!Y21) ->  | I29: =IF('Races, Positions & Points'!#REF!="","",'Races, Positions & Points'!#REF!) ->  | J29: =IF('Races, Positions & Points'!#REF!="","",'Races, Positions & Points'!#REF!) ->  | K29: =IF('Races, Positions & Points'!AD21="","",'Races, Positions & Points'!AD21) ->  | L29: =IF('Races, Positions & Points'!#REF!="","",'Races, Positions & Points'!#REF!) ->  | M29: =IF('Races, Positions & Points'!AR21="","",'Races, Positions & Points'!AR21) ->  | N29: =IF('Races, Positions & Points'!AU21="","",'Races, Positions & Points'!AU21) ->  | O29: =IF('Races, Positions & Points'!AX21="","",'Races, Positions & Points'!AX21) ->  | P29: =IF('Races, Positions & Points'!BA21="","",'Races, Positions & Points'!BA21) ->  | Q29: =IF('Races, Positions & Points'!BJ21="","",'Races, Positions & Points'!BJ21) ->  | R29: =IF('Races, Positions & Points'!BN21="","",'Races, Positions & Points'!BN21) ->  | S29: =IF('Races, Positions & Points'!#REF!="","",'Races, Positions & Points'!#REF!) ->  | T29: =IF('Races, Positions & Points'!#REF!="","",'Races, Positions & Points'!#REF!) ->  | U29: =IF('Races, Positions & Points'!BW21="","",'Races, Positions & Points'!BW21) ->  | V29: =IF('Races, Positions & Points'!#REF!="","",'Races, Positions & Points'!#REF!) ->  | W29: =IF('Races, Positions & Points'!#REF!="","",'Races, Positions & Points'!#REF!) ->  | X29: =IF('Races, Positions & Points'!CI21="","",'Races, Positions & Points'!CI21) ->  | Y29: =IF('Races, Positions & Points'!CO21="","",'Races, Positions & Points'!CO21) ->  | Z29: =IF('Races, Positions & Points'!CZ21="","",'Races, Positions & Points'!CZ21) ->  | AA29: =IF('Races, Positions & Points'!CU21="","",'Races, Positions & Points'!CU21) ->  | AB29: =IF('Races, Positions & Points'!DC21="","",'Races, Positions & Points'!DC21) ->  | AC29: =IF('Races, Positions & Points'!DF21="","",'Races, Positions & Points'!DF21) ->  | AD29: =IF('Races, Positions & Points'!DP21="","",'Races, Positions & Points'!DP21) ->  | AE29: =IF('Races, Positions & Points'!DI21="","",'Races, Positions & Points'!DI21) ->  | AF29: =IF('Races, Positions & Points'!DS21="","",'Races, Positions & Points'!DS21) ->  | AG29: =IF('Races, Positions & Points'!#REF!="","",'Races, Positions & Points'!#REF!) ->  | AH29: =IF('Races, Positions & Points'!DV21="","",'Races, Positions & Points'!DV21) ->  | AI29: =IF('Races, Positions & Points'!DY21="","",'Races, Positions & Points'!DY21) ->  | AJ29: =IF('Races, Positions & Points'!EB21="","",'Races, Positions & Points'!EB21) ->  | AK29: =IF('Races, Positions & Points'!EF21="","",'Races, Positions & Points'!EF21) ->  | AL29: =IF('Races, Positions & Points'!EI21="","",'Races, Positions & Points'!EI21) ->  | AM29: =IF('Races, Positions & Points'!EM21="","",'Races, Positions & Points'!EM21) ->  | AN29: =IF('Races, Positions & Points'!EN21="","",'Races, Positions & Points'!EN21) ->  | AO29: =IF('Races, Positions & Points'!EP21="","",'Races, Positions & Points'!EP21) ->  | AP29: =IF('Races, Positions & Points'!ES21="","",'Races, Positions & Points'!ES21) ->  | AQ29: =IF('Races, Positions & Points'!EV21="","",'Races, Positions & Points'!EV21) ->  | AR29: =IF('Races, Positions & Points'!EY21="","",'Races, Positions & Points'!EY21) ->  | AS29: =IF('Races, Positions & Points'!FB21="","",'Races, Positions & Points'!FB21) ->  | AT29: =IF('Races, Positions & Points'!#REF!="","",'Races, Positions & Points'!#REF!) ->  | AU29: =IF('Races, Positions & Points'!#REF!="","",'Races, Positions & Points'!#REF!) ->  | AV29: =IF('Races, Positions & Points'!#REF!="","",'Races, Positions & Points'!#REF!) ->  | AW29: =IF('Races, Positions & Points'!#REF!="","",'Races, Positions & Points'!#REF!) ->  | AX29: =IF('Races, Positions & Points'!#REF!="","",'Races, Positions & Points'!#REF!) ->  | AY29: =IF('Races, Positions & Points'!#REF!="","",'Races, Positions & Points'!#REF!) ->  | BD29: =SUMPRODUCT(--(B$4:AY$4="Out"),--(B$3:AY$3=5),--(B$5:AY$5="Y"),--(B29:AY29<>"")) ->  | BH29: ='Races, Positions & Points'!E21 -> 21024 | BI29: ='Races, Positions & Points'!#REF! -> 
A30: ='Races, Positions & Points'!#REF! ->  | B30: =IF('Races, Positions & Points'!#REF!="","",'Races, Positions & Points'!#REF!) ->  | C30: =IF('Races, Positions & Points'!#REF!="","",'Races, Positions & Points'!#REF!) ->  | D30: =IF('Races, Positions & Points'!#REF!="","",'Races, Positions & Points'!#REF!) ->  | E30: =IF('Races, Positions & Points'!#REF!="","",'Races, Positions & Points'!#REF!) ->  | F30: =IF('Races, Positions & Points'!#REF!="","",'Races, Positions & Points'!#REF!) ->  | G30: =IF('Races, Positions & Points'!#REF!="","",'Races, Positions & Points'!#REF!) ->  | H30: =IF('Races, Positions & Points'!#REF!="","",'Races, Positions & Points'!#REF!) ->  | I30: =IF('Races, Positions & Points'!#REF!="","",'Races, Positions & Points'!#REF!) ->  | J30: =IF('Races, Positions & Points'!#REF!="","",'Races, Positions & Points'!#REF!) ->  | K30: =IF('Races, Positions & Points'!#REF!="","",'Races, Positions & Points'!#REF!) ->  | L30: =IF('Races, Positions & Points'!#REF!="","",'Races, Positions & Points'!#REF!) ->  | M30: =IF('Races, Positions & Points'!#REF!="","",'Races, Positions & Points'!#REF!) ->  | N30: =IF('Races, Positions & Points'!#REF!="","",'Races, Positions & Points'!#REF!) ->  | O30: =IF('Races, Positions & Points'!#REF!="","",'Races, Positions & Points'!#REF!) ->  | P30: =IF('Races, Positions & Points'!#REF!="","",'Races, Positions & Points'!#REF!) ->  | Q30: =IF('Races, Positions & Points'!#REF!="","",'Races, Positions & Points'!#REF!) ->  | R30: =IF('Races, Positions & Points'!#REF!="","",'Races, Positions & Points'!#REF!) ->  | S30: =IF('Races, Positions & Points'!#REF!="","",'Races, Positions & Points'!#REF!) ->  | T30: =IF('Races, Positions & Points'!#REF!="","",'Races, Positions & Points'!#REF!) ->  | U30: =IF('Races, Positions & Points'!#REF!="","",'Races, Positions & Points'!#REF!) ->  | V30: =IF('Races, Positions & Points'!#REF!="","",'Races, Positions & Points'!#REF!) ->  | W30: =IF('Races, Positions & Points'!#REF!="","",'Races, Positions & Points'!#REF!) ->  | X30: =IF('Races, Positions & Points'!#REF!="","",'Races, Positions & Points'!#REF!) ->  | Y30: =IF('Races, Positions & Points'!#REF!="","",'Races, Positions & Points'!#REF!) ->  | Z30: =IF('Races, Positions & Points'!#REF!="","",'Races, Positions & Points'!#REF!) ->  | AA30: =IF('Races, Positions & Points'!#REF!="","",'Races, Positions & Points'!#REF!) ->  | AB30: =IF('Races, Positions & Points'!#REF!="","",'Races, Positions & Points'!#REF!) ->  | AC30: =IF('Races, Positions & Points'!#REF!="","",'Races, Positions & Points'!#REF!) ->  | AD30: =IF('Races, Positions & Points'!#REF!="","",'Races, Positions & Points'!#REF!) ->  | AE30: =IF('Races, Positions & Points'!#REF!="","",'Races, Positions & Points'!#REF!) ->  | AF30: =IF('Races, Positions & Points'!#REF!="","",'Races, Positions & Points'!#REF!) ->  | AG30: =IF('Races, Positions & Points'!#REF!="","",'Races, Positions & Points'!#REF!) ->  | AH30: =IF('Races, Positions & Points'!#REF!="","",'Races, Positions & Points'!#REF!) ->  | AI30: =IF('Races, Positions & Points'!#REF!="","",'Races, Positions & Points'!#REF!) ->  | AJ30: =IF('Races, Positions & Points'!#REF!="","",'Races, Positions & Points'!#REF!) ->  | AK30: =IF('Races, Positions & Points'!#REF!="","",'Races, Positions & Points'!#REF!) ->  | AL30: =IF('Races, Positions & Points'!#REF!="","",'Races, Positions & Points'!#REF!) ->  | AM30: =IF('Races, Positions & Points'!#REF!="","",'Races, Positions & Points'!#REF!) ->  | AN30: =IF('Races, Positions & Points'!#REF!="","",'Races, Positions & Points'!#REF!) ->  | AO30: =IF('Races, Positions & Points'!#REF!="","",'Races, Positions & Points'!#REF!) ->  | AP30: =IF('Races, Positions & Points'!#REF!="","",'Races, Positions & Points'!#REF!) ->  | AQ30: =IF('Races, Positions & Points'!#REF!="","",'Races, Positions & Points'!#REF!) ->  | AR30: =IF('Races, Positions & Points'!#REF!="","",'Races, Positions & Points'!#REF!) ->  | AS30: =IF('Races, Positions & Points'!#REF!="","",'Races, Positions & Points'!#REF!) ->  | AT30: =IF('Races, Positions & Points'!#REF!="","",'Races, Positions & Points'!#REF!) ->  | AU30: =IF('Races, Positions & Points'!#REF!="","",'Races, Positions & Points'!#REF!) ->  | AV30: =IF('Races, Positions & Points'!#REF!="","",'Races, Positions & Points'!#REF!) ->  | AW30: =IF('Races, Positions & Points'!#REF!="","",'Races, Positions & Points'!#REF!) ->  | AX30: =IF('Races, Positions & Points'!#REF!="","",'Races, Positions & Points'!#REF!) ->  | AY30: =IF('Races, Positions & Points'!#REF!="","",'Races, Positions & Points'!#REF!) ->  | BD30: =SUMPRODUCT(--(B$4:AY$4="Out"),--(B$3:AY$3=5),--(B$5:AY$5="Y"),--(B30:AY30<>"")) ->  | BH30: ='Races, Positions & Points'!#REF! ->  | BI30: ='Races, Positions & Points'!#REF! -> 
A31: ='Races, Positions & Points'!#REF! ->  | B31: =IF('Races, Positions & Points'!#REF!="","",'Races, Positions & Points'!#REF!) ->  | C31: =IF('Races, Positions & Points'!#REF!="","",'Races, Positions & Points'!#REF!) ->  | D31: =IF('Races, Positions & Points'!#REF!="","",'Races, Positions & Points'!#REF!) ->  | E31: =IF('Races, Positions & Points'!#REF!="","",'Races, Positions & Points'!#REF!) ->  | F31: =IF('Races, Positions & Points'!#REF!="","",'Races, Positions & Points'!#REF!) ->  | G31: =IF('Races, Positions & Points'!#REF!="","",'Races, Positions & Points'!#REF!) ->  | H31: =IF('Races, Positions & Points'!#REF!="","",'Races, Positions & Points'!#REF!) ->  | I31: =IF('Races, Positions & Points'!#REF!="","",'Races, Positions & Points'!#REF!) ->  | J31: =IF('Races, Positions & Points'!#REF!="","",'Races, Positions & Points'!#REF!) ->  | K31: =IF('Races, Positions & Points'!#REF!="","",'Races, Positions & Points'!#REF!) ->  | L31: =IF('Races, Positions & Points'!#REF!="","",'Races, Positions & Points'!#REF!) ->  | M31: =IF('Races, Positions & Points'!#REF!="","",'Races, Positions & Points'!#REF!) ->  | N31: =IF('Races, Positions & Points'!#REF!="","",'Races, Positions & Points'!#REF!) ->  | O31: =IF('Races, Positions & Points'!#REF!="","",'Races, Positions & Points'!#REF!) ->  | P31: =IF('Races, Positions & Points'!#REF!="","",'Races, Positions & Points'!#REF!) ->  | Q31: =IF('Races, Positions & Points'!#REF!="","",'Races, Positions & Points'!#REF!) ->  | R31: =IF('Races, Positions & Points'!#REF!="","",'Races, Positions & Points'!#REF!) ->  | S31: =IF('Races, Positions & Points'!#REF!="","",'Races, Positions & Points'!#REF!) ->  | T31: =IF('Races, Positions & Points'!#REF!="","",'Races, Positions & Points'!#REF!) ->  | U31: =IF('Races, Positions & Points'!#REF!="","",'Races, Positions & Points'!#REF!) ->  | V31: =IF('Races, Positions & Points'!#REF!="","",'Races, Positions & Points'!#REF!) ->  | W31: =IF('Races, Positions & Points'!#REF!="","",'Races, Positions & Points'!#REF!) ->  | X31: =IF('Races, Positions & Points'!#REF!="","",'Races, Positions & Points'!#REF!) ->  | Y31: =IF('Races, Positions & Points'!#REF!="","",'Races, Positions & Points'!#REF!) ->  | Z31: =IF('Races, Positions & Points'!#REF!="","",'Races, Positions & Points'!#REF!) ->  | AA31: =IF('Races, Positions & Points'!#REF!="","",'Races, Positions & Points'!#REF!) ->  | AB31: =IF('Races, Positions & Points'!#REF!="","",'Races, Positions & Points'!#REF!) ->  | AC31: =IF('Races, Positions & Points'!#REF!="","",'Races, Positions & Points'!#REF!) ->  | AD31: =IF('Races, Positions & Points'!#REF!="","",'Races, Positions & Points'!#REF!) ->  | AE31: =IF('Races, Positions & Points'!#REF!="","",'Races, Positions & Points'!#REF!) ->  | AF31: =IF('Races, Positions & Points'!#REF!="","",'Races, Positions & Points'!#REF!) ->  | AG31: =IF('Races, Positions & Points'!#REF!="","",'Races, Positions & Points'!#REF!) ->  | AH31: =IF('Races, Positions & Points'!#REF!="","",'Races, Positions & Points'!#REF!) ->  | AI31: =IF('Races, Positions & Points'!#REF!="","",'Races, Positions & Points'!#REF!) ->  | AJ31: =IF('Races, Positions & Points'!#REF!="","",'Races, Positions & Points'!#REF!) ->  | AK31: =IF('Races, Positions & Points'!#REF!="","",'Races, Positions & Points'!#REF!) ->  | AL31: =IF('Races, Positions & Points'!#REF!="","",'Races, Positions & Points'!#REF!) ->  | AM31: =IF('Races, Positions & Points'!#REF!="","",'Races, Positions & Points'!#REF!) ->  | AN31: =IF('Races, Positions & Points'!#REF!="","",'Races, Positions & Points'!#REF!) ->  | AO31: =IF('Races, Positions & Points'!#REF!="","",'Races, Positions & Points'!#REF!) ->  | AP31: =IF('Races, Positions & Points'!#REF!="","",'Races, Positions & Points'!#REF!) ->  | AQ31: =IF('Races, Positions & Points'!#REF!="","",'Races, Positions & Points'!#REF!) ->  | AR31: =IF('Races, Positions & Points'!#REF!="","",'Races, Positions & Points'!#REF!) ->  | AS31: =IF('Races, Positions & Points'!#REF!="","",'Races, Positions & Points'!#REF!) ->  | AT31: =IF('Races, Positions & Points'!#REF!="","",'Races, Positions & Points'!#REF!) ->  | AU31: =IF('Races, Positions & Points'!#REF!="","",'Races, Positions & Points'!#REF!) ->  | AV31: =IF('Races, Positions & Points'!#REF!="","",'Races, Positions & Points'!#REF!) ->  | AW31: =IF('Races, Positions & Points'!#REF!="","",'Races, Positions & Points'!#REF!) ->  | AX31: =IF('Races, Positions & Points'!#REF!="","",'Races, Positions & Points'!#REF!) ->  | AY31: =IF('Races, Positions & Points'!#REF!="","",'Races, Positions & Points'!#REF!) ->  | BH31: ='Races, Positions & Points'!#REF! ->  | BI31: ='Races, Positions & Points'!#REF! -> 
A32: ='Races, Positions & Points'!#REF! ->  | B32: =IF('Races, Positions & Points'!#REF!="","",'Races, Positions & Points'!#REF!) ->  | C32: =IF('Races, Positions & Points'!#REF!="","",'Races, Positions & Points'!#REF!) ->  | D32: =IF('Races, Positions & Points'!#REF!="","",'Races, Positions & Points'!#REF!) ->  | E32: =IF('Races, Positions & Points'!#REF!="","",'Races, Positions & Points'!#REF!) ->  | F32: =IF('Races, Positions & Points'!#REF!="","",'Races, Positions & Points'!#REF!) ->  | G32: =IF('Races, Positions & Points'!#REF!="","",'Races, Positions & Points'!#REF!) ->  | H32: =IF('Races, Positions & Points'!#REF!="","",'Races, Positions & Points'!#REF!) ->  | I32: =IF('Races, Positions & Points'!#REF!="","",'Races, Positions & Points'!#REF!) ->  | J32: =IF('Races, Positions & Points'!#REF!="","",'Races, Positions & Points'!#REF!) ->  | K32: =IF('Races, Positions & Points'!#REF!="","",'Races, Positions & Points'!#REF!) ->  | L32: =IF('Races, Positions & Points'!#REF!="","",'Races, Positions & Points'!#REF!) ->  | M32: =IF('Races, Positions & Points'!#REF!="","",'Races, Positions & Points'!#REF!) ->  | N32: =IF('Races, Positions & Points'!#REF!="","",'Races, Positions & Points'!#REF!) ->  | O32: =IF('Races, Positions & Points'!#REF!="","",'Races, Positions & Points'!#REF!) ->  | P32: =IF('Races, Positions & Points'!#REF!="","",'Races, Positions & Points'!#REF!) ->  | Q32: =IF('Races, Positions & Points'!#REF!="","",'Races, Positions & Points'!#REF!) ->  | R32: =IF('Races, Positions & Points'!#REF!="","",'Races, Positions & Points'!#REF!) ->  | S32: =IF('Races, Positions & Points'!#REF!="","",'Races, Positions & Points'!#REF!) ->  | T32: =IF('Races, Positions & Points'!#REF!="","",'Races, Positions & Points'!#REF!) ->  | U32: =IF('Races, Positions & Points'!#REF!="","",'Races, Positions & Points'!#REF!) ->  | V32: =IF('Races, Positions & Points'!#REF!="","",'Races, Positions & Points'!#REF!) ->  | W32: =IF('Races, Positions & Points'!#REF!="","",'Races, Positions & Points'!#REF!) ->  | X32: =IF('Races, Positions & Points'!#REF!="","",'Races, Positions & Points'!#REF!) ->  | Y32: =IF('Races, Positions & Points'!#REF!="","",'Races, Positions & Points'!#REF!) ->  | Z32: =IF('Races, Positions & Points'!#REF!="","",'Races, Positions & Points'!#REF!) ->  | AA32: =IF('Races, Positions & Points'!#REF!="","",'Races, Positions & Points'!#REF!) ->  | AB32: =IF('Races, Positions & Points'!#REF!="","",'Races, Positions & Points'!#REF!) ->  | AC32: =IF('Races, Positions & Points'!#REF!="","",'Races, Positions & Points'!#REF!) ->  | AD32: =IF('Races, Positions & Points'!#REF!="","",'Races, Positions & Points'!#REF!) ->  | AE32: =IF('Races, Positions & Points'!#REF!="","",'Races, Positions & Points'!#REF!) ->  | AF32: =IF('Races, Positions & Points'!#REF!="","",'Races, Positions & Points'!#REF!) ->  | AG32: =IF('Races, Positions & Points'!#REF!="","",'Races, Positions & Points'!#REF!) ->  | AH32: =IF('Races, Positions & Points'!#REF!="","",'Races, Positions & Points'!#REF!) ->  | AI32: =IF('Races, Positions & Points'!#REF!="","",'Races, Positions & Points'!#REF!) ->  | AJ32: =IF('Races, Positions & Points'!#REF!="","",'Races, Positions & Points'!#REF!) ->  | AK32: =IF('Races, Positions & Points'!#REF!="","",'Races, Positions & Points'!#REF!) ->  | AL32: =IF('Races, Positions & Points'!#REF!="","",'Races, Positions & Points'!#REF!) ->  | AM32: =IF('Races, Positions & Points'!#REF!="","",'Races, Positions & Points'!#REF!) ->  | AN32: =IF('Races, Positions & Points'!#REF!="","",'Races, Positions & Points'!#REF!) ->  | AO32: =IF('Races, Positions & Points'!#REF!="","",'Races, Positions & Points'!#REF!) ->  | AP32: =IF('Races, Positions & Points'!#REF!="","",'Races, Positions & Points'!#REF!) ->  | AQ32: =IF('Races, Positions & Points'!#REF!="","",'Races, Positions & Points'!#REF!) ->  | AR32: =IF('Races, Positions & Points'!#REF!="","",'Races, Positions & Points'!#REF!) ->  | AS32: =IF('Races, Positions & Points'!#REF!="","",'Races, Positions & Points'!#REF!) ->  | AT32: =IF('Races, Positions & Points'!#REF!="","",'Races, Positions & Points'!#REF!) ->  | AU32: =IF('Races, Positions & Points'!#REF!="","",'Races, Positions & Points'!#REF!) ->  | AV32: =IF('Races, Positions & Points'!#REF!="","",'Races, Positions & Points'!#REF!) ->  | AW32: =IF('Races, Positions & Points'!#REF!="","",'Races, Positions & Points'!#REF!) ->  | AX32: =IF('Races, Positions & Points'!#REF!="","",'Races, Positions & Points'!#REF!) ->  | AY32: =IF('Races, Positions & Points'!#REF!="","",'Races, Positions & Points'!#REF!) ->  | BH32: ='Races, Positions & Points'!#REF! ->  | BI32: ='Races, Positions & Points'!#REF! -> 
A33: ='Races, Positions & Points'!#REF! ->  | B33: =IF('Races, Positions & Points'!#REF!="","",'Races, Positions & Points'!#REF!) ->  | C33: =IF('Races, Positions & Points'!#REF!="","",'Races, Positions & Points'!#REF!) ->  | D33: =IF('Races, Positions & Points'!#REF!="","",'Races, Positions & Points'!#REF!) ->  | E33: =IF('Races, Positions & Points'!#REF!="","",'Races, Positions & Points'!#REF!) ->  | F33: =IF('Races, Positions & Points'!#REF!="","",'Races, Positions & Points'!#REF!) ->  | G33: =IF('Races, Positions & Points'!#REF!="","",'Races, Positions & Points'!#REF!) ->  | H33: =IF('Races, Positions & Points'!#REF!="","",'Races, Positions & Points'!#REF!) ->  | I33: =IF('Races, Positions & Points'!#REF!="","",'Races, Positions & Points'!#REF!) ->  | J33: =IF('Races, Positions & Points'!#REF!="","",'Races, Positions & Points'!#REF!) ->  | K33: =IF('Races, Positions & Points'!#REF!="","",'Races, Positions & Points'!#REF!) ->  | L33: =IF('Races, Positions & Points'!#REF!="","",'Races, Positions & Points'!#REF!) ->  | M33: =IF('Races, Positions & Points'!#REF!="","",'Races, Positions & Points'!#REF!) ->  | N33: =IF('Races, Positions & Points'!#REF!="","",'Races, Positions & Points'!#REF!) ->  | O33: =IF('Races, Positions & Points'!#REF!="","",'Races, Positions & Points'!#REF!) ->  | P33: =IF('Races, Positions & Points'!#REF!="","",'Races, Positions & Points'!#REF!) ->  | Q33: =IF('Races, Positions & Points'!#REF!="","",'Races, Positions & Points'!#REF!) ->  | R33: =IF('Races, Positions & Points'!#REF!="","",'Races, Positions & Points'!#REF!) ->  | S33: =IF('Races, Positions & Points'!#REF!="","",'Races, Positions & Points'!#REF!) ->  | T33: =IF('Races, Positions & Points'!#REF!="","",'Races, Positions & Points'!#REF!) ->  | U33: =IF('Races, Positions & Points'!#REF!="","",'Races, Positions & Points'!#REF!) ->  | V33: =IF('Races, Positions & Points'!#REF!="","",'Races, Positions & Points'!#REF!) ->  | W33: =IF('Races, Positions & Points'!#REF!="","",'Races, Positions & Points'!#REF!) ->  | X33: =IF('Races, Positions & Points'!#REF!="","",'Races, Positions & Points'!#REF!) ->  | Y33: =IF('Races, Positions & Points'!#REF!="","",'Races, Positions & Points'!#REF!) ->  | Z33: =IF('Races, Positions & Points'!#REF!="","",'Races, Positions & Points'!#REF!) ->  | AA33: =IF('Races, Positions & Points'!#REF!="","",'Races, Positions & Points'!#REF!) ->  | AB33: =IF('Races, Positions & Points'!#REF!="","",'Races, Positions & Points'!#REF!) ->  | AC33: =IF('Races, Positions & Points'!#REF!="","",'Races, Positions & Points'!#REF!) ->  | AD33: =IF('Races, Positions & Points'!#REF!="","",'Races, Positions & Points'!#REF!) ->  | AE33: =IF('Races, Positions & Points'!#REF!="","",'Races, Positions & Points'!#REF!) ->  | AF33: =IF('Races, Positions & Points'!#REF!="","",'Races, Positions & Points'!#REF!) ->  | AG33: =IF('Races, Positions & Points'!#REF!="","",'Races, Positions & Points'!#REF!) ->  | AH33: =IF('Races, Positions & Points'!#REF!="","",'Races, Positions & Points'!#REF!) ->  | AI33: =IF('Races, Positions & Points'!#REF!="","",'Races, Positions & Points'!#REF!) ->  | AJ33: =IF('Races, Positions & Points'!#REF!="","",'Races, Positions & Points'!#REF!) ->  | AK33: =IF('Races, Positions & Points'!#REF!="","",'Races, Positions & Points'!#REF!) ->  | AL33: =IF('Races, Positions & Points'!#REF!="","",'Races, Positions & Points'!#REF!) ->  | AM33: =IF('Races, Positions & Points'!#REF!="","",'Races, Positions & Points'!#REF!) ->  | AN33: =IF('Races, Positions & Points'!#REF!="","",'Races, Positions & Points'!#REF!) ->  | AO33: =IF('Races, Positions & Points'!#REF!="","",'Races, Positions & Points'!#REF!) ->  | AP33: =IF('Races, Positions & Points'!#REF!="","",'Races, Positions & Points'!#REF!) ->  | AQ33: =IF('Races, Positions & Points'!#REF!="","",'Races, Positions & Points'!#REF!) ->  | AR33: =IF('Races, Positions & Points'!#REF!="","",'Races, Positions & Points'!#REF!) ->  | AS33: =IF('Races, Positions & Points'!#REF!="","",'Races, Positions & Points'!#REF!) ->  | AT33: =IF('Races, Positions & Points'!#REF!="","",'Races, Positions & Points'!#REF!) ->  | AU33: =IF('Races, Positions & Points'!#REF!="","",'Races, Positions & Points'!#REF!) ->  | AV33: =IF('Races, Positions & Points'!#REF!="","",'Races, Positions & Points'!#REF!) ->  | AW33: =IF('Races, Positions & Points'!#REF!="","",'Races, Positions & Points'!#REF!) ->  | AX33: =IF('Races, Positions & Points'!#REF!="","",'Races, Positions & Points'!#REF!) ->  | AY33: =IF('Races, Positions & Points'!#REF!="","",'Races, Positions & Points'!#REF!) ->  | BH33: ='Races, Positions & Points'!#REF! ->  | BI33: ='Races, Positions & Points'!#REF! -> 
A34: ='Races, Positions & Points'!#REF! ->  | B34: =IF('Races, Positions & Points'!#REF!="","",'Races, Positions & Points'!#REF!) ->  | C34: =IF('Races, Positions & Points'!#REF!="","",'Races, Positions & Points'!#REF!) ->  | D34: =IF('Races, Positions & Points'!#REF!="","",'Races, Positions & Points'!#REF!) ->  | E34: =IF('Races, Positions & Points'!#REF!="","",'Races, Positions & Points'!#REF!) ->  | F34: =IF('Races, Positions & Points'!#REF!="","",'Races, Positions & Points'!#REF!) ->  | G34: =IF('Races, Positions & Points'!#REF!="","",'Races, Positions & Points'!#REF!) ->  | H34: =IF('Races, Positions & Points'!#REF!="","",'Races, Positions & Points'!#REF!) ->  | I34: =IF('Races, Positions & Points'!#REF!="","",'Races, Positions & Points'!#REF!) ->  | J34: =IF('Races, Positions & Points'!#REF!="","",'Races, Positions & Points'!#REF!) ->  | K34: =IF('Races, Positions & Points'!#REF!="","",'Races, Positions & Points'!#REF!) ->  | L34: =IF('Races, Positions & Points'!#REF!="","",'Races, Positions & Points'!#REF!) ->  | M34: =IF('Races, Positions & Points'!#REF!="","",'Races, Positions & Points'!#REF!) ->  | N34: =IF('Races, Positions & Points'!#REF!="","",'Races, Positions & Points'!#REF!) ->  | O34: =IF('Races, Positions & Points'!#REF!="","",'Races, Positions & Points'!#REF!) ->  | P34: =IF('Races, Positions & Points'!#REF!="","",'Races, Positions & Points'!#REF!) ->  | Q34: =IF('Races, Positions & Points'!#REF!="","",'Races, Positions & Points'!#REF!) ->  | R34: =IF('Races, Positions & Points'!#REF!="","",'Races, Positions & Points'!#REF!) ->  | S34: =IF('Races, Positions & Points'!#REF!="","",'Races, Positions & Points'!#REF!) ->  | T34: =IF('Races, Positions & Points'!#REF!="","",'Races, Positions & Points'!#REF!) ->  | U34: =IF('Races, Positions & Points'!#REF!="","",'Races, Positions & Points'!#REF!) ->  | V34: =IF('Races, Positions & Points'!#REF!="","",'Races, Positions & Points'!#REF!) ->  | W34: =IF('Races, Positions & Points'!#REF!="","",'Races, Positions & Points'!#REF!) ->  | X34: =IF('Races, Positions & Points'!#REF!="","",'Races, Positions & Points'!#REF!) ->  | Y34: =IF('Races, Positions & Points'!#REF!="","",'Races, Positions & Points'!#REF!) ->  | Z34: =IF('Races, Positions & Points'!#REF!="","",'Races, Positions & Points'!#REF!) ->  | AA34: =IF('Races, Positions & Points'!#REF!="","",'Races, Positions & Points'!#REF!) ->  | AB34: =IF('Races, Positions & Points'!#REF!="","",'Races, Positions & Points'!#REF!) ->  | AC34: =IF('Races, Positions & Points'!#REF!="","",'Races, Positions & Points'!#REF!) ->  | AD34: =IF('Races, Positions & Points'!#REF!="","",'Races, Positions & Points'!#REF!) ->  | AE34: =IF('Races, Positions & Points'!#REF!="","",'Races, Positions & Points'!#REF!) ->  | AF34: =IF('Races, Positions & Points'!#REF!="","",'Races, Positions & Points'!#REF!) ->  | AG34: =IF('Races, Positions & Points'!#REF!="","",'Races, Positions & Points'!#REF!) ->  | AH34: =IF('Races, Positions & Points'!#REF!="","",'Races, Positions & Points'!#REF!) ->  | AI34: =IF('Races, Positions & Points'!#REF!="","",'Races, Positions & Points'!#REF!) ->  | AJ34: =IF('Races, Positions & Points'!#REF!="","",'Races, Positions & Points'!#REF!) ->  | AK34: =IF('Races, Positions & Points'!#REF!="","",'Races, Positions & Points'!#REF!) ->  | AL34: =IF('Races, Positions & Points'!#REF!="","",'Races, Positions & Points'!#REF!) ->  | AM34: =IF('Races, Positions & Points'!#REF!="","",'Races, Positions & Points'!#REF!) ->  | AN34: =IF('Races, Positions & Points'!#REF!="","",'Races, Positions & Points'!#REF!) ->  | AO34: =IF('Races, Positions & Points'!#REF!="","",'Races, Positions & Points'!#REF!) ->  | AP34: =IF('Races, Positions & Points'!#REF!="","",'Races, Positions & Points'!#REF!) ->  | AQ34: =IF('Races, Positions & Points'!#REF!="","",'Races, Positions & Points'!#REF!) ->  | AR34: =IF('Races, Positions & Points'!#REF!="","",'Races, Positions & Points'!#REF!) ->  | AS34: =IF('Races, Positions & Points'!#REF!="","",'Races, Positions & Points'!#REF!) ->  | AT34: =IF('Races, Positions & Points'!#REF!="","",'Races, Positions & Points'!#REF!) ->  | AU34: =IF('Races, Positions & Points'!#REF!="","",'Races, Positions & Points'!#REF!) ->  | AV34: =IF('Races, Positions & Points'!#REF!="","",'Races, Positions & Points'!#REF!) ->  | AW34: =IF('Races, Positions & Points'!#REF!="","",'Races, Positions & Points'!#REF!) ->  | AX34: =IF('Races, Positions & Points'!#REF!="","",'Races, Positions & Points'!#REF!) ->  | AY34: =IF('Races, Positions & Points'!#REF!="","",'Races, Positions & Points'!#REF!) ->  | BH34: ='Races, Positions & Points'!#REF! ->  | BI34: ='Races, Positions & Points'!#REF! -> 
A35: ='Races, Positions & Points'!#REF! ->  | B35: =IF('Races, Positions & Points'!#REF!="","",'Races, Positions & Points'!#REF!) ->  | C35: =IF('Races, Positions & Points'!#REF!="","",'Races, Positions & Points'!#REF!) ->  | D35: =IF('Races, Positions & Points'!#REF!="","",'Races, Positions & Points'!#REF!) ->  | E35: =IF('Races, Positions & Points'!#REF!="","",'Races, Positions & Points'!#REF!) ->  | F35: =IF('Races, Positions & Points'!#REF!="","",'Races, Positions & Points'!#REF!) ->  | G35: =IF('Races, Positions & Points'!#REF!="","",'Races, Positions & Points'!#REF!) ->  | H35: =IF('Races, Positions & Points'!#REF!="","",'Races, Positions & Points'!#REF!) ->  | I35: =IF('Races, Positions & Points'!#REF!="","",'Races, Positions & Points'!#REF!) ->  | J35: =IF('Races, Positions & Points'!#REF!="","",'Races, Positions & Points'!#REF!) ->  | K35: =IF('Races, Positions & Points'!#REF!="","",'Races, Positions & Points'!#REF!) ->  | L35: =IF('Races, Positions & Points'!#REF!="","",'Races, Positions & Points'!#REF!) ->  | M35: =IF('Races, Positions & Points'!#REF!="","",'Races, Positions & Points'!#REF!) ->  | N35: =IF('Races, Positions & Points'!#REF!="","",'Races, Positions & Points'!#REF!) ->  | O35: =IF('Races, Positions & Points'!#REF!="","",'Races, Positions & Points'!#REF!) ->  | P35: =IF('Races, Positions & Points'!#REF!="","",'Races, Positions & Points'!#REF!) ->  | Q35: =IF('Races, Positions & Points'!#REF!="","",'Races, Positions & Points'!#REF!) ->  | R35: =IF('Races, Positions & Points'!#REF!="","",'Races, Positions & Points'!#REF!) ->  | S35: =IF('Races, Positions & Points'!#REF!="","",'Races, Positions & Points'!#REF!) ->  | T35: =IF('Races, Positions & Points'!#REF!="","",'Races, Positions & Points'!#REF!) ->  | U35: =IF('Races, Positions & Points'!#REF!="","",'Races, Positions & Points'!#REF!) ->  | V35: =IF('Races, Positions & Points'!#REF!="","",'Races, Positions & Points'!#REF!) ->  | W35: =IF('Races, Positions & Points'!#REF!="","",'Races, Positions & Points'!#REF!) ->  | X35: =IF('Races, Positions & Points'!#REF!="","",'Races, Positions & Points'!#REF!) ->  | Y35: =IF('Races, Positions & Points'!#REF!="","",'Races, Positions & Points'!#REF!) ->  | Z35: =IF('Races, Positions & Points'!#REF!="","",'Races, Positions & Points'!#REF!) ->  | AA35: =IF('Races, Positions & Points'!#REF!="","",'Races, Positions & Points'!#REF!) ->  | AB35: =IF('Races, Positions & Points'!#REF!="","",'Races, Positions & Points'!#REF!) ->  | AC35: =IF('Races, Positions & Points'!#REF!="","",'Races, Positions & Points'!#REF!) ->  | AD35: =IF('Races, Positions & Points'!#REF!="","",'Races, Positions & Points'!#REF!) ->  | AE35: =IF('Races, Positions & Points'!#REF!="","",'Races, Positions & Points'!#REF!) ->  | AF35: =IF('Races, Positions & Points'!#REF!="","",'Races, Positions & Points'!#REF!) ->  | AG35: =IF('Races, Positions & Points'!#REF!="","",'Races, Positions & Points'!#REF!) ->  | AH35: =IF('Races, Positions & Points'!#REF!="","",'Races, Positions & Points'!#REF!) ->  | AI35: =IF('Races, Positions & Points'!#REF!="","",'Races, Positions & Points'!#REF!) ->  | AJ35: =IF('Races, Positions & Points'!#REF!="","",'Races, Positions & Points'!#REF!) ->  | AK35: =IF('Races, Positions & Points'!#REF!="","",'Races, Positions & Points'!#REF!) ->  | AL35: =IF('Races, Positions & Points'!#REF!="","",'Races, Positions & Points'!#REF!) ->  | AM35: =IF('Races, Positions & Points'!#REF!="","",'Races, Positions & Points'!#REF!) ->  | AN35: =IF('Races, Positions & Points'!#REF!="","",'Races, Positions & Points'!#REF!) ->  | AO35: =IF('Races, Positions & Points'!#REF!="","",'Races, Positions & Points'!#REF!) ->  | AP35: =IF('Races, Positions & Points'!#REF!="","",'Races, Positions & Points'!#REF!) ->  | AQ35: =IF('Races, Positions & Points'!#REF!="","",'Races, Positions & Points'!#REF!) ->  | AR35: =IF('Races, Positions & Points'!#REF!="","",'Races, Positions & Points'!#REF!) ->  | AS35: =IF('Races, Positions & Points'!#REF!="","",'Races, Positions & Points'!#REF!) ->  | AT35: =IF('Races, Positions & Points'!#REF!="","",'Races, Positions & Points'!#REF!) ->  | AU35: =IF('Races, Positions & Points'!#REF!="","",'Races, Positions & Points'!#REF!) ->  | AV35: =IF('Races, Positions & Points'!#REF!="","",'Races, Positions & Points'!#REF!) ->  | AW35: =IF('Races, Positions & Points'!#REF!="","",'Races, Positions & Points'!#REF!) ->  | AX35: =IF('Races, Positions & Points'!#REF!="","",'Races, Positions & Points'!#REF!) ->  | AY35: =IF('Races, Positions & Points'!#REF!="","",'Races, Positions & Points'!#REF!) ->  | BH35: ='Races, Positions & Points'!#REF! ->  | BI35: ='Races, Positions & Points'!#REF! -> 
A36: ='Races, Positions & Points'!#REF! ->  | B36: =IF('Races, Positions & Points'!#REF!="","",'Races, Positions & Points'!#REF!) ->  | C36: =IF('Races, Positions & Points'!#REF!="","",'Races, Positions & Points'!#REF!) ->  | D36: =IF('Races, Positions & Points'!#REF!="","",'Races, Positions & Points'!#REF!) ->  | E36: =IF('Races, Positions & Points'!#REF!="","",'Races, Positions & Points'!#REF!) ->  | F36: =IF('Races, Positions & Points'!#REF!="","",'Races, Positions & Points'!#REF!) ->  | G36: =IF('Races, Positions & Points'!#REF!="","",'Races, Positions & Points'!#REF!) ->  | H36: =IF('Races, Positions & Points'!#REF!="","",'Races, Positions & Points'!#REF!) ->  | I36: =IF('Races, Positions & Points'!#REF!="","",'Races, Positions & Points'!#REF!) ->  | J36: =IF('Races, Positions & Points'!#REF!="","",'Races, Positions & Points'!#REF!) ->  | K36: =IF('Races, Positions & Points'!#REF!="","",'Races, Positions & Points'!#REF!) ->  | L36: =IF('Races, Positions & Points'!#REF!="","",'Races, Positions & Points'!#REF!) ->  | M36: =IF('Races, Positions & Points'!#REF!="","",'Races, Positions & Points'!#REF!) ->  | N36: =IF('Races, Positions & Points'!#REF!="","",'Races, Positions & Points'!#REF!) ->  | O36: =IF('Races, Positions & Points'!#REF!="","",'Races, Positions & Points'!#REF!) ->  | P36: =IF('Races, Positions & Points'!#REF!="","",'Races, Positions & Points'!#REF!) ->  | Q36: =IF('Races, Positions & Points'!#REF!="","",'Races, Positions & Points'!#REF!) ->  | R36: =IF('Races, Positions & Points'!#REF!="","",'Races, Positions & Points'!#REF!) ->  | S36: =IF('Races, Positions & Points'!#REF!="","",'Races, Positions & Points'!#REF!) ->  | T36: =IF('Races, Positions & Points'!#REF!="","",'Races, Positions & Points'!#REF!) ->  | U36: =IF('Races, Positions & Points'!#REF!="","",'Races, Positions & Points'!#REF!) ->  | V36: =IF('Races, Positions & Points'!#REF!="","",'Races, Positions & Points'!#REF!) ->  | W36: =IF('Races, Positions & Points'!#REF!="","",'Races, Positions & Points'!#REF!) ->  | X36: =IF('Races, Positions & Points'!#REF!="","",'Races, Positions & Points'!#REF!) ->  | Y36: =IF('Races, Positions & Points'!#REF!="","",'Races, Positions & Points'!#REF!) ->  | Z36: =IF('Races, Positions & Points'!#REF!="","",'Races, Positions & Points'!#REF!) ->  | AA36: =IF('Races, Positions & Points'!#REF!="","",'Races, Positions & Points'!#REF!) ->  | AB36: =IF('Races, Positions & Points'!#REF!="","",'Races, Positions & Points'!#REF!) ->  | AC36: =IF('Races, Positions & Points'!#REF!="","",'Races, Positions & Points'!#REF!) ->  | AD36: =IF('Races, Positions & Points'!#REF!="","",'Races, Positions & Points'!#REF!) ->  | AE36: =IF('Races, Positions & Points'!#REF!="","",'Races, Positions & Points'!#REF!) ->  | AF36: =IF('Races, Positions & Points'!#REF!="","",'Races, Positions & Points'!#REF!) ->  | AG36: =IF('Races, Positions & Points'!#REF!="","",'Races, Positions & Points'!#REF!) ->  | AH36: =IF('Races, Positions & Points'!#REF!="","",'Races, Positions & Points'!#REF!) ->  | AI36: =IF('Races, Positions & Points'!#REF!="","",'Races, Positions & Points'!#REF!) ->  | AJ36: =IF('Races, Positions & Points'!#REF!="","",'Races, Positions & Points'!#REF!) ->  | AK36: =IF('Races, Positions & Points'!#REF!="","",'Races, Positions & Points'!#REF!) ->  | AL36: =IF('Races, Positions & Points'!#REF!="","",'Races, Positions & Points'!#REF!) ->  | AM36: =IF('Races, Positions & Points'!#REF!="","",'Races, Positions & Points'!#REF!) ->  | AN36: =IF('Races, Positions & Points'!#REF!="","",'Races, Positions & Points'!#REF!) ->  | AO36: =IF('Races, Positions & Points'!#REF!="","",'Races, Positions & Points'!#REF!) ->  | AP36: =IF('Races, Positions & Points'!#REF!="","",'Races, Positions & Points'!#REF!) ->  | AQ36: =IF('Races, Positions & Points'!#REF!="","",'Races, Positions & Points'!#REF!) ->  | AR36: =IF('Races, Positions & Points'!#REF!="","",'Races, Positions & Points'!#REF!) ->  | AS36: =IF('Races, Positions & Points'!#REF!="","",'Races, Positions & Points'!#REF!) ->  | AT36: =IF('Races, Positions & Points'!#REF!="","",'Races, Positions & Points'!#REF!) ->  | AU36: =IF('Races, Positions & Points'!#REF!="","",'Races, Positions & Points'!#REF!) ->  | AV36: =IF('Races, Positions & Points'!#REF!="","",'Races, Positions & Points'!#REF!) ->  | AW36: =IF('Races, Positions & Points'!#REF!="","",'Races, Positions & Points'!#REF!) ->  | AX36: =IF('Races, Positions & Points'!#REF!="","",'Races, Positions & Points'!#REF!) ->  | AY36: =IF('Races, Positions & Points'!#REF!="","",'Races, Positions & Points'!#REF!) ->  | BH36: ='Races, Positions & Points'!#REF! ->  | BI36: ='Races, Positions & Points'!#REF! -> 
A37: ='Races, Positions & Points'!#REF! ->  | B37: =IF('Races, Positions & Points'!#REF!="","",'Races, Positions & Points'!#REF!) ->  | C37: =IF('Races, Positions & Points'!#REF!="","",'Races, Positions & Points'!#REF!) ->  | D37: =IF('Races, Positions & Points'!#REF!="","",'Races, Positions & Points'!#REF!) ->  | E37: =IF('Races, Positions & Points'!#REF!="","",'Races, Positions & Points'!#REF!) ->  | F37: =IF('Races, Positions & Points'!#REF!="","",'Races, Positions & Points'!#REF!) ->  | G37: =IF('Races, Positions & Points'!#REF!="","",'Races, Positions & Points'!#REF!) ->  | H37: =IF('Races, Positions & Points'!#REF!="","",'Races, Positions & Points'!#REF!) ->  | I37: =IF('Races, Positions & Points'!#REF!="","",'Races, Positions & Points'!#REF!) ->  | J37: =IF('Races, Positions & Points'!#REF!="","",'Races, Positions & Points'!#REF!) ->  | K37: =IF('Races, Positions & Points'!#REF!="","",'Races, Positions & Points'!#REF!) ->  | L37: =IF('Races, Positions & Points'!#REF!="","",'Races, Positions & Points'!#REF!) ->  | M37: =IF('Races, Positions & Points'!#REF!="","",'Races, Positions & Points'!#REF!) ->  | N37: =IF('Races, Positions & Points'!#REF!="","",'Races, Positions & Points'!#REF!) ->  | O37: =IF('Races, Positions & Points'!#REF!="","",'Races, Positions & Points'!#REF!) ->  | P37: =IF('Races, Positions & Points'!#REF!="","",'Races, Positions & Points'!#REF!) ->  | Q37: =IF('Races, Positions & Points'!#REF!="","",'Races, Positions & Points'!#REF!) ->  | R37: =IF('Races, Positions & Points'!#REF!="","",'Races, Positions & Points'!#REF!) ->  | S37: =IF('Races, Positions & Points'!#REF!="","",'Races, Positions & Points'!#REF!) ->  | T37: =IF('Races, Positions & Points'!#REF!="","",'Races, Positions & Points'!#REF!) ->  | U37: =IF('Races, Positions & Points'!#REF!="","",'Races, Positions & Points'!#REF!) ->  | V37: =IF('Races, Positions & Points'!#REF!="","",'Races, Positions & Points'!#REF!) ->  | W37: =IF('Races, Positions & Points'!#REF!="","",'Races, Positions & Points'!#REF!) ->  | X37: =IF('Races, Positions & Points'!#REF!="","",'Races, Positions & Points'!#REF!) ->  | Y37: =IF('Races, Positions & Points'!#REF!="","",'Races, Positions & Points'!#REF!) ->  | Z37: =IF('Races, Positions & Points'!#REF!="","",'Races, Positions & Points'!#REF!) ->  | AA37: =IF('Races, Positions & Points'!#REF!="","",'Races, Positions & Points'!#REF!) ->  | AB37: =IF('Races, Positions & Points'!#REF!="","",'Races, Positions & Points'!#REF!) ->  | AC37: =IF('Races, Positions & Points'!#REF!="","",'Races, Positions & Points'!#REF!) ->  | AD37: =IF('Races, Positions & Points'!#REF!="","",'Races, Positions & Points'!#REF!) ->  | AE37: =IF('Races, Positions & Points'!#REF!="","",'Races, Positions & Points'!#REF!) ->  | AF37: =IF('Races, Positions & Points'!#REF!="","",'Races, Positions & Points'!#REF!) ->  | AG37: =IF('Races, Positions & Points'!#REF!="","",'Races, Positions & Points'!#REF!) ->  | AH37: =IF('Races, Positions & Points'!#REF!="","",'Races, Positions & Points'!#REF!) ->  | AI37: =IF('Races, Positions & Points'!#REF!="","",'Races, Positions & Points'!#REF!) ->  | AJ37: =IF('Races, Positions & Points'!#REF!="","",'Races, Positions & Points'!#REF!) ->  | AK37: =IF('Races, Positions & Points'!#REF!="","",'Races, Positions & Points'!#REF!) ->  | AL37: =IF('Races, Positions & Points'!#REF!="","",'Races, Positions & Points'!#REF!) ->  | AM37: =IF('Races, Positions & Points'!#REF!="","",'Races, Positions & Points'!#REF!) ->  | AN37: =IF('Races, Positions & Points'!#REF!="","",'Races, Positions & Points'!#REF!) ->  | AO37: =IF('Races, Positions & Points'!#REF!="","",'Races, Positions & Points'!#REF!) ->  | AP37: =IF('Races, Positions & Points'!#REF!="","",'Races, Positions & Points'!#REF!) ->  | AQ37: =IF('Races, Positions & Points'!#REF!="","",'Races, Positions & Points'!#REF!) ->  | AR37: =IF('Races, Positions & Points'!#REF!="","",'Races, Positions & Points'!#REF!) ->  | AS37: =IF('Races, Positions & Points'!#REF!="","",'Races, Positions & Points'!#REF!) ->  | AT37: =IF('Races, Positions & Points'!#REF!="","",'Races, Positions & Points'!#REF!) ->  | AU37: =IF('Races, Positions & Points'!#REF!="","",'Races, Positions & Points'!#REF!) ->  | AV37: =IF('Races, Positions & Points'!#REF!="","",'Races, Positions & Points'!#REF!) ->  | AW37: =IF('Races, Positions & Points'!#REF!="","",'Races, Positions & Points'!#REF!) ->  | AX37: =IF('Races, Positions & Points'!#REF!="","",'Races, Positions & Points'!#REF!) ->  | AY37: =IF('Races, Positions & Points'!#REF!="","",'Races, Positions & Points'!#REF!) ->  | BH37: ='Races, Positions & Points'!#REF! ->  | BI37: ='Races, Positions & Points'!#REF! -> 
A38: ='Races, Positions & Points'!#REF! ->  | B38: =IF('Races, Positions & Points'!#REF!="","",'Races, Positions & Points'!#REF!) ->  | C38: =IF('Races, Positions & Points'!#REF!="","",'Races, Positions & Points'!#REF!) ->  | D38: =IF('Races, Positions & Points'!#REF!="","",'Races, Positions & Points'!#REF!) ->  | E38: =IF('Races, Positions & Points'!#REF!="","",'Races, Positions & Points'!#REF!) ->  | F38: =IF('Races, Positions & Points'!#REF!="","",'Races, Positions & Points'!#REF!) ->  | G38: =IF('Races, Positions & Points'!#REF!="","",'Races, Positions & Points'!#REF!) ->  | H38: =IF('Races, Positions & Points'!#REF!="","",'Races, Positions & Points'!#REF!) ->  | I38: =IF('Races, Positions & Points'!#REF!="","",'Races, Positions & Points'!#REF!) ->  | J38: =IF('Races, Positions & Points'!#REF!="","",'Races, Positions & Points'!#REF!) ->  | K38: =IF('Races, Positions & Points'!#REF!="","",'Races, Positions & Points'!#REF!) ->  | L38: =IF('Races, Positions & Points'!#REF!="","",'Races, Positions & Points'!#REF!) ->  | M38: =IF('Races, Positions & Points'!#REF!="","",'Races, Positions & Points'!#REF!) ->  | N38: =IF('Races, Positions & Points'!#REF!="","",'Races, Positions & Points'!#REF!) ->  | O38: =IF('Races, Positions & Points'!#REF!="","",'Races, Positions & Points'!#REF!) ->  | P38: =IF('Races, Positions & Points'!#REF!="","",'Races, Positions & Points'!#REF!) ->  | Q38: =IF('Races, Positions & Points'!#REF!="","",'Races, Positions & Points'!#REF!) ->  | R38: =IF('Races, Positions & Points'!#REF!="","",'Races, Positions & Points'!#REF!) ->  | S38: =IF('Races, Positions & Points'!#REF!="","",'Races, Positions & Points'!#REF!) ->  | T38: =IF('Races, Positions & Points'!#REF!="","",'Races, Positions & Points'!#REF!) ->  | U38: =IF('Races, Positions & Points'!#REF!="","",'Races, Positions & Points'!#REF!) ->  | V38: =IF('Races, Positions & Points'!#REF!="","",'Races, Positions & Points'!#REF!) ->  | W38: =IF('Races, Positions & Points'!#REF!="","",'Races, Positions & Points'!#REF!) ->  | X38: =IF('Races, Positions & Points'!#REF!="","",'Races, Positions & Points'!#REF!) ->  | Y38: =IF('Races, Positions & Points'!#REF!="","",'Races, Positions & Points'!#REF!) ->  | Z38: =IF('Races, Positions & Points'!#REF!="","",'Races, Positions & Points'!#REF!) ->  | AA38: =IF('Races, Positions & Points'!#REF!="","",'Races, Positions & Points'!#REF!) ->  | AB38: =IF('Races, Positions & Points'!#REF!="","",'Races, Positions & Points'!#REF!) ->  | AC38: =IF('Races, Positions & Points'!#REF!="","",'Races, Positions & Points'!#REF!) ->  | AD38: =IF('Races, Positions & Points'!#REF!="","",'Races, Positions & Points'!#REF!) ->  | AE38: =IF('Races, Positions & Points'!#REF!="","",'Races, Positions & Points'!#REF!) ->  | AF38: =IF('Races, Positions & Points'!#REF!="","",'Races, Positions & Points'!#REF!) ->  | AG38: =IF('Races, Positions & Points'!#REF!="","",'Races, Positions & Points'!#REF!) ->  | AH38: =IF('Races, Positions & Points'!#REF!="","",'Races, Positions & Points'!#REF!) ->  | AI38: =IF('Races, Positions & Points'!#REF!="","",'Races, Positions & Points'!#REF!) ->  | AJ38: =IF('Races, Positions & Points'!#REF!="","",'Races, Positions & Points'!#REF!) ->  | AK38: =IF('Races, Positions & Points'!#REF!="","",'Races, Positions & Points'!#REF!) ->  | AL38: =IF('Races, Positions & Points'!#REF!="","",'Races, Positions & Points'!#REF!) ->  | AM38: =IF('Races, Positions & Points'!#REF!="","",'Races, Positions & Points'!#REF!) ->  | AN38: =IF('Races, Positions & Points'!#REF!="","",'Races, Positions & Points'!#REF!) ->  | AO38: =IF('Races, Positions & Points'!#REF!="","",'Races, Positions & Points'!#REF!) ->  | AP38: =IF('Races, Positions & Points'!#REF!="","",'Races, Positions & Points'!#REF!) ->  | AQ38: =IF('Races, Positions & Points'!#REF!="","",'Races, Positions & Points'!#REF!) ->  | AR38: =IF('Races, Positions & Points'!#REF!="","",'Races, Positions & Points'!#REF!) ->  | AS38: =IF('Races, Positions & Points'!#REF!="","",'Races, Positions & Points'!#REF!) ->  | AT38: =IF('Races, Positions & Points'!#REF!="","",'Races, Positions & Points'!#REF!) ->  | AU38: =IF('Races, Positions & Points'!#REF!="","",'Races, Positions & Points'!#REF!) ->  | AV38: =IF('Races, Positions & Points'!#REF!="","",'Races, Positions & Points'!#REF!) ->  | AW38: =IF('Races, Positions & Points'!#REF!="","",'Races, Positions & Points'!#REF!) ->  | AX38: =IF('Races, Positions & Points'!#REF!="","",'Races, Positions & Points'!#REF!) ->  | AY38: =IF('Races, Positions & Points'!#REF!="","",'Races, Positions & Points'!#REF!) ->  | BH38: ='Races, Positions & Points'!#REF! ->  | BI38: ='Races, Positions & Points'!#REF! -> 
A39: ='Races, Positions & Points'!#REF! ->  | B39: =IF('Races, Positions & Points'!#REF!="","",'Races, Positions & Points'!#REF!) ->  | C39: =IF('Races, Positions & Points'!#REF!="","",'Races, Positions & Points'!#REF!) ->  | D39: =IF('Races, Positions & Points'!#REF!="","",'Races, Positions & Points'!#REF!) ->  | E39: =IF('Races, Positions & Points'!#REF!="","",'Races, Positions & Points'!#REF!) ->  | F39: =IF('Races, Positions & Points'!#REF!="","",'Races, Positions & Points'!#REF!) ->  | G39: =IF('Races, Positions & Points'!#REF!="","",'Races, Positions & Points'!#REF!) ->  | H39: =IF('Races, Positions & Points'!#REF!="","",'Races, Positions & Points'!#REF!) ->  | I39: =IF('Races, Positions & Points'!#REF!="","",'Races, Positions & Points'!#REF!) ->  | J39: =IF('Races, Positions & Points'!#REF!="","",'Races, Positions & Points'!#REF!) ->  | K39: =IF('Races, Positions & Points'!#REF!="","",'Races, Positions & Points'!#REF!) ->  | L39: =IF('Races, Positions & Points'!#REF!="","",'Races, Positions & Points'!#REF!) ->  | M39: =IF('Races, Positions & Points'!#REF!="","",'Races, Positions & Points'!#REF!) ->  | N39: =IF('Races, Positions & Points'!#REF!="","",'Races, Positions & Points'!#REF!) ->  | O39: =IF('Races, Positions & Points'!#REF!="","",'Races, Positions & Points'!#REF!) ->  | P39: =IF('Races, Positions & Points'!#REF!="","",'Races, Positions & Points'!#REF!) ->  | Q39: =IF('Races, Positions & Points'!#REF!="","",'Races, Positions & Points'!#REF!) ->  | R39: =IF('Races, Positions & Points'!#REF!="","",'Races, Positions & Points'!#REF!) ->  | S39: =IF('Races, Positions & Points'!#REF!="","",'Races, Positions & Points'!#REF!) ->  | T39: =IF('Races, Positions & Points'!#REF!="","",'Races, Positions & Points'!#REF!) ->  | U39: =IF('Races, Positions & Points'!#REF!="","",'Races, Positions & Points'!#REF!) ->  | V39: =IF('Races, Positions & Points'!#REF!="","",'Races, Positions & Points'!#REF!) ->  | W39: =IF('Races, Positions & Points'!#REF!="","",'Races, Positions & Points'!#REF!) ->  | X39: =IF('Races, Positions & Points'!#REF!="","",'Races, Positions & Points'!#REF!) ->  | Y39: =IF('Races, Positions & Points'!#REF!="","",'Races, Positions & Points'!#REF!) ->  | Z39: =IF('Races, Positions & Points'!#REF!="","",'Races, Positions & Points'!#REF!) ->  | AA39: =IF('Races, Positions & Points'!#REF!="","",'Races, Positions & Points'!#REF!) ->  | AB39: =IF('Races, Positions & Points'!#REF!="","",'Races, Positions & Points'!#REF!) ->  | AC39: =IF('Races, Positions & Points'!#REF!="","",'Races, Positions & Points'!#REF!) ->  | AD39: =IF('Races, Positions & Points'!#REF!="","",'Races, Positions & Points'!#REF!) ->  | AE39: =IF('Races, Positions & Points'!#REF!="","",'Races, Positions & Points'!#REF!) ->  | AF39: =IF('Races, Positions & Points'!#REF!="","",'Races, Positions & Points'!#REF!) ->  | AG39: =IF('Races, Positions & Points'!#REF!="","",'Races, Positions & Points'!#REF!) ->  | AH39: =IF('Races, Positions & Points'!#REF!="","",'Races, Positions & Points'!#REF!) ->  | AI39: =IF('Races, Positions & Points'!#REF!="","",'Races, Positions & Points'!#REF!) ->  | AJ39: =IF('Races, Positions & Points'!#REF!="","",'Races, Positions & Points'!#REF!) ->  | AK39: =IF('Races, Positions & Points'!#REF!="","",'Races, Positions & Points'!#REF!) ->  | AL39: =IF('Races, Positions & Points'!#REF!="","",'Races, Positions & Points'!#REF!) ->  | AM39: =IF('Races, Positions & Points'!#REF!="","",'Races, Positions & Points'!#REF!) ->  | AN39: =IF('Races, Positions & Points'!#REF!="","",'Races, Positions & Points'!#REF!) ->  | AO39: =IF('Races, Positions & Points'!#REF!="","",'Races, Positions & Points'!#REF!) ->  | AP39: =IF('Races, Positions & Points'!#REF!="","",'Races, Positions & Points'!#REF!) ->  | AQ39: =IF('Races, Positions & Points'!#REF!="","",'Races, Positions & Points'!#REF!) ->  | AR39: =IF('Races, Positions & Points'!#REF!="","",'Races, Positions & Points'!#REF!) ->  | AS39: =IF('Races, Positions & Points'!#REF!="","",'Races, Positions & Points'!#REF!) ->  | AT39: =IF('Races, Positions & Points'!#REF!="","",'Races, Positions & Points'!#REF!) ->  | AU39: =IF('Races, Positions & Points'!#REF!="","",'Races, Positions & Points'!#REF!) ->  | AV39: =IF('Races, Positions & Points'!#REF!="","",'Races, Positions & Points'!#REF!) ->  | AW39: =IF('Races, Positions & Points'!#REF!="","",'Races, Positions & Points'!#REF!) ->  | AX39: =IF('Races, Positions & Points'!#REF!="","",'Races, Positions & Points'!#REF!) ->  | AY39: =IF('Races, Positions & Points'!#REF!="","",'Races, Positions & Points'!#REF!) ->  | BH39: ='Races, Positions & Points'!#REF! ->  | BI39: ='Races, Positions & Points'!#REF! -> 
A40: ='Races, Positions & Points'!#REF! ->  | B40: =IF('Races, Positions & Points'!#REF!="","",'Races, Positions & Points'!#REF!) ->  | C40: =IF('Races, Positions & Points'!#REF!="","",'Races, Positions & Points'!#REF!) ->  | D40: =IF('Races, Positions & Points'!#REF!="","",'Races, Positions & Points'!#REF!) ->  | E40: =IF('Races, Positions & Points'!#REF!="","",'Races, Positions & Points'!#REF!) ->  | F40: =IF('Races, Positions & Points'!#REF!="","",'Races, Positions & Points'!#REF!) ->  | G40: =IF('Races, Positions & Points'!#REF!="","",'Races, Positions & Points'!#REF!) ->  | H40: =IF('Races, Positions & Points'!#REF!="","",'Races, Positions & Points'!#REF!) ->  | I40: =IF('Races, Positions & Points'!#REF!="","",'Races, Positions & Points'!#REF!) ->  | J40: =IF('Races, Positions & Points'!#REF!="","",'Races, Positions & Points'!#REF!) ->  | K40: =IF('Races, Positions & Points'!#REF!="","",'Races, Positions & Points'!#REF!) ->  | L40: =IF('Races, Positions & Points'!#REF!="","",'Races, Positions & Points'!#REF!) ->  | M40: =IF('Races, Positions & Points'!#REF!="","",'Races, Positions & Points'!#REF!) ->  | N40: =IF('Races, Positions & Points'!#REF!="","",'Races, Positions & Points'!#REF!) ->  | O40: =IF('Races, Positions & Points'!#REF!="","",'Races, Positions & Points'!#REF!) ->  | P40: =IF('Races, Positions & Points'!#REF!="","",'Races, Positions & Points'!#REF!) ->  | Q40: =IF('Races, Positions & Points'!#REF!="","",'Races, Positions & Points'!#REF!) ->  | R40: =IF('Races, Positions & Points'!#REF!="","",'Races, Positions & Points'!#REF!) ->  | S40: =IF('Races, Positions & Points'!#REF!="","",'Races, Positions & Points'!#REF!) ->  | T40: =IF('Races, Positions & Points'!#REF!="","",'Races, Positions & Points'!#REF!) ->  | U40: =IF('Races, Positions & Points'!#REF!="","",'Races, Positions & Points'!#REF!) ->  | V40: =IF('Races, Positions & Points'!#REF!="","",'Races, Positions & Points'!#REF!) ->  | W40: =IF('Races, Positions & Points'!#REF!="","",'Races, Positions & Points'!#REF!) ->  | X40: =IF('Races, Positions & Points'!#REF!="","",'Races, Positions & Points'!#REF!) ->  | Y40: =IF('Races, Positions & Points'!#REF!="","",'Races, Positions & Points'!#REF!) ->  | Z40: =IF('Races, Positions & Points'!#REF!="","",'Races, Positions & Points'!#REF!) ->  | AA40: =IF('Races, Positions & Points'!#REF!="","",'Races, Positions & Points'!#REF!) ->  | AB40: =IF('Races, Positions & Points'!#REF!="","",'Races, Positions & Points'!#REF!) ->  | AC40: =IF('Races, Positions & Points'!#REF!="","",'Races, Positions & Points'!#REF!) ->  | AD40: =IF('Races, Positions & Points'!#REF!="","",'Races, Positions & Points'!#REF!) ->  | AE40: =IF('Races, Positions & Points'!#REF!="","",'Races, Positions & Points'!#REF!) ->  | AF40: =IF('Races, Positions & Points'!#REF!="","",'Races, Positions & Points'!#REF!) ->  | AG40: =IF('Races, Positions & Points'!#REF!="","",'Races, Positions & Points'!#REF!) ->  | AH40: =IF('Races, Positions & Points'!#REF!="","",'Races, Positions & Points'!#REF!) ->  | AI40: =IF('Races, Positions & Points'!#REF!="","",'Races, Positions & Points'!#REF!) ->  | AJ40: =IF('Races, Positions & Points'!#REF!="","",'Races, Positions & Points'!#REF!) ->  | AK40: =IF('Races, Positions & Points'!#REF!="","",'Races, Positions & Points'!#REF!) ->  | AL40: =IF('Races, Positions & Points'!#REF!="","",'Races, Positions & Points'!#REF!) ->  | AM40: =IF('Races, Positions & Points'!#REF!="","",'Races, Positions & Points'!#REF!) ->  | AN40: =IF('Races, Positions & Points'!#REF!="","",'Races, Positions & Points'!#REF!) ->  | AO40: =IF('Races, Positions & Points'!#REF!="","",'Races, Positions & Points'!#REF!) ->  | AP40: =IF('Races, Positions & Points'!#REF!="","",'Races, Positions & Points'!#REF!) ->  | AQ40: =IF('Races, Positions & Points'!#REF!="","",'Races, Positions & Points'!#REF!) ->  | AR40: =IF('Races, Positions & Points'!#REF!="","",'Races, Positions & Points'!#REF!) ->  | AS40: =IF('Races, Positions & Points'!#REF!="","",'Races, Positions & Points'!#REF!) ->  | AT40: =IF('Races, Positions & Points'!#REF!="","",'Races, Positions & Points'!#REF!) ->  | AU40: =IF('Races, Positions & Points'!#REF!="","",'Races, Positions & Points'!#REF!) ->  | AV40: =IF('Races, Positions & Points'!#REF!="","",'Races, Positions & Points'!#REF!) ->  | AW40: =IF('Races, Positions & Points'!#REF!="","",'Races, Positions & Points'!#REF!) ->  | AX40: =IF('Races, Positions & Points'!#REF!="","",'Races, Positions & Points'!#REF!) ->  | AY40: =IF('Races, Positions & Points'!#REF!="","",'Races, Positions & Points'!#REF!) ->  | BH40: ='Races, Positions & Points'!#REF! ->  | BI40: ='Races, Positions & Points'!#REF! -> 
A42: ='Races, Positions & Points'!#REF! ->  | B42: =IF('Races, Positions & Points'!#REF!="","",'Races, Positions & Points'!#REF!) ->  | C42: =IF('Races, Positions & Points'!#REF!="","",'Races, Positions & Points'!#REF!) ->  | D42: =IF('Races, Positions & Points'!#REF!="","",'Races, Positions & Points'!#REF!) ->  | E42: =IF('Races, Positions & Points'!#REF!="","",'Races, Positions & Points'!#REF!) ->  | F42: =IF('Races, Positions & Points'!#REF!="","",'Races, Positions & Points'!#REF!) ->  | G42: =IF('Races, Positions & Points'!#REF!="","",'Races, Positions & Points'!#REF!) ->  | H42: =IF('Races, Positions & Points'!#REF!="","",'Races, Positions & Points'!#REF!) ->  | I42: =IF('Races, Positions & Points'!#REF!="","",'Races, Positions & Points'!#REF!) ->  | J42: =IF('Races, Positions & Points'!#REF!="","",'Races, Positions & Points'!#REF!) ->  | K42: =IF('Races, Positions & Points'!#REF!="","",'Races, Positions & Points'!#REF!) ->  | L42: =IF('Races, Positions & Points'!#REF!="","",'Races, Positions & Points'!#REF!) ->  | M42: =IF('Races, Positions & Points'!#REF!="","",'Races, Positions & Points'!#REF!) ->  | N42: =IF('Races, Positions & Points'!#REF!="","",'Races, Positions & Points'!#REF!) ->  | O42: =IF('Races, Positions & Points'!#REF!="","",'Races, Positions & Points'!#REF!) ->  | P42: =IF('Races, Positions & Points'!#REF!="","",'Races, Positions & Points'!#REF!) ->  | Q42: =IF('Races, Positions & Points'!#REF!="","",'Races, Positions & Points'!#REF!) ->  | R42: =IF('Races, Positions & Points'!#REF!="","",'Races, Positions & Points'!#REF!) ->  | S42: =IF('Races, Positions & Points'!#REF!="","",'Races, Positions & Points'!#REF!) ->  | T42: =IF('Races, Positions & Points'!#REF!="","",'Races, Positions & Points'!#REF!) ->  | U42: =IF('Races, Positions & Points'!#REF!="","",'Races, Positions & Points'!#REF!) ->  | V42: =IF('Races, Positions & Points'!#REF!="","",'Races, Positions & Points'!#REF!) ->  | W42: =IF('Races, Positions & Points'!#REF!="","",'Races, Positions & Points'!#REF!) ->  | X42: =IF('Races, Positions & Points'!#REF!="","",'Races, Positions & Points'!#REF!) ->  | Y42: =IF('Races, Positions & Points'!#REF!="","",'Races, Positions & Points'!#REF!) ->  | Z42: =IF('Races, Positions & Points'!#REF!="","",'Races, Positions & Points'!#REF!) ->  | AA42: =IF('Races, Positions & Points'!#REF!="","",'Races, Positions & Points'!#REF!) ->  | AB42: =IF('Races, Positions & Points'!#REF!="","",'Races, Positions & Points'!#REF!) ->  | AC42: =IF('Races, Positions & Points'!#REF!="","",'Races, Positions & Points'!#REF!) ->  | AD42: =IF('Races, Positions & Points'!#REF!="","",'Races, Positions & Points'!#REF!) ->  | AE42: =IF('Races, Positions & Points'!#REF!="","",'Races, Positions & Points'!#REF!) ->  | AF42: =IF('Races, Positions & Points'!#REF!="","",'Races, Positions & Points'!#REF!) ->  | AG42: =IF('Races, Positions & Points'!#REF!="","",'Races, Positions & Points'!#REF!) ->  | AH42: =IF('Races, Positions & Points'!#REF!="","",'Races, Positions & Points'!#REF!) ->  | AI42: =IF('Races, Positions & Points'!#REF!="","",'Races, Positions & Points'!#REF!) ->  | AJ42: =IF('Races, Positions & Points'!#REF!="","",'Races, Positions & Points'!#REF!) ->  | AK42: =IF('Races, Positions & Points'!#REF!="","",'Races, Positions & Points'!#REF!) ->  | AL42: =IF('Races, Positions & Points'!#REF!="","",'Races, Positions & Points'!#REF!) ->  | AM42: =IF('Races, Positions & Points'!#REF!="","",'Races, Positions & Points'!#REF!) ->  | AN42: =IF('Races, Positions & Points'!#REF!="","",'Races, Positions & Points'!#REF!) ->  | AO42: =IF('Races, Positions & Points'!#REF!="","",'Races, Positions & Points'!#REF!) ->  | AP42: =IF('Races, Positions & Points'!#REF!="","",'Races, Positions & Points'!#REF!) ->  | AQ42: =IF('Races, Positions & Points'!#REF!="","",'Races, Positions & Points'!#REF!) ->  | AR42: =IF('Races, Positions & Points'!#REF!="","",'Races, Positions & Points'!#REF!) ->  | AS42: =IF('Races, Positions & Points'!#REF!="","",'Races, Positions & Points'!#REF!) ->  | AT42: =IF('Races, Positions & Points'!#REF!="","",'Races, Positions & Points'!#REF!) ->  | AU42: =IF('Races, Positions & Points'!#REF!="","",'Races, Positions & Points'!#REF!) ->  | AV42: =IF('Races, Positions & Points'!#REF!="","",'Races, Positions & Points'!#REF!) ->  | AW42: =IF('Races, Positions & Points'!#REF!="","",'Races, Positions & Points'!#REF!) ->  | AX42: =IF('Races, Positions & Points'!#REF!="","",'Races, Positions & Points'!#REF!) ->  | AY42: =IF('Races, Positions & Points'!#REF!="","",'Races, Positions & Points'!#REF!) ->  | BA42: =SUMPRODUCT(--(B$4:AY$4="In"),--(B$3:AY$3>5),--(B$5:AY$5="Y"),--(B42:AY42<>"")) ->  | BB42: =SUMPRODUCT(--(B$4:AY$4="Out"),--(B$3:AY$3>5),--(B$5:AY$5="Y"),--(B42:AY42<>"")) ->  | BC42: =SUMPRODUCT(--(B$4:AY$4="In"),--(B$3:AY$3=5),--(B$5:AY$5="Y"),--(B42:AY42<>"")) ->  | BD42: =SUMPRODUCT(--(B$4:AY$4="Out"),--(B$3:AY$3=5),--(B$5:AY$5="Y"),--(B42:AY42<>"")) ->  | BE42: =SUMPRODUCT(--(B$4:AY$4="In"),--(B$3:AY$3=0),--(B$5:AY$5="Y"),--(B42:AY42<>"")) ->  | BF42: =SUMPRODUCT(--(B$4:AY$4="Out"),--(B$3:AY$3=0),--(B$5:AY$5="Y"),--(B42:AY42<>"")) ->  | BH42: ='Races, Positions & Points'!#REF! ->  | BI42: ='Races, Positions & Points'!#REF! ->  | CB42: =IF(MIN(C42,K42,L42,AH42,AI42,AK42,AL42)>0,MIN(C42,K42,L42,AH42,AI42,AK42,AL42),"") ->  | CC42: =IF(MIN(E42,F42,G42,H42,Z42,AF42,AG42,AP42,AQ42,AU42)>0,MIN(E42,F42,G42,H42,Z42,AF42,AG42,AP42,AQ42,AU42),"") ->  | CD42: =IF(MIN(T42,V42)>0,MIN(T42,V42),"") ->  | CE42: =IF(MIN(W42,X42)>0,MIN(W42,X42),"") ->  | CF42: =IF(MIN(B42,M42,N42,AR42,AS42)>0,MIN(B42,M42,N42,AR42,AS42),"") ->  | CG42: =IF(MIN(D42,O42,AB42,AC42,AE42)>0,MIN(D42,O42,AB42,AC42,AE42),"") ->  | CH42: =IF(MIN(I42,J42)>0,MIN(I42,J42),"") ->  | CI42: =IF(Q42>0,Q42,"") ->  | CJ42: =IF(MIN(S42,AM42,AT42,AY42)>0,MIN(S42,AM42,AT42,AY42),"") ->  | CK42: =IF(MIN(P42,R42)>0,MIN(P42,R42),"") ->  | CL42: =IF(U42>0,U42,"") ->  | CM42: =IF(MIN(Y42,AO42)>0,MIN(Y42,AO42),"") ->  | CN42: =IF(AA42>0,AA42,"") ->  | CO42: =IF(AD42>0,AD42,"") ->  | CP42: =IF(AJ42>0,AJ42,"") ->  | CQ42: =IF(MIN(AV42,AW42)>0,MIN(AV42,AW42),"") ->  | CV42: =IF(ISERROR(CS42*1.2),"",IF(CS42<50,CS42+10,IF(CS42<999.99,CS42*1.2,""))) ->  | DC42: =IF(MIN(C42,K42,L42,AH42,AI42,AK42,AL42)>0,MIN(C42,K42,L42,AH42,AI42,AK42,AL42),"") ->  | DD42: =IF(MIN(Z42,AF42,AG42,AP42,AQ42,AU42)>0,MIN(Z42,AF42,AG42,AP42,AQ42,AU42),"") ->  | DE42: =IF(MIN(T42,V42)>0,MIN(T42,V42),"") ->  | DF42: =IF(MIN(M42,N42,AR42,AS42)>0,MIN(M42,N42,AR42,AS42),"") ->  | DG42: =IF(MIN(O42,AE42),MIN(O42,AE42),"") ->  | DH42: =IF(J42>0,J42,"") ->  | DI42: =IF(MIN(AM42,AY42)>0,MIN(AM42,AY42),"") ->  | DJ42: =IF(R42>0,R42,"") ->  | DL42: =IF(MIN(AV42,AW42),MIN(AV42,AW42),"") -> 
A43: ='Races, Positions & Points'!#REF! ->  | B43: =IF('Races, Positions & Points'!#REF!="","",'Races, Positions & Points'!#REF!) ->  | C43: =IF('Races, Positions & Points'!#REF!="","",'Races, Positions & Points'!#REF!) ->  | D43: =IF('Races, Positions & Points'!#REF!="","",'Races, Positions & Points'!#REF!) ->  | E43: =IF('Races, Positions & Points'!#REF!="","",'Races, Positions & Points'!#REF!) ->  | F43: =IF('Races, Positions & Points'!#REF!="","",'Races, Positions & Points'!#REF!) ->  | G43: =IF('Races, Positions & Points'!#REF!="","",'Races, Positions & Points'!#REF!) ->  | H43: =IF('Races, Positions & Points'!#REF!="","",'Races, Positions & Points'!#REF!) ->  | I43: =IF('Races, Positions & Points'!#REF!="","",'Races, Positions & Points'!#REF!) ->  | J43: =IF('Races, Positions & Points'!#REF!="","",'Races, Positions & Points'!#REF!) ->  | K43: =IF('Races, Positions & Points'!#REF!="","",'Races, Positions & Points'!#REF!) ->  | L43: =IF('Races, Positions & Points'!#REF!="","",'Races, Positions & Points'!#REF!) ->  | M43: =IF('Races, Positions & Points'!#REF!="","",'Races, Positions & Points'!#REF!) ->  | N43: =IF('Races, Positions & Points'!#REF!="","",'Races, Positions & Points'!#REF!) ->  | O43: =IF('Races, Positions & Points'!#REF!="","",'Races, Positions & Points'!#REF!) ->  | P43: =IF('Races, Positions & Points'!#REF!="","",'Races, Positions & Points'!#REF!) ->  | Q43: =IF('Races, Positions & Points'!#REF!="","",'Races, Positions & Points'!#REF!) ->  | R43: =IF('Races, Positions & Points'!#REF!="","",'Races, Positions & Points'!#REF!) ->  | S43: =IF('Races, Positions & Points'!#REF!="","",'Races, Positions & Points'!#REF!) ->  | T43: =IF('Races, Positions & Points'!#REF!="","",'Races, Positions & Points'!#REF!) ->  | U43: =IF('Races, Positions & Points'!#REF!="","",'Races, Positions & Points'!#REF!) ->  | V43: =IF('Races, Positions & Points'!#REF!="","",'Races, Positions & Points'!#REF!) ->  | W43: =IF('Races, Positions & Points'!#REF!="","",'Races, Positions & Points'!#REF!) ->  | X43: =IF('Races, Positions & Points'!#REF!="","",'Races, Positions & Points'!#REF!) ->  | Y43: =IF('Races, Positions & Points'!#REF!="","",'Races, Positions & Points'!#REF!) ->  | Z43: =IF('Races, Positions & Points'!#REF!="","",'Races, Positions & Points'!#REF!) ->  | AA43: =IF('Races, Positions & Points'!#REF!="","",'Races, Positions & Points'!#REF!) ->  | AB43: =IF('Races, Positions & Points'!#REF!="","",'Races, Positions & Points'!#REF!) ->  | AC43: =IF('Races, Positions & Points'!#REF!="","",'Races, Positions & Points'!#REF!) ->  | AD43: =IF('Races, Positions & Points'!#REF!="","",'Races, Positions & Points'!#REF!) ->  | AE43: =IF('Races, Positions & Points'!#REF!="","",'Races, Positions & Points'!#REF!) ->  | AF43: =IF('Races, Positions & Points'!#REF!="","",'Races, Positions & Points'!#REF!) ->  | AG43: =IF('Races, Positions & Points'!#REF!="","",'Races, Positions & Points'!#REF!) ->  | AH43: =IF('Races, Positions & Points'!#REF!="","",'Races, Positions & Points'!#REF!) ->  | AI43: =IF('Races, Positions & Points'!#REF!="","",'Races, Positions & Points'!#REF!) ->  | AJ43: =IF('Races, Positions & Points'!#REF!="","",'Races, Positions & Points'!#REF!) ->  | AK43: =IF('Races, Positions & Points'!#REF!="","",'Races, Positions & Points'!#REF!) ->  | AL43: =IF('Races, Positions & Points'!#REF!="","",'Races, Positions & Points'!#REF!) ->  | AM43: =IF('Races, Positions & Points'!#REF!="","",'Races, Positions & Points'!#REF!) ->  | AN43: =IF('Races, Positions & Points'!#REF!="","",'Races, Positions & Points'!#REF!) ->  | AO43: =IF('Races, Positions & Points'!#REF!="","",'Races, Positions & Points'!#REF!) ->  | AP43: =IF('Races, Positions & Points'!#REF!="","",'Races, Positions & Points'!#REF!) ->  | AQ43: =IF('Races, Positions & Points'!#REF!="","",'Races, Positions & Points'!#REF!) ->  | AR43: =IF('Races, Positions & Points'!#REF!="","",'Races, Positions & Points'!#REF!) ->  | AS43: =IF('Races, Positions & Points'!#REF!="","",'Races, Positions & Points'!#REF!) ->  | AT43: =IF('Races, Positions & Points'!#REF!="","",'Races, Positions & Points'!#REF!) ->  | AU43: =IF('Races, Positions & Points'!#REF!="","",'Races, Positions & Points'!#REF!) ->  | AV43: =IF('Races, Positions & Points'!#REF!="","",'Races, Positions & Points'!#REF!) ->  | AW43: =IF('Races, Positions & Points'!#REF!="","",'Races, Positions & Points'!#REF!) ->  | AX43: =IF('Races, Positions & Points'!#REF!="","",'Races, Positions & Points'!#REF!) ->  | AY43: =IF('Races, Positions & Points'!#REF!="","",'Races, Positions & Points'!#REF!) ->  | BA43: =SUMPRODUCT(--(B$4:AY$4="In"),--(B$3:AY$3>5),--(B$5:AY$5="Y"),--(B43:AY43<>"")) ->  | BB43: =SUMPRODUCT(--(B$4:AY$4="Out"),--(B$3:AY$3>5),--(B$5:AY$5="Y"),--(B43:AY43<>"")) ->  | BC43: =SUMPRODUCT(--(B$4:AY$4="In"),--(B$3:AY$3=5),--(B$5:AY$5="Y"),--(B43:AY43<>"")) ->  | BD43: =SUMPRODUCT(--(B$4:AY$4="Out"),--(B$3:AY$3=5),--(B$5:AY$5="Y"),--(B43:AY43<>"")) ->  | BE43: =SUMPRODUCT(--(B$4:AY$4="In"),--(B$3:AY$3=0),--(B$5:AY$5="Y"),--(B43:AY43<>"")) ->  | BF43: =SUMPRODUCT(--(B$4:AY$4="Out"),--(B$3:AY$3=0),--(B$5:AY$5="Y"),--(B43:AY43<>"")) ->  | BH43: ='Races, Positions & Points'!#REF! ->  | BI43: ='Races, Positions & Points'!#REF! ->  | CB43: =IF(MIN(C43,K43,L43,AH43,AI43,AK43,AL43)>0,MIN(C43,K43,L43,AH43,AI43,AK43,AL43),"") -> 
A44: ='Races, Positions & Points'!#REF! ->  | B44: =IF('Races, Positions & Points'!#REF!="","",'Races, Positions & Points'!#REF!) ->  | C44: =IF('Races, Positions & Points'!#REF!="","",'Races, Positions & Points'!#REF!) ->  | D44: =IF('Races, Positions & Points'!#REF!="","",'Races, Positions & Points'!#REF!) ->  | E44: =IF('Races, Positions & Points'!#REF!="","",'Races, Positions & Points'!#REF!) ->  | F44: =IF('Races, Positions & Points'!#REF!="","",'Races, Positions & Points'!#REF!) ->  | G44: =IF('Races, Positions & Points'!#REF!="","",'Races, Positions & Points'!#REF!) ->  | H44: =IF('Races, Positions & Points'!#REF!="","",'Races, Positions & Points'!#REF!) ->  | I44: =IF('Races, Positions & Points'!#REF!="","",'Races, Positions & Points'!#REF!) ->  | J44: =IF('Races, Positions & Points'!#REF!="","",'Races, Positions & Points'!#REF!) ->  | K44: =IF('Races, Positions & Points'!#REF!="","",'Races, Positions & Points'!#REF!) ->  | L44: =IF('Races, Positions & Points'!#REF!="","",'Races, Positions & Points'!#REF!) ->  | M44: =IF('Races, Positions & Points'!#REF!="","",'Races, Positions & Points'!#REF!) ->  | N44: =IF('Races, Positions & Points'!#REF!="","",'Races, Positions & Points'!#REF!) ->  | O44: =IF('Races, Positions & Points'!#REF!="","",'Races, Positions & Points'!#REF!) ->  | P44: =IF('Races, Positions & Points'!#REF!="","",'Races, Positions & Points'!#REF!) ->  | Q44: =IF('Races, Positions & Points'!#REF!="","",'Races, Positions & Points'!#REF!) ->  | R44: =IF('Races, Positions & Points'!#REF!="","",'Races, Positions & Points'!#REF!) ->  | S44: =IF('Races, Positions & Points'!#REF!="","",'Races, Positions & Points'!#REF!) ->  | T44: =IF('Races, Positions & Points'!#REF!="","",'Races, Positions & Points'!#REF!) ->  | U44: =IF('Races, Positions & Points'!#REF!="","",'Races, Positions & Points'!#REF!) ->  | V44: =IF('Races, Positions & Points'!#REF!="","",'Races, Positions & Points'!#REF!) ->  | W44: =IF('Races, Positions & Points'!#REF!="","",'Races, Positions & Points'!#REF!) ->  | X44: =IF('Races, Positions & Points'!#REF!="","",'Races, Positions & Points'!#REF!) ->  | Y44: =IF('Races, Positions & Points'!#REF!="","",'Races, Positions & Points'!#REF!) ->  | Z44: =IF('Races, Positions & Points'!#REF!="","",'Races, Positions & Points'!#REF!) ->  | AA44: =IF('Races, Positions & Points'!#REF!="","",'Races, Positions & Points'!#REF!) ->  | AB44: =IF('Races, Positions & Points'!#REF!="","",'Races, Positions & Points'!#REF!) ->  | AC44: =IF('Races, Positions & Points'!#REF!="","",'Races, Positions & Points'!#REF!) ->  | AD44: =IF('Races, Positions & Points'!#REF!="","",'Races, Positions & Points'!#REF!) ->  | AE44: =IF('Races, Positions & Points'!#REF!="","",'Races, Positions & Points'!#REF!) ->  | AF44: =IF('Races, Positions & Points'!#REF!="","",'Races, Positions & Points'!#REF!) ->  | AG44: =IF('Races, Positions & Points'!#REF!="","",'Races, Positions & Points'!#REF!) ->  | AH44: =IF('Races, Positions & Points'!#REF!="","",'Races, Positions & Points'!#REF!) ->  | AI44: =IF('Races, Positions & Points'!#REF!="","",'Races, Positions & Points'!#REF!) ->  | AJ44: =IF('Races, Positions & Points'!#REF!="","",'Races, Positions & Points'!#REF!) ->  | AK44: =IF('Races, Positions & Points'!#REF!="","",'Races, Positions & Points'!#REF!) ->  | AL44: =IF('Races, Positions & Points'!#REF!="","",'Races, Positions & Points'!#REF!) ->  | AM44: =IF('Races, Positions & Points'!#REF!="","",'Races, Positions & Points'!#REF!) ->  | AN44: =IF('Races, Positions & Points'!#REF!="","",'Races, Positions & Points'!#REF!) ->  | AO44: =IF('Races, Positions & Points'!#REF!="","",'Races, Positions & Points'!#REF!) ->  | AP44: =IF('Races, Positions & Points'!#REF!="","",'Races, Positions & Points'!#REF!) ->  | AQ44: =IF('Races, Positions & Points'!#REF!="","",'Races, Positions & Points'!#REF!) ->  | AR44: =IF('Races, Positions & Points'!#REF!="","",'Races, Positions & Points'!#REF!) ->  | AS44: =IF('Races, Positions & Points'!#REF!="","",'Races, Positions & Points'!#REF!) ->  | AT44: =IF('Races, Positions & Points'!#REF!="","",'Races, Positions & Points'!#REF!) ->  | AU44: =IF('Races, Positions & Points'!#REF!="","",'Races, Positions & Points'!#REF!) ->  | AV44: =IF('Races, Positions & Points'!#REF!="","",'Races, Positions & Points'!#REF!) ->  | AW44: =IF('Races, Positions & Points'!#REF!="","",'Races, Positions & Points'!#REF!) ->  | AX44: =IF('Races, Positions & Points'!#REF!="","",'Races, Positions & Points'!#REF!) ->  | AY44: =IF('Races, Positions & Points'!#REF!="","",'Races, Positions & Points'!#REF!) ->  | BH44: ='Races, Positions & Points'!#REF! ->  | BI44: ='Races, Positions & Points'!#REF! -> 
A45: ='Races, Positions & Points'!#REF! ->  | B45: =IF('Races, Positions & Points'!#REF!="","",'Races, Positions & Points'!#REF!) ->  | C45: =IF('Races, Positions & Points'!#REF!="","",'Races, Positions & Points'!#REF!) ->  | D45: =IF('Races, Positions & Points'!#REF!="","",'Races, Positions & Points'!#REF!) ->  | E45: =IF('Races, Positions & Points'!#REF!="","",'Races, Positions & Points'!#REF!) ->  | F45: =IF('Races, Positions & Points'!#REF!="","",'Races, Positions & Points'!#REF!) ->  | G45: =IF('Races, Positions & Points'!#REF!="","",'Races, Positions & Points'!#REF!) ->  | H45: =IF('Races, Positions & Points'!#REF!="","",'Races, Positions & Points'!#REF!) ->  | I45: =IF('Races, Positions & Points'!#REF!="","",'Races, Positions & Points'!#REF!) ->  | J45: =IF('Races, Positions & Points'!#REF!="","",'Races, Positions & Points'!#REF!) ->  | K45: =IF('Races, Positions & Points'!#REF!="","",'Races, Positions & Points'!#REF!) ->  | L45: =IF('Races, Positions & Points'!#REF!="","",'Races, Positions & Points'!#REF!) ->  | M45: =IF('Races, Positions & Points'!#REF!="","",'Races, Positions & Points'!#REF!) ->  | N45: =IF('Races, Positions & Points'!#REF!="","",'Races, Positions & Points'!#REF!) ->  | O45: =IF('Races, Positions & Points'!#REF!="","",'Races, Positions & Points'!#REF!) ->  | P45: =IF('Races, Positions & Points'!#REF!="","",'Races, Positions & Points'!#REF!) ->  | Q45: =IF('Races, Positions & Points'!#REF!="","",'Races, Positions & Points'!#REF!) ->  | R45: =IF('Races, Positions & Points'!#REF!="","",'Races, Positions & Points'!#REF!) ->  | S45: =IF('Races, Positions & Points'!#REF!="","",'Races, Positions & Points'!#REF!) ->  | T45: =IF('Races, Positions & Points'!#REF!="","",'Races, Positions & Points'!#REF!) ->  | U45: =IF('Races, Positions & Points'!#REF!="","",'Races, Positions & Points'!#REF!) ->  | V45: =IF('Races, Positions & Points'!#REF!="","",'Races, Positions & Points'!#REF!) ->  | W45: =IF('Races, Positions & Points'!#REF!="","",'Races, Positions & Points'!#REF!) ->  | X45: =IF('Races, Positions & Points'!#REF!="","",'Races, Positions & Points'!#REF!) ->  | Y45: =IF('Races, Positions & Points'!#REF!="","",'Races, Positions & Points'!#REF!) ->  | Z45: =IF('Races, Positions & Points'!#REF!="","",'Races, Positions & Points'!#REF!) ->  | AA45: =IF('Races, Positions & Points'!#REF!="","",'Races, Positions & Points'!#REF!) ->  | AB45: =IF('Races, Positions & Points'!#REF!="","",'Races, Positions & Points'!#REF!) ->  | AC45: =IF('Races, Positions & Points'!#REF!="","",'Races, Positions & Points'!#REF!) ->  | AD45: =IF('Races, Positions & Points'!#REF!="","",'Races, Positions & Points'!#REF!) ->  | AE45: =IF('Races, Positions & Points'!#REF!="","",'Races, Positions & Points'!#REF!) ->  | AF45: =IF('Races, Positions & Points'!#REF!="","",'Races, Positions & Points'!#REF!) ->  | AG45: =IF('Races, Positions & Points'!#REF!="","",'Races, Positions & Points'!#REF!) ->  | AH45: =IF('Races, Positions & Points'!#REF!="","",'Races, Positions & Points'!#REF!) ->  | AI45: =IF('Races, Positions & Points'!#REF!="","",'Races, Positions & Points'!#REF!) ->  | AJ45: =IF('Races, Positions & Points'!#REF!="","",'Races, Positions & Points'!#REF!) ->  | AK45: =IF('Races, Positions & Points'!#REF!="","",'Races, Positions & Points'!#REF!) ->  | AL45: =IF('Races, Positions & Points'!#REF!="","",'Races, Positions & Points'!#REF!) ->  | AM45: =IF('Races, Positions & Points'!#REF!="","",'Races, Positions & Points'!#REF!) ->  | AN45: =IF('Races, Positions & Points'!#REF!="","",'Races, Positions & Points'!#REF!) ->  | AO45: =IF('Races, Positions & Points'!#REF!="","",'Races, Positions & Points'!#REF!) ->  | AP45: =IF('Races, Positions & Points'!#REF!="","",'Races, Positions & Points'!#REF!) ->  | AQ45: =IF('Races, Positions & Points'!#REF!="","",'Races, Positions & Points'!#REF!) ->  | AR45: =IF('Races, Positions & Points'!#REF!="","",'Races, Positions & Points'!#REF!) ->  | AS45: =IF('Races, Positions & Points'!#REF!="","",'Races, Positions & Points'!#REF!) ->  | AT45: =IF('Races, Positions & Points'!#REF!="","",'Races, Positions & Points'!#REF!) ->  | AU45: =IF('Races, Positions & Points'!#REF!="","",'Races, Positions & Points'!#REF!) ->  | AV45: =IF('Races, Positions & Points'!#REF!="","",'Races, Positions & Points'!#REF!) ->  | AW45: =IF('Races, Positions & Points'!#REF!="","",'Races, Positions & Points'!#REF!) ->  | AX45: =IF('Races, Positions & Points'!#REF!="","",'Races, Positions & Points'!#REF!) ->  | AY45: =IF('Races, Positions & Points'!#REF!="","",'Races, Positions & Points'!#REF!) ->  | BH45: ='Races, Positions & Points'!#REF! ->  | BI45: ='Races, Positions & Points'!#REF! -> 
A46: ='Races, Positions & Points'!#REF! ->  | B46: =IF('Races, Positions & Points'!#REF!="","",'Races, Positions & Points'!#REF!) ->  | C46: =IF('Races, Positions & Points'!#REF!="","",'Races, Positions & Points'!#REF!) ->  | D46: =IF('Races, Positions & Points'!#REF!="","",'Races, Positions & Points'!#REF!) ->  | E46: =IF('Races, Positions & Points'!#REF!="","",'Races, Positions & Points'!#REF!) ->  | F46: =IF('Races, Positions & Points'!#REF!="","",'Races, Positions & Points'!#REF!) ->  | G46: =IF('Races, Positions & Points'!#REF!="","",'Races, Positions & Points'!#REF!) ->  | H46: =IF('Races, Positions & Points'!#REF!="","",'Races, Positions & Points'!#REF!) ->  | I46: =IF('Races, Positions & Points'!#REF!="","",'Races, Positions & Points'!#REF!) ->  | J46: =IF('Races, Positions & Points'!#REF!="","",'Races, Positions & Points'!#REF!) ->  | K46: =IF('Races, Positions & Points'!#REF!="","",'Races, Positions & Points'!#REF!) ->  | L46: =IF('Races, Positions & Points'!#REF!="","",'Races, Positions & Points'!#REF!) ->  | M46: =IF('Races, Positions & Points'!#REF!="","",'Races, Positions & Points'!#REF!) ->  | N46: =IF('Races, Positions & Points'!#REF!="","",'Races, Positions & Points'!#REF!) ->  | O46: =IF('Races, Positions & Points'!#REF!="","",'Races, Positions & Points'!#REF!) ->  | P46: =IF('Races, Positions & Points'!#REF!="","",'Races, Positions & Points'!#REF!) ->  | Q46: =IF('Races, Positions & Points'!#REF!="","",'Races, Positions & Points'!#REF!) ->  | R46: =IF('Races, Positions & Points'!#REF!="","",'Races, Positions & Points'!#REF!) ->  | S46: =IF('Races, Positions & Points'!#REF!="","",'Races, Positions & Points'!#REF!) ->  | T46: =IF('Races, Positions & Points'!#REF!="","",'Races, Positions & Points'!#REF!) ->  | U46: =IF('Races, Positions & Points'!#REF!="","",'Races, Positions & Points'!#REF!) ->  | V46: =IF('Races, Positions & Points'!#REF!="","",'Races, Positions & Points'!#REF!) ->  | W46: =IF('Races, Positions & Points'!#REF!="","",'Races, Positions & Points'!#REF!) ->  | X46: =IF('Races, Positions & Points'!#REF!="","",'Races, Positions & Points'!#REF!) ->  | Y46: =IF('Races, Positions & Points'!#REF!="","",'Races, Positions & Points'!#REF!) ->  | Z46: =IF('Races, Positions & Points'!#REF!="","",'Races, Positions & Points'!#REF!) ->  | AA46: =IF('Races, Positions & Points'!#REF!="","",'Races, Positions & Points'!#REF!) ->  | AB46: =IF('Races, Positions & Points'!#REF!="","",'Races, Positions & Points'!#REF!) ->  | AC46: =IF('Races, Positions & Points'!#REF!="","",'Races, Positions & Points'!#REF!) ->  | AD46: =IF('Races, Positions & Points'!#REF!="","",'Races, Positions & Points'!#REF!) ->  | AE46: =IF('Races, Positions & Points'!#REF!="","",'Races, Positions & Points'!#REF!) ->  | AF46: =IF('Races, Positions & Points'!#REF!="","",'Races, Positions & Points'!#REF!) ->  | AG46: =IF('Races, Positions & Points'!#REF!="","",'Races, Positions & Points'!#REF!) ->  | AH46: =IF('Races, Positions & Points'!#REF!="","",'Races, Positions & Points'!#REF!) ->  | AI46: =IF('Races, Positions & Points'!#REF!="","",'Races, Positions & Points'!#REF!) ->  | AJ46: =IF('Races, Positions & Points'!#REF!="","",'Races, Positions & Points'!#REF!) ->  | AK46: =IF('Races, Positions & Points'!#REF!="","",'Races, Positions & Points'!#REF!) ->  | AL46: =IF('Races, Positions & Points'!#REF!="","",'Races, Positions & Points'!#REF!) ->  | AM46: =IF('Races, Positions & Points'!#REF!="","",'Races, Positions & Points'!#REF!) ->  | AN46: =IF('Races, Positions & Points'!#REF!="","",'Races, Positions & Points'!#REF!) ->  | AO46: =IF('Races, Positions & Points'!#REF!="","",'Races, Positions & Points'!#REF!) ->  | AP46: =IF('Races, Positions & Points'!#REF!="","",'Races, Positions & Points'!#REF!) ->  | AQ46: =IF('Races, Positions & Points'!#REF!="","",'Races, Positions & Points'!#REF!) ->  | AR46: =IF('Races, Positions & Points'!#REF!="","",'Races, Positions & Points'!#REF!) ->  | AS46: =IF('Races, Positions & Points'!#REF!="","",'Races, Positions & Points'!#REF!) ->  | AT46: =IF('Races, Positions & Points'!#REF!="","",'Races, Positions & Points'!#REF!) ->  | AU46: =IF('Races, Positions & Points'!#REF!="","",'Races, Positions & Points'!#REF!) ->  | AV46: =IF('Races, Positions & Points'!#REF!="","",'Races, Positions & Points'!#REF!) ->  | AW46: =IF('Races, Positions & Points'!#REF!="","",'Races, Positions & Points'!#REF!) ->  | AX46: =IF('Races, Positions & Points'!#REF!="","",'Races, Positions & Points'!#REF!) ->  | AY46: =IF('Races, Positions & Points'!#REF!="","",'Races, Positions & Points'!#REF!) ->  | BH46: ='Races, Positions & Points'!#REF! ->  | BI46: ='Races, Positions & Points'!#REF! ->  | DF46: =IF(MIN(M46,N46,AR46,AS46)>0,MIN(M46,N46,AR46,AS46),"") ->  | DG46: =IF(MIN(O46,AE46),MIN(O46,AE46),"") ->  | DH46: =IF(J46>0,J46,"") ->  | DI46: =IF(MIN(AM46,AY46)>0,MIN(AM46,AY46),"") ->  | DJ46: =IF(R46>0,R46,"") ->  | DL46: =IF(MIN(AV46,AW46),MIN(AV46,AW46),"") -> 
A47: ='Races, Positions & Points'!A24 -> Oliver Weeks | B47: =IF('Races, Positions & Points'!O24="","",'Races, Positions & Points'!O24) ->  | C47: =IF('Races, Positions & Points'!R24="","",'Races, Positions & Points'!R24) -> - | D47: =IF('Races, Positions & Points'!#REF!="","",'Races, Positions & Points'!#REF!) ->  | E47: =IF('Races, Positions & Points'!X24="","",'Races, Positions & Points'!X24) -> 181.75 | F47: =IF('Races, Positions & Points'!V24="","",'Races, Positions & Points'!V24) -> 5 | G47: =IF('Races, Positions & Points'!#REF!="","",'Races, Positions & Points'!#REF!) ->  | H47: =IF('Races, Positions & Points'!Y24="","",'Races, Positions & Points'!Y24) -> 4 | I47: =IF('Races, Positions & Points'!#REF!="","",'Races, Positions & Points'!#REF!) ->  | J47: =IF('Races, Positions & Points'!#REF!="","",'Races, Positions & Points'!#REF!) ->  | K47: =IF('Races, Positions & Points'!AD24="","",'Races, Positions & Points'!AD24) -> 210.02 | L47: =IF('Races, Positions & Points'!#REF!="","",'Races, Positions & Points'!#REF!) ->  | M47: =IF('Races, Positions & Points'!AR24="","",'Races, Positions & Points'!AR24) ->  | N47: =IF('Races, Positions & Points'!AU24="","",'Races, Positions & Points'!AU24) ->  | O47: =IF('Races, Positions & Points'!AX24="","",'Races, Positions & Points'!AX24) ->  | P47: =IF('Races, Positions & Points'!BA24="","",'Races, Positions & Points'!BA24) ->  | Q47: =IF('Races, Positions & Points'!BJ24="","",'Races, Positions & Points'!BJ24) ->  | R47: =IF('Races, Positions & Points'!BN24="","",'Races, Positions & Points'!BN24) ->  | S47: =IF('Races, Positions & Points'!#REF!="","",'Races, Positions & Points'!#REF!) ->  | T47: =IF('Races, Positions & Points'!#REF!="","",'Races, Positions & Points'!#REF!) ->  | U47: =IF('Races, Positions & Points'!BW24="","",'Races, Positions & Points'!BW24) ->  | V47: =IF('Races, Positions & Points'!#REF!="","",'Races, Positions & Points'!#REF!) ->  | W47: =IF('Races, Positions & Points'!#REF!="","",'Races, Positions & Points'!#REF!) ->  | X47: =IF('Races, Positions & Points'!CI24="","",'Races, Positions & Points'!CI24) -> 207.77 | Y47: =IF('Races, Positions & Points'!CO24="","",'Races, Positions & Points'!CO24) -> dns | Z47: =IF('Races, Positions & Points'!CZ24="","",'Races, Positions & Points'!CZ24) ->  | AA47: =IF('Races, Positions & Points'!CU24="","",'Races, Positions & Points'!CU24) ->  | AB47: =IF('Races, Positions & Points'!DC24="","",'Races, Positions & Points'!DC24) ->  | AC47: =IF('Races, Positions & Points'!DF24="","",'Races, Positions & Points'!DF24) ->  | AD47: =IF('Races, Positions & Points'!DP24="","",'Races, Positions & Points'!DP24) ->  | AE47: =IF('Races, Positions & Points'!DI24="","",'Races, Positions & Points'!DI24) ->  | AF47: =IF('Races, Positions & Points'!DS24="","",'Races, Positions & Points'!DS24) ->  | AG47: =IF('Races, Positions & Points'!#REF!="","",'Races, Positions & Points'!#REF!) ->  | AH47: =IF('Races, Positions & Points'!DV24="","",'Races, Positions & Points'!DV24) ->  | AI47: =IF('Races, Positions & Points'!DY24="","",'Races, Positions & Points'!DY24) ->  | AJ47: =IF('Races, Positions & Points'!EB24="","",'Races, Positions & Points'!EB24) -> - | AK47: =IF('Races, Positions & Points'!EF24="","",'Races, Positions & Points'!EF24) -> 18 | AL47: =IF('Races, Positions & Points'!EI24="","",'Races, Positions & Points'!EI24) -> - | AM47: =IF('Races, Positions & Points'!EM24="","",'Races, Positions & Points'!EM24) -> - | AN47: =IF('Races, Positions & Points'!EN24="","",'Races, Positions & Points'!EN24) -> 11 | AO47: =IF('Races, Positions & Points'!EP24="","",'Races, Positions & Points'!EP24) ->  | AP47: =IF('Races, Positions & Points'!ES24="","",'Races, Positions & Points'!ES24) ->  | AQ47: =IF('Races, Positions & Points'!EV24="","",'Races, Positions & Points'!EV24) ->  | AR47: =IF('Races, Positions & Points'!EY24="","",'Races, Positions & Points'!EY24) ->  | AS47: =IF('Races, Positions & Points'!FB24="","",'Races, Positions & Points'!FB24) ->  | AT47: =IF('Races, Positions & Points'!#REF!="","",'Races, Positions & Points'!#REF!) ->  | AU47: =IF('Races, Positions & Points'!#REF!="","",'Races, Positions & Points'!#REF!) ->  | AV47: =IF('Races, Positions & Points'!#REF!="","",'Races, Positions & Points'!#REF!) ->  | AW47: =IF('Races, Positions & Points'!#REF!="","",'Races, Positions & Points'!#REF!) ->  | AX47: =IF('Races, Positions & Points'!#REF!="","",'Races, Positions & Points'!#REF!) ->  | AY47: =IF('Races, Positions & Points'!#REF!="","",'Races, Positions & Points'!#REF!) ->  | BH47: ='Races, Positions & Points'!E24 -> 19051 | BI47: ='Races, Positions & Points'!#REF! ->  | CP47: -
A48: ='Races, Positions & Points'!#REF! ->  | B48: =IF('Races, Positions & Points'!#REF!="","",'Races, Positions & Points'!#REF!) ->  | C48: =IF('Races, Positions & Points'!#REF!="","",'Races, Positions & Points'!#REF!) ->  | D48: =IF('Races, Positions & Points'!#REF!="","",'Races, Positions & Points'!#REF!) ->  | E48: =IF('Races, Positions & Points'!#REF!="","",'Races, Positions & Points'!#REF!) ->  | F48: =IF('Races, Positions & Points'!#REF!="","",'Races, Positions & Points'!#REF!) ->  | G48: =IF('Races, Positions & Points'!#REF!="","",'Races, Positions & Points'!#REF!) ->  | H48: =IF('Races, Positions & Points'!#REF!="","",'Races, Positions & Points'!#REF!) ->  | I48: =IF('Races, Positions & Points'!#REF!="","",'Races, Positions & Points'!#REF!) ->  | J48: =IF('Races, Positions & Points'!#REF!="","",'Races, Positions & Points'!#REF!) ->  | K48: =IF('Races, Positions & Points'!#REF!="","",'Races, Positions & Points'!#REF!) ->  | L48: =IF('Races, Positions & Points'!#REF!="","",'Races, Positions & Points'!#REF!) ->  | M48: =IF('Races, Positions & Points'!#REF!="","",'Races, Positions & Points'!#REF!) ->  | N48: =IF('Races, Positions & Points'!#REF!="","",'Races, Positions & Points'!#REF!) ->  | O48: =IF('Races, Positions & Points'!#REF!="","",'Races, Positions & Points'!#REF!) ->  | P48: =IF('Races, Positions & Points'!#REF!="","",'Races, Positions & Points'!#REF!) ->  | Q48: =IF('Races, Positions & Points'!#REF!="","",'Races, Positions & Points'!#REF!) ->  | R48: =IF('Races, Positions & Points'!#REF!="","",'Races, Positions & Points'!#REF!) ->  | S48: =IF('Races, Positions & Points'!#REF!="","",'Races, Positions & Points'!#REF!) ->  | T48: =IF('Races, Positions & Points'!#REF!="","",'Races, Positions & Points'!#REF!) ->  | U48: =IF('Races, Positions & Points'!#REF!="","",'Races, Positions & Points'!#REF!) ->  | V48: =IF('Races, Positions & Points'!#REF!="","",'Races, Positions & Points'!#REF!) ->  | W48: =IF('Races, Positions & Points'!#REF!="","",'Races, Positions & Points'!#REF!) ->  | X48: =IF('Races, Positions & Points'!#REF!="","",'Races, Positions & Points'!#REF!) ->  | Y48: =IF('Races, Positions & Points'!#REF!="","",'Races, Positions & Points'!#REF!) ->  | Z48: =IF('Races, Positions & Points'!#REF!="","",'Races, Positions & Points'!#REF!) ->  | AA48: =IF('Races, Positions & Points'!#REF!="","",'Races, Positions & Points'!#REF!) ->  | AB48: =IF('Races, Positions & Points'!#REF!="","",'Races, Positions & Points'!#REF!) ->  | AC48: =IF('Races, Positions & Points'!#REF!="","",'Races, Positions & Points'!#REF!) ->  | AD48: =IF('Races, Positions & Points'!#REF!="","",'Races, Positions & Points'!#REF!) ->  | AE48: =IF('Races, Positions & Points'!#REF!="","",'Races, Positions & Points'!#REF!) ->  | AF48: =IF('Races, Positions & Points'!#REF!="","",'Races, Positions & Points'!#REF!) ->  | AG48: =IF('Races, Positions & Points'!#REF!="","",'Races, Positions & Points'!#REF!) ->  | AH48: =IF('Races, Positions & Points'!#REF!="","",'Races, Positions & Points'!#REF!) ->  | AI48: =IF('Races, Positions & Points'!#REF!="","",'Races, Positions & Points'!#REF!) ->  | AJ48: =IF('Races, Positions & Points'!#REF!="","",'Races, Positions & Points'!#REF!) ->  | AK48: =IF('Races, Positions & Points'!#REF!="","",'Races, Positions & Points'!#REF!) ->  | AL48: =IF('Races, Positions & Points'!#REF!="","",'Races, Positions & Points'!#REF!) ->  | AM48: =IF('Races, Positions & Points'!#REF!="","",'Races, Positions & Points'!#REF!) ->  | AN48: =IF('Races, Positions & Points'!#REF!="","",'Races, Positions & Points'!#REF!) ->  | AO48: =IF('Races, Positions & Points'!#REF!="","",'Races, Positions & Points'!#REF!) ->  | AP48: =IF('Races, Positions & Points'!#REF!="","",'Races, Positions & Points'!#REF!) ->  | AQ48: =IF('Races, Positions & Points'!#REF!="","",'Races, Positions & Points'!#REF!) ->  | AR48: =IF('Races, Positions & Points'!#REF!="","",'Races, Positions & Points'!#REF!) ->  | AS48: =IF('Races, Positions & Points'!#REF!="","",'Races, Positions & Points'!#REF!) ->  | AT48: =IF('Races, Positions & Points'!#REF!="","",'Races, Positions & Points'!#REF!) ->  | AU48: =IF('Races, Positions & Points'!#REF!="","",'Races, Positions & Points'!#REF!) ->  | AV48: =IF('Races, Positions & Points'!#REF!="","",'Races, Positions & Points'!#REF!) ->  | AW48: =IF('Races, Positions & Points'!#REF!="","",'Races, Positions & Points'!#REF!) ->  | AX48: =IF('Races, Positions & Points'!#REF!="","",'Races, Positions & Points'!#REF!) ->  | AY48: =IF('Races, Positions & Points'!#REF!="","",'Races, Positions & Points'!#REF!) ->  | BH48: ='Races, Positions & Points'!#REF! ->  | BI48: ='Races, Positions & Points'!#REF! -> 
A49: ='Races, Positions & Points'!#REF! ->  | B49: =IF('Races, Positions & Points'!#REF!="","",'Races, Positions & Points'!#REF!) ->  | C49: =IF('Races, Positions & Points'!#REF!="","",'Races, Positions & Points'!#REF!) ->  | D49: =IF('Races, Positions & Points'!#REF!="","",'Races, Positions & Points'!#REF!) ->  | E49: =IF('Races, Positions & Points'!#REF!="","",'Races, Positions & Points'!#REF!) ->  | F49: =IF('Races, Positions & Points'!#REF!="","",'Races, Positions & Points'!#REF!) ->  | G49: =IF('Races, Positions & Points'!#REF!="","",'Races, Positions & Points'!#REF!) ->  | H49: =IF('Races, Positions & Points'!#REF!="","",'Races, Positions & Points'!#REF!) ->  | I49: =IF('Races, Positions & Points'!#REF!="","",'Races, Positions & Points'!#REF!) ->  | J49: =IF('Races, Positions & Points'!#REF!="","",'Races, Positions & Points'!#REF!) ->  | K49: =IF('Races, Positions & Points'!#REF!="","",'Races, Positions & Points'!#REF!) ->  | L49: =IF('Races, Positions & Points'!#REF!="","",'Races, Positions & Points'!#REF!) ->  | M49: =IF('Races, Positions & Points'!#REF!="","",'Races, Positions & Points'!#REF!) ->  | N49: =IF('Races, Positions & Points'!#REF!="","",'Races, Positions & Points'!#REF!) ->  | O49: =IF('Races, Positions & Points'!#REF!="","",'Races, Positions & Points'!#REF!) ->  | P49: =IF('Races, Positions & Points'!#REF!="","",'Races, Positions & Points'!#REF!) ->  | Q49: =IF('Races, Positions & Points'!#REF!="","",'Races, Positions & Points'!#REF!) ->  | R49: =IF('Races, Positions & Points'!#REF!="","",'Races, Positions & Points'!#REF!) ->  | S49: =IF('Races, Positions & Points'!#REF!="","",'Races, Positions & Points'!#REF!) ->  | T49: =IF('Races, Positions & Points'!#REF!="","",'Races, Positions & Points'!#REF!) ->  | U49: =IF('Races, Positions & Points'!#REF!="","",'Races, Positions & Points'!#REF!) ->  | V49: =IF('Races, Positions & Points'!#REF!="","",'Races, Positions & Points'!#REF!) ->  | W49: =IF('Races, Positions & Points'!#REF!="","",'Races, Positions & Points'!#REF!) ->  | X49: =IF('Races, Positions & Points'!#REF!="","",'Races, Positions & Points'!#REF!) ->  | Y49: =IF('Races, Positions & Points'!#REF!="","",'Races, Positions & Points'!#REF!) ->  | Z49: =IF('Races, Positions & Points'!#REF!="","",'Races, Positions & Points'!#REF!) ->  | AA49: =IF('Races, Positions & Points'!#REF!="","",'Races, Positions & Points'!#REF!) ->  | AB49: =IF('Races, Positions & Points'!#REF!="","",'Races, Positions & Points'!#REF!) ->  | AC49: =IF('Races, Positions & Points'!#REF!="","",'Races, Positions & Points'!#REF!) ->  | AD49: =IF('Races, Positions & Points'!#REF!="","",'Races, Positions & Points'!#REF!) ->  | AE49: =IF('Races, Positions & Points'!#REF!="","",'Races, Positions & Points'!#REF!) ->  | AF49: =IF('Races, Positions & Points'!#REF!="","",'Races, Positions & Points'!#REF!) ->  | AG49: =IF('Races, Positions & Points'!#REF!="","",'Races, Positions & Points'!#REF!) ->  | AH49: =IF('Races, Positions & Points'!#REF!="","",'Races, Positions & Points'!#REF!) ->  | AI49: =IF('Races, Positions & Points'!#REF!="","",'Races, Positions & Points'!#REF!) ->  | AJ49: =IF('Races, Positions & Points'!#REF!="","",'Races, Positions & Points'!#REF!) ->  | AK49: =IF('Races, Positions & Points'!#REF!="","",'Races, Positions & Points'!#REF!) ->  | AL49: =IF('Races, Positions & Points'!#REF!="","",'Races, Positions & Points'!#REF!) ->  | AM49: =IF('Races, Positions & Points'!#REF!="","",'Races, Positions & Points'!#REF!) ->  | AN49: =IF('Races, Positions & Points'!#REF!="","",'Races, Positions & Points'!#REF!) ->  | AO49: =IF('Races, Positions & Points'!#REF!="","",'Races, Positions & Points'!#REF!) ->  | AP49: =IF('Races, Positions & Points'!#REF!="","",'Races, Positions & Points'!#REF!) ->  | AQ49: =IF('Races, Positions & Points'!#REF!="","",'Races, Positions & Points'!#REF!) ->  | AR49: =IF('Races, Positions & Points'!#REF!="","",'Races, Positions & Points'!#REF!) ->  | AS49: =IF('Races, Positions & Points'!#REF!="","",'Races, Positions & Points'!#REF!) ->  | AT49: =IF('Races, Positions & Points'!#REF!="","",'Races, Positions & Points'!#REF!) ->  | AU49: =IF('Races, Positions & Points'!#REF!="","",'Races, Positions & Points'!#REF!) ->  | AV49: =IF('Races, Positions & Points'!#REF!="","",'Races, Positions & Points'!#REF!) ->  | AW49: =IF('Races, Positions & Points'!#REF!="","",'Races, Positions & Points'!#REF!) ->  | AX49: =IF('Races, Positions & Points'!#REF!="","",'Races, Positions & Points'!#REF!) ->  | AY49: =IF('Races, Positions & Points'!#REF!="","",'Races, Positions & Points'!#REF!) ->  | BH49: ='Races, Positions & Points'!#REF! ->  | BI49: ='Races, Positions & Points'!#REF! -> 
A50: ='Races, Positions & Points'!#REF! ->  | B50: =IF('Races, Positions & Points'!#REF!="","",'Races, Positions & Points'!#REF!) ->  | C50: =IF('Races, Positions & Points'!#REF!="","",'Races, Positions & Points'!#REF!) ->  | D50: =IF('Races, Positions & Points'!#REF!="","",'Races, Positions & Points'!#REF!) ->  | E50: =IF('Races, Positions & Points'!#REF!="","",'Races, Positions & Points'!#REF!) ->  | F50: =IF('Races, Positions & Points'!#REF!="","",'Races, Positions & Points'!#REF!) ->  | G50: =IF('Races, Positions & Points'!#REF!="","",'Races, Positions & Points'!#REF!) ->  | H50: =IF('Races, Positions & Points'!#REF!="","",'Races, Positions & Points'!#REF!) ->  | I50: =IF('Races, Positions & Points'!#REF!="","",'Races, Positions & Points'!#REF!) ->  | J50: =IF('Races, Positions & Points'!#REF!="","",'Races, Positions & Points'!#REF!) ->  | K50: =IF('Races, Positions & Points'!#REF!="","",'Races, Positions & Points'!#REF!) ->  | L50: =IF('Races, Positions & Points'!#REF!="","",'Races, Positions & Points'!#REF!) ->  | M50: =IF('Races, Positions & Points'!#REF!="","",'Races, Positions & Points'!#REF!) ->  | N50: =IF('Races, Positions & Points'!#REF!="","",'Races, Positions & Points'!#REF!) ->  | O50: =IF('Races, Positions & Points'!#REF!="","",'Races, Positions & Points'!#REF!) ->  | P50: =IF('Races, Positions & Points'!#REF!="","",'Races, Positions & Points'!#REF!) ->  | Q50: =IF('Races, Positions & Points'!#REF!="","",'Races, Positions & Points'!#REF!) ->  | R50: =IF('Races, Positions & Points'!#REF!="","",'Races, Positions & Points'!#REF!) ->  | S50: =IF('Races, Positions & Points'!#REF!="","",'Races, Positions & Points'!#REF!) ->  | T50: =IF('Races, Positions & Points'!#REF!="","",'Races, Positions & Points'!#REF!) ->  | U50: =IF('Races, Positions & Points'!#REF!="","",'Races, Positions & Points'!#REF!) ->  | V50: =IF('Races, Positions & Points'!#REF!="","",'Races, Positions & Points'!#REF!) ->  | W50: =IF('Races, Positions & Points'!#REF!="","",'Races, Positions & Points'!#REF!) ->  | X50: =IF('Races, Positions & Points'!#REF!="","",'Races, Positions & Points'!#REF!) ->  | Y50: =IF('Races, Positions & Points'!#REF!="","",'Races, Positions & Points'!#REF!) ->  | Z50: =IF('Races, Positions & Points'!#REF!="","",'Races, Positions & Points'!#REF!) ->  | AA50: =IF('Races, Positions & Points'!#REF!="","",'Races, Positions & Points'!#REF!) ->  | AB50: =IF('Races, Positions & Points'!#REF!="","",'Races, Positions & Points'!#REF!) ->  | AC50: =IF('Races, Positions & Points'!#REF!="","",'Races, Positions & Points'!#REF!) ->  | AD50: =IF('Races, Positions & Points'!#REF!="","",'Races, Positions & Points'!#REF!) ->  | AE50: =IF('Races, Positions & Points'!#REF!="","",'Races, Positions & Points'!#REF!) ->  | AF50: =IF('Races, Positions & Points'!#REF!="","",'Races, Positions & Points'!#REF!) ->  | AG50: =IF('Races, Positions & Points'!#REF!="","",'Races, Positions & Points'!#REF!) ->  | AH50: =IF('Races, Positions & Points'!#REF!="","",'Races, Positions & Points'!#REF!) ->  | AI50: =IF('Races, Positions & Points'!#REF!="","",'Races, Positions & Points'!#REF!) ->  | AJ50: =IF('Races, Positions & Points'!#REF!="","",'Races, Positions & Points'!#REF!) ->  | AK50: =IF('Races, Positions & Points'!#REF!="","",'Races, Positions & Points'!#REF!) ->  | AL50: =IF('Races, Positions & Points'!#REF!="","",'Races, Positions & Points'!#REF!) ->  | AM50: =IF('Races, Positions & Points'!#REF!="","",'Races, Positions & Points'!#REF!) ->  | AN50: =IF('Races, Positions & Points'!#REF!="","",'Races, Positions & Points'!#REF!) ->  | AO50: =IF('Races, Positions & Points'!#REF!="","",'Races, Positions & Points'!#REF!) ->  | AP50: =IF('Races, Positions & Points'!#REF!="","",'Races, Positions & Points'!#REF!) ->  | AQ50: =IF('Races, Positions & Points'!#REF!="","",'Races, Positions & Points'!#REF!) ->  | AR50: =IF('Races, Positions & Points'!#REF!="","",'Races, Positions & Points'!#REF!) ->  | AS50: =IF('Races, Positions & Points'!#REF!="","",'Races, Positions & Points'!#REF!) ->  | AT50: =IF('Races, Positions & Points'!#REF!="","",'Races, Positions & Points'!#REF!) ->  | AU50: =IF('Races, Positions & Points'!#REF!="","",'Races, Positions & Points'!#REF!) ->  | AV50: =IF('Races, Positions & Points'!#REF!="","",'Races, Positions & Points'!#REF!) ->  | AW50: =IF('Races, Positions & Points'!#REF!="","",'Races, Positions & Points'!#REF!) ->  | AX50: =IF('Races, Positions & Points'!#REF!="","",'Races, Positions & Points'!#REF!) ->  | AY50: =IF('Races, Positions & Points'!#REF!="","",'Races, Positions & Points'!#REF!) ->  | BH50: ='Races, Positions & Points'!#REF! ->  | BI50: ='Races, Positions & Points'!#REF! -> 
A51: ='Races, Positions & Points'!#REF! ->  | B51: =IF('Races, Positions & Points'!#REF!="","",'Races, Positions & Points'!#REF!) ->  | C51: =IF('Races, Positions & Points'!#REF!="","",'Races, Positions & Points'!#REF!) ->  | D51: =IF('Races, Positions & Points'!#REF!="","",'Races, Positions & Points'!#REF!) ->  | E51: =IF('Races, Positions & Points'!#REF!="","",'Races, Positions & Points'!#REF!) ->  | F51: =IF('Races, Positions & Points'!#REF!="","",'Races, Positions & Points'!#REF!) ->  | G51: =IF('Races, Positions & Points'!#REF!="","",'Races, Positions & Points'!#REF!) ->  | H51: =IF('Races, Positions & Points'!#REF!="","",'Races, Positions & Points'!#REF!) ->  | I51: =IF('Races, Positions & Points'!#REF!="","",'Races, Positions & Points'!#REF!) ->  | J51: =IF('Races, Positions & Points'!#REF!="","",'Races, Positions & Points'!#REF!) ->  | K51: =IF('Races, Positions & Points'!#REF!="","",'Races, Positions & Points'!#REF!) ->  | L51: =IF('Races, Positions & Points'!#REF!="","",'Races, Positions & Points'!#REF!) ->  | M51: =IF('Races, Positions & Points'!#REF!="","",'Races, Positions & Points'!#REF!) ->  | N51: =IF('Races, Positions & Points'!#REF!="","",'Races, Positions & Points'!#REF!) ->  | O51: =IF('Races, Positions & Points'!#REF!="","",'Races, Positions & Points'!#REF!) ->  | P51: =IF('Races, Positions & Points'!#REF!="","",'Races, Positions & Points'!#REF!) ->  | Q51: =IF('Races, Positions & Points'!#REF!="","",'Races, Positions & Points'!#REF!) ->  | R51: =IF('Races, Positions & Points'!#REF!="","",'Races, Positions & Points'!#REF!) ->  | S51: =IF('Races, Positions & Points'!#REF!="","",'Races, Positions & Points'!#REF!) ->  | T51: =IF('Races, Positions & Points'!#REF!="","",'Races, Positions & Points'!#REF!) ->  | U51: =IF('Races, Positions & Points'!#REF!="","",'Races, Positions & Points'!#REF!) ->  | V51: =IF('Races, Positions & Points'!#REF!="","",'Races, Positions & Points'!#REF!) ->  | W51: =IF('Races, Positions & Points'!#REF!="","",'Races, Positions & Points'!#REF!) ->  | X51: =IF('Races, Positions & Points'!#REF!="","",'Races, Positions & Points'!#REF!) ->  | Y51: =IF('Races, Positions & Points'!#REF!="","",'Races, Positions & Points'!#REF!) ->  | Z51: =IF('Races, Positions & Points'!#REF!="","",'Races, Positions & Points'!#REF!) ->  | AA51: =IF('Races, Positions & Points'!#REF!="","",'Races, Positions & Points'!#REF!) ->  | AB51: =IF('Races, Positions & Points'!#REF!="","",'Races, Positions & Points'!#REF!) ->  | AC51: =IF('Races, Positions & Points'!#REF!="","",'Races, Positions & Points'!#REF!) ->  | AD51: =IF('Races, Positions & Points'!#REF!="","",'Races, Positions & Points'!#REF!) ->  | AE51: =IF('Races, Positions & Points'!#REF!="","",'Races, Positions & Points'!#REF!) ->  | AF51: =IF('Races, Positions & Points'!#REF!="","",'Races, Positions & Points'!#REF!) ->  | AG51: =IF('Races, Positions & Points'!#REF!="","",'Races, Positions & Points'!#REF!) ->  | AH51: =IF('Races, Positions & Points'!#REF!="","",'Races, Positions & Points'!#REF!) ->  | AI51: =IF('Races, Positions & Points'!#REF!="","",'Races, Positions & Points'!#REF!) ->  | AJ51: =IF('Races, Positions & Points'!#REF!="","",'Races, Positions & Points'!#REF!) ->  | AK51: =IF('Races, Positions & Points'!#REF!="","",'Races, Positions & Points'!#REF!) ->  | AL51: =IF('Races, Positions & Points'!#REF!="","",'Races, Positions & Points'!#REF!) ->  | AM51: =IF('Races, Positions & Points'!#REF!="","",'Races, Positions & Points'!#REF!) ->  | AN51: =IF('Races, Positions & Points'!#REF!="","",'Races, Positions & Points'!#REF!) ->  | AO51: =IF('Races, Positions & Points'!#REF!="","",'Races, Positions & Points'!#REF!) ->  | AP51: =IF('Races, Positions & Points'!#REF!="","",'Races, Positions & Points'!#REF!) ->  | AQ51: =IF('Races, Positions & Points'!#REF!="","",'Races, Positions & Points'!#REF!) ->  | AR51: =IF('Races, Positions & Points'!#REF!="","",'Races, Positions & Points'!#REF!) ->  | AS51: =IF('Races, Positions & Points'!#REF!="","",'Races, Positions & Points'!#REF!) ->  | AT51: =IF('Races, Positions & Points'!#REF!="","",'Races, Positions & Points'!#REF!) ->  | AU51: =IF('Races, Positions & Points'!#REF!="","",'Races, Positions & Points'!#REF!) ->  | AV51: =IF('Races, Positions & Points'!#REF!="","",'Races, Positions & Points'!#REF!) ->  | AW51: =IF('Races, Positions & Points'!#REF!="","",'Races, Positions & Points'!#REF!) ->  | AX51: =IF('Races, Positions & Points'!#REF!="","",'Races, Positions & Points'!#REF!) ->  | AY51: =IF('Races, Positions & Points'!#REF!="","",'Races, Positions & Points'!#REF!) ->  | BH51: ='Races, Positions & Points'!#REF! ->  | BI51: ='Races, Positions & Points'!#REF! -> 
A52: ='Races, Positions & Points'!#REF! ->  | B52: =IF('Races, Positions & Points'!#REF!="","",'Races, Positions & Points'!#REF!) ->  | C52: =IF('Races, Positions & Points'!#REF!="","",'Races, Positions & Points'!#REF!) ->  | D52: =IF('Races, Positions & Points'!#REF!="","",'Races, Positions & Points'!#REF!) ->  | E52: =IF('Races, Positions & Points'!#REF!="","",'Races, Positions & Points'!#REF!) ->  | F52: =IF('Races, Positions & Points'!#REF!="","",'Races, Positions & Points'!#REF!) ->  | G52: =IF('Races, Positions & Points'!#REF!="","",'Races, Positions & Points'!#REF!) ->  | H52: =IF('Races, Positions & Points'!#REF!="","",'Races, Positions & Points'!#REF!) ->  | I52: =IF('Races, Positions & Points'!#REF!="","",'Races, Positions & Points'!#REF!) ->  | J52: =IF('Races, Positions & Points'!#REF!="","",'Races, Positions & Points'!#REF!) ->  | K52: =IF('Races, Positions & Points'!#REF!="","",'Races, Positions & Points'!#REF!) ->  | L52: =IF('Races, Positions & Points'!#REF!="","",'Races, Positions & Points'!#REF!) ->  | M52: =IF('Races, Positions & Points'!#REF!="","",'Races, Positions & Points'!#REF!) ->  | N52: =IF('Races, Positions & Points'!#REF!="","",'Races, Positions & Points'!#REF!) ->  | O52: =IF('Races, Positions & Points'!#REF!="","",'Races, Positions & Points'!#REF!) ->  | P52: =IF('Races, Positions & Points'!#REF!="","",'Races, Positions & Points'!#REF!) ->  | Q52: =IF('Races, Positions & Points'!#REF!="","",'Races, Positions & Points'!#REF!) ->  | R52: =IF('Races, Positions & Points'!#REF!="","",'Races, Positions & Points'!#REF!) ->  | S52: =IF('Races, Positions & Points'!#REF!="","",'Races, Positions & Points'!#REF!) ->  | T52: =IF('Races, Positions & Points'!#REF!="","",'Races, Positions & Points'!#REF!) ->  | U52: =IF('Races, Positions & Points'!#REF!="","",'Races, Positions & Points'!#REF!) ->  | V52: =IF('Races, Positions & Points'!#REF!="","",'Races, Positions & Points'!#REF!) ->  | W52: =IF('Races, Positions & Points'!#REF!="","",'Races, Positions & Points'!#REF!) ->  | X52: =IF('Races, Positions & Points'!#REF!="","",'Races, Positions & Points'!#REF!) ->  | Y52: =IF('Races, Positions & Points'!#REF!="","",'Races, Positions & Points'!#REF!) ->  | Z52: =IF('Races, Positions & Points'!#REF!="","",'Races, Positions & Points'!#REF!) ->  | AA52: =IF('Races, Positions & Points'!#REF!="","",'Races, Positions & Points'!#REF!) ->  | AB52: =IF('Races, Positions & Points'!#REF!="","",'Races, Positions & Points'!#REF!) ->  | AC52: =IF('Races, Positions & Points'!#REF!="","",'Races, Positions & Points'!#REF!) ->  | AD52: =IF('Races, Positions & Points'!#REF!="","",'Races, Positions & Points'!#REF!) ->  | AE52: =IF('Races, Positions & Points'!#REF!="","",'Races, Positions & Points'!#REF!) ->  | AF52: =IF('Races, Positions & Points'!#REF!="","",'Races, Positions & Points'!#REF!) ->  | AG52: =IF('Races, Positions & Points'!#REF!="","",'Races, Positions & Points'!#REF!) ->  | AH52: =IF('Races, Positions & Points'!#REF!="","",'Races, Positions & Points'!#REF!) ->  | AI52: =IF('Races, Positions & Points'!#REF!="","",'Races, Positions & Points'!#REF!) ->  | AJ52: =IF('Races, Positions & Points'!#REF!="","",'Races, Positions & Points'!#REF!) ->  | AK52: =IF('Races, Positions & Points'!#REF!="","",'Races, Positions & Points'!#REF!) ->  | AL52: =IF('Races, Positions & Points'!#REF!="","",'Races, Positions & Points'!#REF!) ->  | AM52: =IF('Races, Positions & Points'!#REF!="","",'Races, Positions & Points'!#REF!) ->  | AN52: =IF('Races, Positions & Points'!#REF!="","",'Races, Positions & Points'!#REF!) ->  | AO52: =IF('Races, Positions & Points'!#REF!="","",'Races, Positions & Points'!#REF!) ->  | AP52: =IF('Races, Positions & Points'!#REF!="","",'Races, Positions & Points'!#REF!) ->  | AQ52: =IF('Races, Positions & Points'!#REF!="","",'Races, Positions & Points'!#REF!) ->  | AR52: =IF('Races, Positions & Points'!#REF!="","",'Races, Positions & Points'!#REF!) ->  | AS52: =IF('Races, Positions & Points'!#REF!="","",'Races, Positions & Points'!#REF!) ->  | AT52: =IF('Races, Positions & Points'!#REF!="","",'Races, Positions & Points'!#REF!) ->  | AU52: =IF('Races, Positions & Points'!#REF!="","",'Races, Positions & Points'!#REF!) ->  | AV52: =IF('Races, Positions & Points'!#REF!="","",'Races, Positions & Points'!#REF!) ->  | AW52: =IF('Races, Positions & Points'!#REF!="","",'Races, Positions & Points'!#REF!) ->  | AX52: =IF('Races, Positions & Points'!#REF!="","",'Races, Positions & Points'!#REF!) ->  | AY52: =IF('Races, Positions & Points'!#REF!="","",'Races, Positions & Points'!#REF!) ->  | BH52: ='Races, Positions & Points'!#REF! ->  | BI52: ='Races, Positions & Points'!#REF! -> 
A53: ='Races, Positions & Points'!#REF! ->  | B53: =IF('Races, Positions & Points'!#REF!="","",'Races, Positions & Points'!#REF!) ->  | C53: =IF('Races, Positions & Points'!#REF!="","",'Races, Positions & Points'!#REF!) ->  | D53: =IF('Races, Positions & Points'!#REF!="","",'Races, Positions & Points'!#REF!) ->  | E53: =IF('Races, Positions & Points'!#REF!="","",'Races, Positions & Points'!#REF!) ->  | F53: =IF('Races, Positions & Points'!#REF!="","",'Races, Positions & Points'!#REF!) ->  | G53: =IF('Races, Positions & Points'!#REF!="","",'Races, Positions & Points'!#REF!) ->  | H53: =IF('Races, Positions & Points'!#REF!="","",'Races, Positions & Points'!#REF!) ->  | I53: =IF('Races, Positions & Points'!#REF!="","",'Races, Positions & Points'!#REF!) ->  | J53: =IF('Races, Positions & Points'!#REF!="","",'Races, Positions & Points'!#REF!) ->  | K53: =IF('Races, Positions & Points'!#REF!="","",'Races, Positions & Points'!#REF!) ->  | L53: =IF('Races, Positions & Points'!#REF!="","",'Races, Positions & Points'!#REF!) ->  | M53: =IF('Races, Positions & Points'!#REF!="","",'Races, Positions & Points'!#REF!) ->  | N53: =IF('Races, Positions & Points'!#REF!="","",'Races, Positions & Points'!#REF!) ->  | O53: =IF('Races, Positions & Points'!#REF!="","",'Races, Positions & Points'!#REF!) ->  | P53: =IF('Races, Positions & Points'!#REF!="","",'Races, Positions & Points'!#REF!) ->  | Q53: =IF('Races, Positions & Points'!#REF!="","",'Races, Positions & Points'!#REF!) ->  | R53: =IF('Races, Positions & Points'!#REF!="","",'Races, Positions & Points'!#REF!) ->  | S53: =IF('Races, Positions & Points'!#REF!="","",'Races, Positions & Points'!#REF!) ->  | T53: =IF('Races, Positions & Points'!#REF!="","",'Races, Positions & Points'!#REF!) ->  | U53: =IF('Races, Positions & Points'!#REF!="","",'Races, Positions & Points'!#REF!) ->  | V53: =IF('Races, Positions & Points'!#REF!="","",'Races, Positions & Points'!#REF!) ->  | W53: =IF('Races, Positions & Points'!#REF!="","",'Races, Positions & Points'!#REF!) ->  | X53: =IF('Races, Positions & Points'!#REF!="","",'Races, Positions & Points'!#REF!) ->  | Y53: =IF('Races, Positions & Points'!#REF!="","",'Races, Positions & Points'!#REF!) ->  | Z53: =IF('Races, Positions & Points'!#REF!="","",'Races, Positions & Points'!#REF!) ->  | AA53: =IF('Races, Positions & Points'!#REF!="","",'Races, Positions & Points'!#REF!) ->  | AB53: =IF('Races, Positions & Points'!#REF!="","",'Races, Positions & Points'!#REF!) ->  | AC53: =IF('Races, Positions & Points'!#REF!="","",'Races, Positions & Points'!#REF!) ->  | AD53: =IF('Races, Positions & Points'!#REF!="","",'Races, Positions & Points'!#REF!) ->  | AE53: =IF('Races, Positions & Points'!#REF!="","",'Races, Positions & Points'!#REF!) ->  | AF53: =IF('Races, Positions & Points'!#REF!="","",'Races, Positions & Points'!#REF!) ->  | AG53: =IF('Races, Positions & Points'!#REF!="","",'Races, Positions & Points'!#REF!) ->  | AH53: =IF('Races, Positions & Points'!#REF!="","",'Races, Positions & Points'!#REF!) ->  | AI53: =IF('Races, Positions & Points'!#REF!="","",'Races, Positions & Points'!#REF!) ->  | AJ53: =IF('Races, Positions & Points'!#REF!="","",'Races, Positions & Points'!#REF!) ->  | AK53: =IF('Races, Positions & Points'!#REF!="","",'Races, Positions & Points'!#REF!) ->  | AL53: =IF('Races, Positions & Points'!#REF!="","",'Races, Positions & Points'!#REF!) ->  | AM53: =IF('Races, Positions & Points'!#REF!="","",'Races, Positions & Points'!#REF!) ->  | AN53: =IF('Races, Positions & Points'!#REF!="","",'Races, Positions & Points'!#REF!) ->  | AO53: =IF('Races, Positions & Points'!#REF!="","",'Races, Positions & Points'!#REF!) ->  | AP53: =IF('Races, Positions & Points'!#REF!="","",'Races, Positions & Points'!#REF!) ->  | AQ53: =IF('Races, Positions & Points'!#REF!="","",'Races, Positions & Points'!#REF!) ->  | AR53: =IF('Races, Positions & Points'!#REF!="","",'Races, Positions & Points'!#REF!) ->  | AS53: =IF('Races, Positions & Points'!#REF!="","",'Races, Positions & Points'!#REF!) ->  | AT53: =IF('Races, Positions & Points'!#REF!="","",'Races, Positions & Points'!#REF!) ->  | AU53: =IF('Races, Positions & Points'!#REF!="","",'Races, Positions & Points'!#REF!) ->  | AV53: =IF('Races, Positions & Points'!#REF!="","",'Races, Positions & Points'!#REF!) ->  | AW53: =IF('Races, Positions & Points'!#REF!="","",'Races, Positions & Points'!#REF!) ->  | AX53: =IF('Races, Positions & Points'!#REF!="","",'Races, Positions & Points'!#REF!) ->  | AY53: =IF('Races, Positions & Points'!#REF!="","",'Races, Positions & Points'!#REF!) ->  | BH53: ='Races, Positions & Points'!#REF! ->  | BI53: ='Races, Positions & Points'!#REF! -> 
A54: ='Races, Positions & Points'!#REF! ->  | B54: =IF('Races, Positions & Points'!#REF!="","",'Races, Positions & Points'!#REF!) ->  | C54: =IF('Races, Positions & Points'!#REF!="","",'Races, Positions & Points'!#REF!) ->  | D54: =IF('Races, Positions & Points'!#REF!="","",'Races, Positions & Points'!#REF!) ->  | E54: =IF('Races, Positions & Points'!#REF!="","",'Races, Positions & Points'!#REF!) ->  | F54: =IF('Races, Positions & Points'!#REF!="","",'Races, Positions & Points'!#REF!) ->  | G54: =IF('Races, Positions & Points'!#REF!="","",'Races, Positions & Points'!#REF!) ->  | H54: =IF('Races, Positions & Points'!#REF!="","",'Races, Positions & Points'!#REF!) ->  | I54: =IF('Races, Positions & Points'!#REF!="","",'Races, Positions & Points'!#REF!) ->  | J54: =IF('Races, Positions & Points'!#REF!="","",'Races, Positions & Points'!#REF!) ->  | K54: =IF('Races, Positions & Points'!#REF!="","",'Races, Positions & Points'!#REF!) ->  | L54: =IF('Races, Positions & Points'!#REF!="","",'Races, Positions & Points'!#REF!) ->  | M54: =IF('Races, Positions & Points'!#REF!="","",'Races, Positions & Points'!#REF!) ->  | N54: =IF('Races, Positions & Points'!#REF!="","",'Races, Positions & Points'!#REF!) ->  | O54: =IF('Races, Positions & Points'!#REF!="","",'Races, Positions & Points'!#REF!) ->  | P54: =IF('Races, Positions & Points'!#REF!="","",'Races, Positions & Points'!#REF!) ->  | Q54: =IF('Races, Positions & Points'!#REF!="","",'Races, Positions & Points'!#REF!) ->  | R54: =IF('Races, Positions & Points'!#REF!="","",'Races, Positions & Points'!#REF!) ->  | S54: =IF('Races, Positions & Points'!#REF!="","",'Races, Positions & Points'!#REF!) ->  | T54: =IF('Races, Positions & Points'!#REF!="","",'Races, Positions & Points'!#REF!) ->  | U54: =IF('Races, Positions & Points'!#REF!="","",'Races, Positions & Points'!#REF!) ->  | V54: =IF('Races, Positions & Points'!#REF!="","",'Races, Positions & Points'!#REF!) ->  | W54: =IF('Races, Positions & Points'!#REF!="","",'Races, Positions & Points'!#REF!) ->  | X54: =IF('Races, Positions & Points'!#REF!="","",'Races, Positions & Points'!#REF!) ->  | Y54: =IF('Races, Positions & Points'!#REF!="","",'Races, Positions & Points'!#REF!) ->  | Z54: =IF('Races, Positions & Points'!#REF!="","",'Races, Positions & Points'!#REF!) ->  | AA54: =IF('Races, Positions & Points'!#REF!="","",'Races, Positions & Points'!#REF!) ->  | AB54: =IF('Races, Positions & Points'!#REF!="","",'Races, Positions & Points'!#REF!) ->  | AC54: =IF('Races, Positions & Points'!#REF!="","",'Races, Positions & Points'!#REF!) ->  | AD54: =IF('Races, Positions & Points'!#REF!="","",'Races, Positions & Points'!#REF!) ->  | AE54: =IF('Races, Positions & Points'!#REF!="","",'Races, Positions & Points'!#REF!) ->  | AF54: =IF('Races, Positions & Points'!#REF!="","",'Races, Positions & Points'!#REF!) ->  | AG54: =IF('Races, Positions & Points'!#REF!="","",'Races, Positions & Points'!#REF!) ->  | AH54: =IF('Races, Positions & Points'!#REF!="","",'Races, Positions & Points'!#REF!) ->  | AI54: =IF('Races, Positions & Points'!#REF!="","",'Races, Positions & Points'!#REF!) ->  | AJ54: =IF('Races, Positions & Points'!#REF!="","",'Races, Positions & Points'!#REF!) ->  | AK54: =IF('Races, Positions & Points'!#REF!="","",'Races, Positions & Points'!#REF!) ->  | AL54: =IF('Races, Positions & Points'!#REF!="","",'Races, Positions & Points'!#REF!) ->  | AM54: =IF('Races, Positions & Points'!#REF!="","",'Races, Positions & Points'!#REF!) ->  | AN54: =IF('Races, Positions & Points'!#REF!="","",'Races, Positions & Points'!#REF!) ->  | AO54: =IF('Races, Positions & Points'!#REF!="","",'Races, Positions & Points'!#REF!) ->  | AP54: =IF('Races, Positions & Points'!#REF!="","",'Races, Positions & Points'!#REF!) ->  | AQ54: =IF('Races, Positions & Points'!#REF!="","",'Races, Positions & Points'!#REF!) ->  | AR54: =IF('Races, Positions & Points'!#REF!="","",'Races, Positions & Points'!#REF!) ->  | AS54: =IF('Races, Positions & Points'!#REF!="","",'Races, Positions & Points'!#REF!) ->  | AT54: =IF('Races, Positions & Points'!#REF!="","",'Races, Positions & Points'!#REF!) ->  | AU54: =IF('Races, Positions & Points'!#REF!="","",'Races, Positions & Points'!#REF!) ->  | AV54: =IF('Races, Positions & Points'!#REF!="","",'Races, Positions & Points'!#REF!) ->  | AW54: =IF('Races, Positions & Points'!#REF!="","",'Races, Positions & Points'!#REF!) ->  | AX54: =IF('Races, Positions & Points'!#REF!="","",'Races, Positions & Points'!#REF!) ->  | AY54: =IF('Races, Positions & Points'!#REF!="","",'Races, Positions & Points'!#REF!) ->  | BH54: ='Races, Positions & Points'!#REF! ->  | BI54: ='Races, Positions & Points'!#REF! ->  | CV54: =IF(ISERROR(CS54*1.2),"",IF(CS54<50,CS54+10,IF(CS54<999.99,CS54*1.2,""))) -> 
A55: ='Races, Positions & Points'!#REF! ->  | B55: =IF('Races, Positions & Points'!#REF!="","",'Races, Positions & Points'!#REF!) ->  | C55: =IF('Races, Positions & Points'!#REF!="","",'Races, Positions & Points'!#REF!) ->  | D55: =IF('Races, Positions & Points'!#REF!="","",'Races, Positions & Points'!#REF!) ->  | E55: =IF('Races, Positions & Points'!#REF!="","",'Races, Positions & Points'!#REF!) ->  | F55: =IF('Races, Positions & Points'!#REF!="","",'Races, Positions & Points'!#REF!) ->  | G55: =IF('Races, Positions & Points'!#REF!="","",'Races, Positions & Points'!#REF!) ->  | H55: =IF('Races, Positions & Points'!#REF!="","",'Races, Positions & Points'!#REF!) ->  | I55: =IF('Races, Positions & Points'!#REF!="","",'Races, Positions & Points'!#REF!) ->  | J55: =IF('Races, Positions & Points'!#REF!="","",'Races, Positions & Points'!#REF!) ->  | K55: =IF('Races, Positions & Points'!#REF!="","",'Races, Positions & Points'!#REF!) ->  | L55: =IF('Races, Positions & Points'!#REF!="","",'Races, Positions & Points'!#REF!) ->  | M55: =IF('Races, Positions & Points'!#REF!="","",'Races, Positions & Points'!#REF!) ->  | N55: =IF('Races, Positions & Points'!#REF!="","",'Races, Positions & Points'!#REF!) ->  | O55: =IF('Races, Positions & Points'!#REF!="","",'Races, Positions & Points'!#REF!) ->  | P55: =IF('Races, Positions & Points'!#REF!="","",'Races, Positions & Points'!#REF!) ->  | Q55: =IF('Races, Positions & Points'!#REF!="","",'Races, Positions & Points'!#REF!) ->  | R55: =IF('Races, Positions & Points'!#REF!="","",'Races, Positions & Points'!#REF!) ->  | S55: =IF('Races, Positions & Points'!#REF!="","",'Races, Positions & Points'!#REF!) ->  | T55: =IF('Races, Positions & Points'!#REF!="","",'Races, Positions & Points'!#REF!) ->  | U55: =IF('Races, Positions & Points'!#REF!="","",'Races, Positions & Points'!#REF!) ->  | V55: =IF('Races, Positions & Points'!#REF!="","",'Races, Positions & Points'!#REF!) ->  | W55: =IF('Races, Positions & Points'!#REF!="","",'Races, Positions & Points'!#REF!) ->  | X55: =IF('Races, Positions & Points'!#REF!="","",'Races, Positions & Points'!#REF!) ->  | Y55: =IF('Races, Positions & Points'!#REF!="","",'Races, Positions & Points'!#REF!) ->  | Z55: =IF('Races, Positions & Points'!#REF!="","",'Races, Positions & Points'!#REF!) ->  | AA55: =IF('Races, Positions & Points'!#REF!="","",'Races, Positions & Points'!#REF!) ->  | AB55: =IF('Races, Positions & Points'!#REF!="","",'Races, Positions & Points'!#REF!) ->  | AC55: =IF('Races, Positions & Points'!#REF!="","",'Races, Positions & Points'!#REF!) ->  | AD55: =IF('Races, Positions & Points'!#REF!="","",'Races, Positions & Points'!#REF!) ->  | AE55: =IF('Races, Positions & Points'!#REF!="","",'Races, Positions & Points'!#REF!) ->  | AF55: =IF('Races, Positions & Points'!#REF!="","",'Races, Positions & Points'!#REF!) ->  | AG55: =IF('Races, Positions & Points'!#REF!="","",'Races, Positions & Points'!#REF!) ->  | AH55: =IF('Races, Positions & Points'!#REF!="","",'Races, Positions & Points'!#REF!) ->  | AI55: =IF('Races, Positions & Points'!#REF!="","",'Races, Positions & Points'!#REF!) ->  | AJ55: =IF('Races, Positions & Points'!#REF!="","",'Races, Positions & Points'!#REF!) ->  | AK55: =IF('Races, Positions & Points'!#REF!="","",'Races, Positions & Points'!#REF!) ->  | AL55: =IF('Races, Positions & Points'!#REF!="","",'Races, Positions & Points'!#REF!) ->  | AM55: =IF('Races, Positions & Points'!#REF!="","",'Races, Positions & Points'!#REF!) ->  | AN55: =IF('Races, Positions & Points'!#REF!="","",'Races, Positions & Points'!#REF!) ->  | AO55: =IF('Races, Positions & Points'!#REF!="","",'Races, Positions & Points'!#REF!) ->  | AP55: =IF('Races, Positions & Points'!#REF!="","",'Races, Positions & Points'!#REF!) ->  | AQ55: =IF('Races, Positions & Points'!#REF!="","",'Races, Positions & Points'!#REF!) ->  | AR55: =IF('Races, Positions & Points'!#REF!="","",'Races, Positions & Points'!#REF!) ->  | AS55: =IF('Races, Positions & Points'!#REF!="","",'Races, Positions & Points'!#REF!) ->  | AT55: =IF('Races, Positions & Points'!#REF!="","",'Races, Positions & Points'!#REF!) ->  | AU55: =IF('Races, Positions & Points'!#REF!="","",'Races, Positions & Points'!#REF!) ->  | AV55: =IF('Races, Positions & Points'!#REF!="","",'Races, Positions & Points'!#REF!) ->  | AW55: =IF('Races, Positions & Points'!#REF!="","",'Races, Positions & Points'!#REF!) ->  | AX55: =IF('Races, Positions & Points'!#REF!="","",'Races, Positions & Points'!#REF!) ->  | AY55: =IF('Races, Positions & Points'!#REF!="","",'Races, Positions & Points'!#REF!) ->  | BH55: ='Races, Positions & Points'!#REF! ->  | BI55: ='Races, Positions & Points'!#REF! ->  | CV55: =IF(ISERROR(CS55*1.2),"",IF(CS55<50,CS55+10,IF(CS55<999.99,CS55*1.2,""))) -> 
A56: ='Races, Positions & Points'!#REF! ->  | B56: =IF('Races, Positions & Points'!#REF!="","",'Races, Positions & Points'!#REF!) ->  | C56: =IF('Races, Positions & Points'!#REF!="","",'Races, Positions & Points'!#REF!) ->  | D56: =IF('Races, Positions & Points'!#REF!="","",'Races, Positions & Points'!#REF!) ->  | E56: =IF('Races, Positions & Points'!#REF!="","",'Races, Positions & Points'!#REF!) ->  | F56: =IF('Races, Positions & Points'!#REF!="","",'Races, Positions & Points'!#REF!) ->  | G56: =IF('Races, Positions & Points'!#REF!="","",'Races, Positions & Points'!#REF!) ->  | H56: =IF('Races, Positions & Points'!#REF!="","",'Races, Positions & Points'!#REF!) ->  | I56: =IF('Races, Positions & Points'!#REF!="","",'Races, Positions & Points'!#REF!) ->  | J56: =IF('Races, Positions & Points'!#REF!="","",'Races, Positions & Points'!#REF!) ->  | K56: =IF('Races, Positions & Points'!#REF!="","",'Races, Positions & Points'!#REF!) ->  | L56: =IF('Races, Positions & Points'!#REF!="","",'Races, Positions & Points'!#REF!) ->  | M56: =IF('Races, Positions & Points'!#REF!="","",'Races, Positions & Points'!#REF!) ->  | N56: =IF('Races, Positions & Points'!#REF!="","",'Races, Positions & Points'!#REF!) ->  | O56: =IF('Races, Positions & Points'!#REF!="","",'Races, Positions & Points'!#REF!) ->  | P56: =IF('Races, Positions & Points'!#REF!="","",'Races, Positions & Points'!#REF!) ->  | Q56: =IF('Races, Positions & Points'!#REF!="","",'Races, Positions & Points'!#REF!) ->  | R56: =IF('Races, Positions & Points'!#REF!="","",'Races, Positions & Points'!#REF!) ->  | S56: =IF('Races, Positions & Points'!#REF!="","",'Races, Positions & Points'!#REF!) ->  | T56: =IF('Races, Positions & Points'!#REF!="","",'Races, Positions & Points'!#REF!) ->  | U56: =IF('Races, Positions & Points'!#REF!="","",'Races, Positions & Points'!#REF!) ->  | V56: =IF('Races, Positions & Points'!#REF!="","",'Races, Positions & Points'!#REF!) ->  | W56: =IF('Races, Positions & Points'!#REF!="","",'Races, Positions & Points'!#REF!) ->  | X56: =IF('Races, Positions & Points'!#REF!="","",'Races, Positions & Points'!#REF!) ->  | Y56: =IF('Races, Positions & Points'!#REF!="","",'Races, Positions & Points'!#REF!) ->  | Z56: =IF('Races, Positions & Points'!#REF!="","",'Races, Positions & Points'!#REF!) ->  | AA56: =IF('Races, Positions & Points'!#REF!="","",'Races, Positions & Points'!#REF!) ->  | AB56: =IF('Races, Positions & Points'!#REF!="","",'Races, Positions & Points'!#REF!) ->  | AC56: =IF('Races, Positions & Points'!#REF!="","",'Races, Positions & Points'!#REF!) ->  | AD56: =IF('Races, Positions & Points'!#REF!="","",'Races, Positions & Points'!#REF!) ->  | AE56: =IF('Races, Positions & Points'!#REF!="","",'Races, Positions & Points'!#REF!) ->  | AF56: =IF('Races, Positions & Points'!#REF!="","",'Races, Positions & Points'!#REF!) ->  | AG56: =IF('Races, Positions & Points'!#REF!="","",'Races, Positions & Points'!#REF!) ->  | AH56: =IF('Races, Positions & Points'!#REF!="","",'Races, Positions & Points'!#REF!) ->  | AI56: =IF('Races, Positions & Points'!#REF!="","",'Races, Positions & Points'!#REF!) ->  | AJ56: =IF('Races, Positions & Points'!#REF!="","",'Races, Positions & Points'!#REF!) ->  | AK56: =IF('Races, Positions & Points'!#REF!="","",'Races, Positions & Points'!#REF!) ->  | AL56: =IF('Races, Positions & Points'!#REF!="","",'Races, Positions & Points'!#REF!) ->  | AM56: =IF('Races, Positions & Points'!#REF!="","",'Races, Positions & Points'!#REF!) ->  | AN56: =IF('Races, Positions & Points'!#REF!="","",'Races, Positions & Points'!#REF!) ->  | AO56: =IF('Races, Positions & Points'!#REF!="","",'Races, Positions & Points'!#REF!) ->  | AP56: =IF('Races, Positions & Points'!#REF!="","",'Races, Positions & Points'!#REF!) ->  | AQ56: =IF('Races, Positions & Points'!#REF!="","",'Races, Positions & Points'!#REF!) ->  | AR56: =IF('Races, Positions & Points'!#REF!="","",'Races, Positions & Points'!#REF!) ->  | AS56: =IF('Races, Positions & Points'!#REF!="","",'Races, Positions & Points'!#REF!) ->  | AT56: =IF('Races, Positions & Points'!#REF!="","",'Races, Positions & Points'!#REF!) ->  | AU56: =IF('Races, Positions & Points'!#REF!="","",'Races, Positions & Points'!#REF!) ->  | AV56: =IF('Races, Positions & Points'!#REF!="","",'Races, Positions & Points'!#REF!) ->  | AW56: =IF('Races, Positions & Points'!#REF!="","",'Races, Positions & Points'!#REF!) ->  | AX56: =IF('Races, Positions & Points'!#REF!="","",'Races, Positions & Points'!#REF!) ->  | AY56: =IF('Races, Positions & Points'!#REF!="","",'Races, Positions & Points'!#REF!) ->  | BH56: ='Races, Positions & Points'!#REF! ->  | BI56: ='Races, Positions & Points'!#REF! -> 
A57: ='Races, Positions & Points'!#REF! ->  | B57: =IF('Races, Positions & Points'!#REF!="","",'Races, Positions & Points'!#REF!) ->  | C57: =IF('Races, Positions & Points'!#REF!="","",'Races, Positions & Points'!#REF!) ->  | D57: =IF('Races, Positions & Points'!#REF!="","",'Races, Positions & Points'!#REF!) ->  | E57: =IF('Races, Positions & Points'!#REF!="","",'Races, Positions & Points'!#REF!) ->  | F57: =IF('Races, Positions & Points'!#REF!="","",'Races, Positions & Points'!#REF!) ->  | G57: =IF('Races, Positions & Points'!#REF!="","",'Races, Positions & Points'!#REF!) ->  | H57: =IF('Races, Positions & Points'!#REF!="","",'Races, Positions & Points'!#REF!) ->  | I57: =IF('Races, Positions & Points'!#REF!="","",'Races, Positions & Points'!#REF!) ->  | J57: =IF('Races, Positions & Points'!#REF!="","",'Races, Positions & Points'!#REF!) ->  | K57: =IF('Races, Positions & Points'!#REF!="","",'Races, Positions & Points'!#REF!) ->  | L57: =IF('Races, Positions & Points'!#REF!="","",'Races, Positions & Points'!#REF!) ->  | M57: =IF('Races, Positions & Points'!#REF!="","",'Races, Positions & Points'!#REF!) ->  | N57: =IF('Races, Positions & Points'!#REF!="","",'Races, Positions & Points'!#REF!) ->  | O57: =IF('Races, Positions & Points'!#REF!="","",'Races, Positions & Points'!#REF!) ->  | P57: =IF('Races, Positions & Points'!#REF!="","",'Races, Positions & Points'!#REF!) ->  | Q57: =IF('Races, Positions & Points'!#REF!="","",'Races, Positions & Points'!#REF!) ->  | R57: =IF('Races, Positions & Points'!#REF!="","",'Races, Positions & Points'!#REF!) ->  | S57: =IF('Races, Positions & Points'!#REF!="","",'Races, Positions & Points'!#REF!) ->  | T57: =IF('Races, Positions & Points'!#REF!="","",'Races, Positions & Points'!#REF!) ->  | U57: =IF('Races, Positions & Points'!#REF!="","",'Races, Positions & Points'!#REF!) ->  | V57: =IF('Races, Positions & Points'!#REF!="","",'Races, Positions & Points'!#REF!) ->  | W57: =IF('Races, Positions & Points'!#REF!="","",'Races, Positions & Points'!#REF!) ->  | X57: =IF('Races, Positions & Points'!#REF!="","",'Races, Positions & Points'!#REF!) ->  | Y57: =IF('Races, Positions & Points'!#REF!="","",'Races, Positions & Points'!#REF!) ->  | Z57: =IF('Races, Positions & Points'!#REF!="","",'Races, Positions & Points'!#REF!) ->  | AA57: =IF('Races, Positions & Points'!#REF!="","",'Races, Positions & Points'!#REF!) ->  | AB57: =IF('Races, Positions & Points'!#REF!="","",'Races, Positions & Points'!#REF!) ->  | AC57: =IF('Races, Positions & Points'!#REF!="","",'Races, Positions & Points'!#REF!) ->  | AD57: =IF('Races, Positions & Points'!#REF!="","",'Races, Positions & Points'!#REF!) ->  | AE57: =IF('Races, Positions & Points'!#REF!="","",'Races, Positions & Points'!#REF!) ->  | AF57: =IF('Races, Positions & Points'!#REF!="","",'Races, Positions & Points'!#REF!) ->  | AG57: =IF('Races, Positions & Points'!#REF!="","",'Races, Positions & Points'!#REF!) ->  | AH57: =IF('Races, Positions & Points'!#REF!="","",'Races, Positions & Points'!#REF!) ->  | AI57: =IF('Races, Positions & Points'!#REF!="","",'Races, Positions & Points'!#REF!) ->  | AJ57: =IF('Races, Positions & Points'!#REF!="","",'Races, Positions & Points'!#REF!) ->  | AK57: =IF('Races, Positions & Points'!#REF!="","",'Races, Positions & Points'!#REF!) ->  | AL57: =IF('Races, Positions & Points'!#REF!="","",'Races, Positions & Points'!#REF!) ->  | AM57: =IF('Races, Positions & Points'!#REF!="","",'Races, Positions & Points'!#REF!) ->  | AN57: =IF('Races, Positions & Points'!#REF!="","",'Races, Positions & Points'!#REF!) ->  | AO57: =IF('Races, Positions & Points'!#REF!="","",'Races, Positions & Points'!#REF!) ->  | AP57: =IF('Races, Positions & Points'!#REF!="","",'Races, Positions & Points'!#REF!) ->  | AQ57: =IF('Races, Positions & Points'!#REF!="","",'Races, Positions & Points'!#REF!) ->  | AR57: =IF('Races, Positions & Points'!#REF!="","",'Races, Positions & Points'!#REF!) ->  | AS57: =IF('Races, Positions & Points'!#REF!="","",'Races, Positions & Points'!#REF!) ->  | AT57: =IF('Races, Positions & Points'!#REF!="","",'Races, Positions & Points'!#REF!) ->  | AU57: =IF('Races, Positions & Points'!#REF!="","",'Races, Positions & Points'!#REF!) ->  | AV57: =IF('Races, Positions & Points'!#REF!="","",'Races, Positions & Points'!#REF!) ->  | AW57: =IF('Races, Positions & Points'!#REF!="","",'Races, Positions & Points'!#REF!) ->  | AX57: =IF('Races, Positions & Points'!#REF!="","",'Races, Positions & Points'!#REF!) ->  | AY57: =IF('Races, Positions & Points'!#REF!="","",'Races, Positions & Points'!#REF!) ->  | BH57: ='Races, Positions & Points'!#REF! ->  | BI57: ='Races, Positions & Points'!#REF! -> 
A58: ='Races, Positions & Points'!#REF! ->  | B58: =IF('Races, Positions & Points'!#REF!="","",'Races, Positions & Points'!#REF!) ->  | C58: =IF('Races, Positions & Points'!#REF!="","",'Races, Positions & Points'!#REF!) ->  | D58: =IF('Races, Positions & Points'!#REF!="","",'Races, Positions & Points'!#REF!) ->  | E58: =IF('Races, Positions & Points'!#REF!="","",'Races, Positions & Points'!#REF!) ->  | F58: =IF('Races, Positions & Points'!#REF!="","",'Races, Positions & Points'!#REF!) ->  | G58: =IF('Races, Positions & Points'!#REF!="","",'Races, Positions & Points'!#REF!) ->  | H58: =IF('Races, Positions & Points'!#REF!="","",'Races, Positions & Points'!#REF!) ->  | I58: =IF('Races, Positions & Points'!#REF!="","",'Races, Positions & Points'!#REF!) ->  | J58: =IF('Races, Positions & Points'!#REF!="","",'Races, Positions & Points'!#REF!) ->  | K58: =IF('Races, Positions & Points'!#REF!="","",'Races, Positions & Points'!#REF!) ->  | L58: =IF('Races, Positions & Points'!#REF!="","",'Races, Positions & Points'!#REF!) ->  | M58: =IF('Races, Positions & Points'!#REF!="","",'Races, Positions & Points'!#REF!) ->  | N58: =IF('Races, Positions & Points'!#REF!="","",'Races, Positions & Points'!#REF!) ->  | O58: =IF('Races, Positions & Points'!#REF!="","",'Races, Positions & Points'!#REF!) ->  | P58: =IF('Races, Positions & Points'!#REF!="","",'Races, Positions & Points'!#REF!) ->  | Q58: =IF('Races, Positions & Points'!#REF!="","",'Races, Positions & Points'!#REF!) ->  | R58: =IF('Races, Positions & Points'!#REF!="","",'Races, Positions & Points'!#REF!) ->  | S58: =IF('Races, Positions & Points'!#REF!="","",'Races, Positions & Points'!#REF!) ->  | T58: =IF('Races, Positions & Points'!#REF!="","",'Races, Positions & Points'!#REF!) ->  | U58: =IF('Races, Positions & Points'!#REF!="","",'Races, Positions & Points'!#REF!) ->  | V58: =IF('Races, Positions & Points'!#REF!="","",'Races, Positions & Points'!#REF!) ->  | W58: =IF('Races, Positions & Points'!#REF!="","",'Races, Positions & Points'!#REF!) ->  | X58: =IF('Races, Positions & Points'!#REF!="","",'Races, Positions & Points'!#REF!) ->  | Y58: =IF('Races, Positions & Points'!#REF!="","",'Races, Positions & Points'!#REF!) ->  | Z58: =IF('Races, Positions & Points'!#REF!="","",'Races, Positions & Points'!#REF!) ->  | AA58: =IF('Races, Positions & Points'!#REF!="","",'Races, Positions & Points'!#REF!) ->  | AB58: =IF('Races, Positions & Points'!#REF!="","",'Races, Positions & Points'!#REF!) ->  | AC58: =IF('Races, Positions & Points'!#REF!="","",'Races, Positions & Points'!#REF!) ->  | AD58: =IF('Races, Positions & Points'!#REF!="","",'Races, Positions & Points'!#REF!) ->  | AE58: =IF('Races, Positions & Points'!#REF!="","",'Races, Positions & Points'!#REF!) ->  | AF58: =IF('Races, Positions & Points'!#REF!="","",'Races, Positions & Points'!#REF!) ->  | AG58: =IF('Races, Positions & Points'!#REF!="","",'Races, Positions & Points'!#REF!) ->  | AH58: =IF('Races, Positions & Points'!#REF!="","",'Races, Positions & Points'!#REF!) ->  | AI58: =IF('Races, Positions & Points'!#REF!="","",'Races, Positions & Points'!#REF!) ->  | AJ58: =IF('Races, Positions & Points'!#REF!="","",'Races, Positions & Points'!#REF!) ->  | AK58: =IF('Races, Positions & Points'!#REF!="","",'Races, Positions & Points'!#REF!) ->  | AL58: =IF('Races, Positions & Points'!#REF!="","",'Races, Positions & Points'!#REF!) ->  | AM58: =IF('Races, Positions & Points'!#REF!="","",'Races, Positions & Points'!#REF!) ->  | AN58: =IF('Races, Positions & Points'!#REF!="","",'Races, Positions & Points'!#REF!) ->  | AO58: =IF('Races, Positions & Points'!#REF!="","",'Races, Positions & Points'!#REF!) ->  | AP58: =IF('Races, Positions & Points'!#REF!="","",'Races, Positions & Points'!#REF!) ->  | AQ58: =IF('Races, Positions & Points'!#REF!="","",'Races, Positions & Points'!#REF!) ->  | AR58: =IF('Races, Positions & Points'!#REF!="","",'Races, Positions & Points'!#REF!) ->  | AS58: =IF('Races, Positions & Points'!#REF!="","",'Races, Positions & Points'!#REF!) ->  | AT58: =IF('Races, Positions & Points'!#REF!="","",'Races, Positions & Points'!#REF!) ->  | AU58: =IF('Races, Positions & Points'!#REF!="","",'Races, Positions & Points'!#REF!) ->  | AV58: =IF('Races, Positions & Points'!#REF!="","",'Races, Positions & Points'!#REF!) ->  | AW58: =IF('Races, Positions & Points'!#REF!="","",'Races, Positions & Points'!#REF!) ->  | AX58: =IF('Races, Positions & Points'!#REF!="","",'Races, Positions & Points'!#REF!) ->  | AY58: =IF('Races, Positions & Points'!#REF!="","",'Races, Positions & Points'!#REF!) ->  | BH58: ='Races, Positions & Points'!#REF! ->  | BI58: ='Races, Positions & Points'!#REF! -> 
A59: ='Races, Positions & Points'!#REF! ->  | B59: =IF('Races, Positions & Points'!#REF!="","",'Races, Positions & Points'!#REF!) ->  | C59: =IF('Races, Positions & Points'!#REF!="","",'Races, Positions & Points'!#REF!) ->  | D59: =IF('Races, Positions & Points'!#REF!="","",'Races, Positions & Points'!#REF!) ->  | E59: =IF('Races, Positions & Points'!#REF!="","",'Races, Positions & Points'!#REF!) ->  | F59: =IF('Races, Positions & Points'!#REF!="","",'Races, Positions & Points'!#REF!) ->  | G59: =IF('Races, Positions & Points'!#REF!="","",'Races, Positions & Points'!#REF!) ->  | H59: =IF('Races, Positions & Points'!#REF!="","",'Races, Positions & Points'!#REF!) ->  | I59: =IF('Races, Positions & Points'!#REF!="","",'Races, Positions & Points'!#REF!) ->  | J59: =IF('Races, Positions & Points'!#REF!="","",'Races, Positions & Points'!#REF!) ->  | K59: =IF('Races, Positions & Points'!#REF!="","",'Races, Positions & Points'!#REF!) ->  | L59: =IF('Races, Positions & Points'!#REF!="","",'Races, Positions & Points'!#REF!) ->  | M59: =IF('Races, Positions & Points'!#REF!="","",'Races, Positions & Points'!#REF!) ->  | N59: =IF('Races, Positions & Points'!#REF!="","",'Races, Positions & Points'!#REF!) ->  | O59: =IF('Races, Positions & Points'!#REF!="","",'Races, Positions & Points'!#REF!) ->  | P59: =IF('Races, Positions & Points'!#REF!="","",'Races, Positions & Points'!#REF!) ->  | Q59: =IF('Races, Positions & Points'!#REF!="","",'Races, Positions & Points'!#REF!) ->  | R59: =IF('Races, Positions & Points'!#REF!="","",'Races, Positions & Points'!#REF!) ->  | S59: =IF('Races, Positions & Points'!#REF!="","",'Races, Positions & Points'!#REF!) ->  | T59: =IF('Races, Positions & Points'!#REF!="","",'Races, Positions & Points'!#REF!) ->  | U59: =IF('Races, Positions & Points'!#REF!="","",'Races, Positions & Points'!#REF!) ->  | V59: =IF('Races, Positions & Points'!#REF!="","",'Races, Positions & Points'!#REF!) ->  | W59: =IF('Races, Positions & Points'!#REF!="","",'Races, Positions & Points'!#REF!) ->  | X59: =IF('Races, Positions & Points'!#REF!="","",'Races, Positions & Points'!#REF!) ->  | Y59: =IF('Races, Positions & Points'!#REF!="","",'Races, Positions & Points'!#REF!) ->  | Z59: =IF('Races, Positions & Points'!#REF!="","",'Races, Positions & Points'!#REF!) ->  | AA59: =IF('Races, Positions & Points'!#REF!="","",'Races, Positions & Points'!#REF!) ->  | AB59: =IF('Races, Positions & Points'!#REF!="","",'Races, Positions & Points'!#REF!) ->  | AC59: =IF('Races, Positions & Points'!#REF!="","",'Races, Positions & Points'!#REF!) ->  | AD59: =IF('Races, Positions & Points'!#REF!="","",'Races, Positions & Points'!#REF!) ->  | AE59: =IF('Races, Positions & Points'!#REF!="","",'Races, Positions & Points'!#REF!) ->  | AF59: =IF('Races, Positions & Points'!#REF!="","",'Races, Positions & Points'!#REF!) ->  | AG59: =IF('Races, Positions & Points'!#REF!="","",'Races, Positions & Points'!#REF!) ->  | AH59: =IF('Races, Positions & Points'!#REF!="","",'Races, Positions & Points'!#REF!) ->  | AI59: =IF('Races, Positions & Points'!#REF!="","",'Races, Positions & Points'!#REF!) ->  | AJ59: =IF('Races, Positions & Points'!#REF!="","",'Races, Positions & Points'!#REF!) ->  | AK59: =IF('Races, Positions & Points'!#REF!="","",'Races, Positions & Points'!#REF!) ->  | AL59: =IF('Races, Positions & Points'!#REF!="","",'Races, Positions & Points'!#REF!) ->  | AM59: =IF('Races, Positions & Points'!#REF!="","",'Races, Positions & Points'!#REF!) ->  | AN59: =IF('Races, Positions & Points'!#REF!="","",'Races, Positions & Points'!#REF!) ->  | AO59: =IF('Races, Positions & Points'!#REF!="","",'Races, Positions & Points'!#REF!) ->  | AP59: =IF('Races, Positions & Points'!#REF!="","",'Races, Positions & Points'!#REF!) ->  | AQ59: =IF('Races, Positions & Points'!#REF!="","",'Races, Positions & Points'!#REF!) ->  | AR59: =IF('Races, Positions & Points'!#REF!="","",'Races, Positions & Points'!#REF!) ->  | AS59: =IF('Races, Positions & Points'!#REF!="","",'Races, Positions & Points'!#REF!) ->  | AT59: =IF('Races, Positions & Points'!#REF!="","",'Races, Positions & Points'!#REF!) ->  | AU59: =IF('Races, Positions & Points'!#REF!="","",'Races, Positions & Points'!#REF!) ->  | AV59: =IF('Races, Positions & Points'!#REF!="","",'Races, Positions & Points'!#REF!) ->  | AW59: =IF('Races, Positions & Points'!#REF!="","",'Races, Positions & Points'!#REF!) ->  | AX59: =IF('Races, Positions & Points'!#REF!="","",'Races, Positions & Points'!#REF!) ->  | AY59: =IF('Races, Positions & Points'!#REF!="","",'Races, Positions & Points'!#REF!) ->  | BH59: ='Races, Positions & Points'!#REF! ->  | BI59: ='Races, Positions & Points'!#REF! -> 
A60: ='Races, Positions & Points'!#REF! ->  | B60: =IF('Races, Positions & Points'!#REF!="","",'Races, Positions & Points'!#REF!) ->  | C60: =IF('Races, Positions & Points'!#REF!="","",'Races, Positions & Points'!#REF!) ->  | D60: =IF('Races, Positions & Points'!#REF!="","",'Races, Positions & Points'!#REF!) ->  | E60: =IF('Races, Positions & Points'!#REF!="","",'Races, Positions & Points'!#REF!) ->  | F60: =IF('Races, Positions & Points'!#REF!="","",'Races, Positions & Points'!#REF!) ->  | G60: =IF('Races, Positions & Points'!#REF!="","",'Races, Positions & Points'!#REF!) ->  | H60: =IF('Races, Positions & Points'!#REF!="","",'Races, Positions & Points'!#REF!) ->  | I60: =IF('Races, Positions & Points'!#REF!="","",'Races, Positions & Points'!#REF!) ->  | J60: =IF('Races, Positions & Points'!#REF!="","",'Races, Positions & Points'!#REF!) ->  | K60: =IF('Races, Positions & Points'!#REF!="","",'Races, Positions & Points'!#REF!) ->  | L60: =IF('Races, Positions & Points'!#REF!="","",'Races, Positions & Points'!#REF!) ->  | M60: =IF('Races, Positions & Points'!#REF!="","",'Races, Positions & Points'!#REF!) ->  | N60: =IF('Races, Positions & Points'!#REF!="","",'Races, Positions & Points'!#REF!) ->  | O60: =IF('Races, Positions & Points'!#REF!="","",'Races, Positions & Points'!#REF!) ->  | P60: =IF('Races, Positions & Points'!#REF!="","",'Races, Positions & Points'!#REF!) ->  | Q60: =IF('Races, Positions & Points'!#REF!="","",'Races, Positions & Points'!#REF!) ->  | R60: =IF('Races, Positions & Points'!#REF!="","",'Races, Positions & Points'!#REF!) ->  | S60: =IF('Races, Positions & Points'!#REF!="","",'Races, Positions & Points'!#REF!) ->  | T60: =IF('Races, Positions & Points'!#REF!="","",'Races, Positions & Points'!#REF!) ->  | U60: =IF('Races, Positions & Points'!#REF!="","",'Races, Positions & Points'!#REF!) ->  | V60: =IF('Races, Positions & Points'!#REF!="","",'Races, Positions & Points'!#REF!) ->  | W60: =IF('Races, Positions & Points'!#REF!="","",'Races, Positions & Points'!#REF!) ->  | X60: =IF('Races, Positions & Points'!#REF!="","",'Races, Positions & Points'!#REF!) ->  | Y60: =IF('Races, Positions & Points'!#REF!="","",'Races, Positions & Points'!#REF!) ->  | Z60: =IF('Races, Positions & Points'!#REF!="","",'Races, Positions & Points'!#REF!) ->  | AA60: =IF('Races, Positions & Points'!#REF!="","",'Races, Positions & Points'!#REF!) ->  | AB60: =IF('Races, Positions & Points'!#REF!="","",'Races, Positions & Points'!#REF!) ->  | AC60: =IF('Races, Positions & Points'!#REF!="","",'Races, Positions & Points'!#REF!) ->  | AD60: =IF('Races, Positions & Points'!#REF!="","",'Races, Positions & Points'!#REF!) ->  | AE60: =IF('Races, Positions & Points'!#REF!="","",'Races, Positions & Points'!#REF!) ->  | AF60: =IF('Races, Positions & Points'!#REF!="","",'Races, Positions & Points'!#REF!) ->  | AG60: =IF('Races, Positions & Points'!#REF!="","",'Races, Positions & Points'!#REF!) ->  | AH60: =IF('Races, Positions & Points'!#REF!="","",'Races, Positions & Points'!#REF!) ->  | AI60: =IF('Races, Positions & Points'!#REF!="","",'Races, Positions & Points'!#REF!) ->  | AJ60: =IF('Races, Positions & Points'!#REF!="","",'Races, Positions & Points'!#REF!) ->  | AK60: =IF('Races, Positions & Points'!#REF!="","",'Races, Positions & Points'!#REF!) ->  | AL60: =IF('Races, Positions & Points'!#REF!="","",'Races, Positions & Points'!#REF!) ->  | AM60: =IF('Races, Positions & Points'!#REF!="","",'Races, Positions & Points'!#REF!) ->  | AN60: =IF('Races, Positions & Points'!#REF!="","",'Races, Positions & Points'!#REF!) ->  | AO60: =IF('Races, Positions & Points'!#REF!="","",'Races, Positions & Points'!#REF!) ->  | AP60: =IF('Races, Positions & Points'!#REF!="","",'Races, Positions & Points'!#REF!) ->  | AQ60: =IF('Races, Positions & Points'!#REF!="","",'Races, Positions & Points'!#REF!) ->  | AR60: =IF('Races, Positions & Points'!#REF!="","",'Races, Positions & Points'!#REF!) ->  | AS60: =IF('Races, Positions & Points'!#REF!="","",'Races, Positions & Points'!#REF!) ->  | AT60: =IF('Races, Positions & Points'!#REF!="","",'Races, Positions & Points'!#REF!) ->  | AU60: =IF('Races, Positions & Points'!#REF!="","",'Races, Positions & Points'!#REF!) ->  | AV60: =IF('Races, Positions & Points'!#REF!="","",'Races, Positions & Points'!#REF!) ->  | AW60: =IF('Races, Positions & Points'!#REF!="","",'Races, Positions & Points'!#REF!) ->  | AX60: =IF('Races, Positions & Points'!#REF!="","",'Races, Positions & Points'!#REF!) ->  | AY60: =IF('Races, Positions & Points'!#REF!="","",'Races, Positions & Points'!#REF!) ->  | BH60: ='Races, Positions & Points'!#REF! ->  | BI60: ='Races, Positions & Points'!#REF! -> 
A61: ='Races, Positions & Points'!#REF! ->  | B61: =IF('Races, Positions & Points'!#REF!="","",'Races, Positions & Points'!#REF!) ->  | C61: =IF('Races, Positions & Points'!#REF!="","",'Races, Positions & Points'!#REF!) ->  | D61: =IF('Races, Positions & Points'!#REF!="","",'Races, Positions & Points'!#REF!) ->  | E61: =IF('Races, Positions & Points'!#REF!="","",'Races, Positions & Points'!#REF!) ->  | F61: =IF('Races, Positions & Points'!#REF!="","",'Races, Positions & Points'!#REF!) ->  | G61: =IF('Races, Positions & Points'!#REF!="","",'Races, Positions & Points'!#REF!) ->  | H61: =IF('Races, Positions & Points'!#REF!="","",'Races, Positions & Points'!#REF!) ->  | I61: =IF('Races, Positions & Points'!#REF!="","",'Races, Positions & Points'!#REF!) ->  | J61: =IF('Races, Positions & Points'!#REF!="","",'Races, Positions & Points'!#REF!) ->  | K61: =IF('Races, Positions & Points'!#REF!="","",'Races, Positions & Points'!#REF!) ->  | L61: =IF('Races, Positions & Points'!#REF!="","",'Races, Positions & Points'!#REF!) ->  | M61: =IF('Races, Positions & Points'!#REF!="","",'Races, Positions & Points'!#REF!) ->  | N61: =IF('Races, Positions & Points'!#REF!="","",'Races, Positions & Points'!#REF!) ->  | O61: =IF('Races, Positions & Points'!#REF!="","",'Races, Positions & Points'!#REF!) ->  | P61: =IF('Races, Positions & Points'!#REF!="","",'Races, Positions & Points'!#REF!) ->  | Q61: =IF('Races, Positions & Points'!#REF!="","",'Races, Positions & Points'!#REF!) ->  | R61: =IF('Races, Positions & Points'!#REF!="","",'Races, Positions & Points'!#REF!) ->  | S61: =IF('Races, Positions & Points'!#REF!="","",'Races, Positions & Points'!#REF!) ->  | T61: =IF('Races, Positions & Points'!#REF!="","",'Races, Positions & Points'!#REF!) ->  | U61: =IF('Races, Positions & Points'!#REF!="","",'Races, Positions & Points'!#REF!) ->  | V61: =IF('Races, Positions & Points'!#REF!="","",'Races, Positions & Points'!#REF!) ->  | W61: =IF('Races, Positions & Points'!#REF!="","",'Races, Positions & Points'!#REF!) ->  | X61: =IF('Races, Positions & Points'!#REF!="","",'Races, Positions & Points'!#REF!) ->  | Y61: =IF('Races, Positions & Points'!#REF!="","",'Races, Positions & Points'!#REF!) ->  | Z61: =IF('Races, Positions & Points'!#REF!="","",'Races, Positions & Points'!#REF!) ->  | AA61: =IF('Races, Positions & Points'!#REF!="","",'Races, Positions & Points'!#REF!) ->  | AB61: =IF('Races, Positions & Points'!#REF!="","",'Races, Positions & Points'!#REF!) ->  | AC61: =IF('Races, Positions & Points'!#REF!="","",'Races, Positions & Points'!#REF!) ->  | AD61: =IF('Races, Positions & Points'!#REF!="","",'Races, Positions & Points'!#REF!) ->  | AE61: =IF('Races, Positions & Points'!#REF!="","",'Races, Positions & Points'!#REF!) ->  | AF61: =IF('Races, Positions & Points'!#REF!="","",'Races, Positions & Points'!#REF!) ->  | AG61: =IF('Races, Positions & Points'!#REF!="","",'Races, Positions & Points'!#REF!) ->  | AH61: =IF('Races, Positions & Points'!#REF!="","",'Races, Positions & Points'!#REF!) ->  | AI61: =IF('Races, Positions & Points'!#REF!="","",'Races, Positions & Points'!#REF!) ->  | AJ61: =IF('Races, Positions & Points'!#REF!="","",'Races, Positions & Points'!#REF!) ->  | AK61: =IF('Races, Positions & Points'!#REF!="","",'Races, Positions & Points'!#REF!) ->  | AL61: =IF('Races, Positions & Points'!#REF!="","",'Races, Positions & Points'!#REF!) ->  | AM61: =IF('Races, Positions & Points'!#REF!="","",'Races, Positions & Points'!#REF!) ->  | AN61: =IF('Races, Positions & Points'!#REF!="","",'Races, Positions & Points'!#REF!) ->  | AO61: =IF('Races, Positions & Points'!#REF!="","",'Races, Positions & Points'!#REF!) ->  | AP61: =IF('Races, Positions & Points'!#REF!="","",'Races, Positions & Points'!#REF!) ->  | AQ61: =IF('Races, Positions & Points'!#REF!="","",'Races, Positions & Points'!#REF!) ->  | AR61: =IF('Races, Positions & Points'!#REF!="","",'Races, Positions & Points'!#REF!) ->  | AS61: =IF('Races, Positions & Points'!#REF!="","",'Races, Positions & Points'!#REF!) ->  | AT61: =IF('Races, Positions & Points'!#REF!="","",'Races, Positions & Points'!#REF!) ->  | AU61: =IF('Races, Positions & Points'!#REF!="","",'Races, Positions & Points'!#REF!) ->  | AV61: =IF('Races, Positions & Points'!#REF!="","",'Races, Positions & Points'!#REF!) ->  | AW61: =IF('Races, Positions & Points'!#REF!="","",'Races, Positions & Points'!#REF!) ->  | AX61: =IF('Races, Positions & Points'!#REF!="","",'Races, Positions & Points'!#REF!) ->  | AY61: =IF('Races, Positions & Points'!#REF!="","",'Races, Positions & Points'!#REF!) ->  | BH61: ='Races, Positions & Points'!#REF! ->  | BI61: ='Races, Positions & Points'!#REF! -> 
A62: ='Races, Positions & Points'!#REF! ->  | B62: =IF('Races, Positions & Points'!#REF!="","",'Races, Positions & Points'!#REF!) ->  | C62: =IF('Races, Positions & Points'!#REF!="","",'Races, Positions & Points'!#REF!) ->  | D62: =IF('Races, Positions & Points'!#REF!="","",'Races, Positions & Points'!#REF!) ->  | E62: =IF('Races, Positions & Points'!#REF!="","",'Races, Positions & Points'!#REF!) ->  | F62: =IF('Races, Positions & Points'!#REF!="","",'Races, Positions & Points'!#REF!) ->  | G62: =IF('Races, Positions & Points'!#REF!="","",'Races, Positions & Points'!#REF!) ->  | H62: =IF('Races, Positions & Points'!#REF!="","",'Races, Positions & Points'!#REF!) ->  | I62: =IF('Races, Positions & Points'!#REF!="","",'Races, Positions & Points'!#REF!) ->  | J62: =IF('Races, Positions & Points'!#REF!="","",'Races, Positions & Points'!#REF!) ->  | K62: =IF('Races, Positions & Points'!#REF!="","",'Races, Positions & Points'!#REF!) ->  | L62: =IF('Races, Positions & Points'!#REF!="","",'Races, Positions & Points'!#REF!) ->  | M62: =IF('Races, Positions & Points'!#REF!="","",'Races, Positions & Points'!#REF!) ->  | N62: =IF('Races, Positions & Points'!#REF!="","",'Races, Positions & Points'!#REF!) ->  | O62: =IF('Races, Positions & Points'!#REF!="","",'Races, Positions & Points'!#REF!) ->  | P62: =IF('Races, Positions & Points'!#REF!="","",'Races, Positions & Points'!#REF!) ->  | Q62: =IF('Races, Positions & Points'!#REF!="","",'Races, Positions & Points'!#REF!) ->  | R62: =IF('Races, Positions & Points'!#REF!="","",'Races, Positions & Points'!#REF!) ->  | S62: =IF('Races, Positions & Points'!#REF!="","",'Races, Positions & Points'!#REF!) ->  | T62: =IF('Races, Positions & Points'!#REF!="","",'Races, Positions & Points'!#REF!) ->  | U62: =IF('Races, Positions & Points'!#REF!="","",'Races, Positions & Points'!#REF!) ->  | V62: =IF('Races, Positions & Points'!#REF!="","",'Races, Positions & Points'!#REF!) ->  | W62: =IF('Races, Positions & Points'!#REF!="","",'Races, Positions & Points'!#REF!) ->  | X62: =IF('Races, Positions & Points'!#REF!="","",'Races, Positions & Points'!#REF!) ->  | Y62: =IF('Races, Positions & Points'!#REF!="","",'Races, Positions & Points'!#REF!) ->  | Z62: =IF('Races, Positions & Points'!#REF!="","",'Races, Positions & Points'!#REF!) ->  | AA62: =IF('Races, Positions & Points'!#REF!="","",'Races, Positions & Points'!#REF!) ->  | AB62: =IF('Races, Positions & Points'!#REF!="","",'Races, Positions & Points'!#REF!) ->  | AC62: =IF('Races, Positions & Points'!#REF!="","",'Races, Positions & Points'!#REF!) ->  | AD62: =IF('Races, Positions & Points'!#REF!="","",'Races, Positions & Points'!#REF!) ->  | AE62: =IF('Races, Positions & Points'!#REF!="","",'Races, Positions & Points'!#REF!) ->  | AF62: =IF('Races, Positions & Points'!#REF!="","",'Races, Positions & Points'!#REF!) ->  | AG62: =IF('Races, Positions & Points'!#REF!="","",'Races, Positions & Points'!#REF!) ->  | AH62: =IF('Races, Positions & Points'!#REF!="","",'Races, Positions & Points'!#REF!) ->  | AI62: =IF('Races, Positions & Points'!#REF!="","",'Races, Positions & Points'!#REF!) ->  | AJ62: =IF('Races, Positions & Points'!#REF!="","",'Races, Positions & Points'!#REF!) ->  | AK62: =IF('Races, Positions & Points'!#REF!="","",'Races, Positions & Points'!#REF!) ->  | AL62: =IF('Races, Positions & Points'!#REF!="","",'Races, Positions & Points'!#REF!) ->  | AM62: =IF('Races, Positions & Points'!#REF!="","",'Races, Positions & Points'!#REF!) ->  | AN62: =IF('Races, Positions & Points'!#REF!="","",'Races, Positions & Points'!#REF!) ->  | AO62: =IF('Races, Positions & Points'!#REF!="","",'Races, Positions & Points'!#REF!) ->  | AP62: =IF('Races, Positions & Points'!#REF!="","",'Races, Positions & Points'!#REF!) ->  | AQ62: =IF('Races, Positions & Points'!#REF!="","",'Races, Positions & Points'!#REF!) ->  | AR62: =IF('Races, Positions & Points'!#REF!="","",'Races, Positions & Points'!#REF!) ->  | AS62: =IF('Races, Positions & Points'!#REF!="","",'Races, Positions & Points'!#REF!) ->  | AT62: =IF('Races, Positions & Points'!#REF!="","",'Races, Positions & Points'!#REF!) ->  | AU62: =IF('Races, Positions & Points'!#REF!="","",'Races, Positions & Points'!#REF!) ->  | AV62: =IF('Races, Positions & Points'!#REF!="","",'Races, Positions & Points'!#REF!) ->  | AW62: =IF('Races, Positions & Points'!#REF!="","",'Races, Positions & Points'!#REF!) ->  | AX62: =IF('Races, Positions & Points'!#REF!="","",'Races, Positions & Points'!#REF!) ->  | AY62: =IF('Races, Positions & Points'!#REF!="","",'Races, Positions & Points'!#REF!) ->  | BH62: ='Races, Positions & Points'!#REF! ->  | BI62: ='Races, Positions & Points'!#REF! -> 
A63: ='Races, Positions & Points'!#REF! ->  | B63: =IF('Races, Positions & Points'!#REF!="","",'Races, Positions & Points'!#REF!) ->  | C63: =IF('Races, Positions & Points'!#REF!="","",'Races, Positions & Points'!#REF!) ->  | D63: =IF('Races, Positions & Points'!#REF!="","",'Races, Positions & Points'!#REF!) ->  | E63: =IF('Races, Positions & Points'!#REF!="","",'Races, Positions & Points'!#REF!) ->  | F63: =IF('Races, Positions & Points'!#REF!="","",'Races, Positions & Points'!#REF!) ->  | G63: =IF('Races, Positions & Points'!#REF!="","",'Races, Positions & Points'!#REF!) ->  | H63: =IF('Races, Positions & Points'!#REF!="","",'Races, Positions & Points'!#REF!) ->  | I63: =IF('Races, Positions & Points'!#REF!="","",'Races, Positions & Points'!#REF!) ->  | J63: =IF('Races, Positions & Points'!#REF!="","",'Races, Positions & Points'!#REF!) ->  | K63: =IF('Races, Positions & Points'!#REF!="","",'Races, Positions & Points'!#REF!) ->  | L63: =IF('Races, Positions & Points'!#REF!="","",'Races, Positions & Points'!#REF!) ->  | M63: =IF('Races, Positions & Points'!#REF!="","",'Races, Positions & Points'!#REF!) ->  | N63: =IF('Races, Positions & Points'!#REF!="","",'Races, Positions & Points'!#REF!) ->  | O63: =IF('Races, Positions & Points'!#REF!="","",'Races, Positions & Points'!#REF!) ->  | P63: =IF('Races, Positions & Points'!#REF!="","",'Races, Positions & Points'!#REF!) ->  | Q63: =IF('Races, Positions & Points'!#REF!="","",'Races, Positions & Points'!#REF!) ->  | R63: =IF('Races, Positions & Points'!#REF!="","",'Races, Positions & Points'!#REF!) ->  | S63: =IF('Races, Positions & Points'!#REF!="","",'Races, Positions & Points'!#REF!) ->  | T63: =IF('Races, Positions & Points'!#REF!="","",'Races, Positions & Points'!#REF!) ->  | U63: =IF('Races, Positions & Points'!#REF!="","",'Races, Positions & Points'!#REF!) ->  | V63: =IF('Races, Positions & Points'!#REF!="","",'Races, Positions & Points'!#REF!) ->  | W63: =IF('Races, Positions & Points'!#REF!="","",'Races, Positions & Points'!#REF!) ->  | X63: =IF('Races, Positions & Points'!#REF!="","",'Races, Positions & Points'!#REF!) ->  | Y63: =IF('Races, Positions & Points'!#REF!="","",'Races, Positions & Points'!#REF!) ->  | Z63: =IF('Races, Positions & Points'!#REF!="","",'Races, Positions & Points'!#REF!) ->  | AA63: =IF('Races, Positions & Points'!#REF!="","",'Races, Positions & Points'!#REF!) ->  | AB63: =IF('Races, Positions & Points'!#REF!="","",'Races, Positions & Points'!#REF!) ->  | AC63: =IF('Races, Positions & Points'!#REF!="","",'Races, Positions & Points'!#REF!) ->  | AD63: =IF('Races, Positions & Points'!#REF!="","",'Races, Positions & Points'!#REF!) ->  | AE63: =IF('Races, Positions & Points'!#REF!="","",'Races, Positions & Points'!#REF!) ->  | AF63: =IF('Races, Positions & Points'!#REF!="","",'Races, Positions & Points'!#REF!) ->  | AG63: =IF('Races, Positions & Points'!#REF!="","",'Races, Positions & Points'!#REF!) ->  | AH63: =IF('Races, Positions & Points'!#REF!="","",'Races, Positions & Points'!#REF!) ->  | AI63: =IF('Races, Positions & Points'!#REF!="","",'Races, Positions & Points'!#REF!) ->  | AJ63: =IF('Races, Positions & Points'!#REF!="","",'Races, Positions & Points'!#REF!) ->  | AK63: =IF('Races, Positions & Points'!#REF!="","",'Races, Positions & Points'!#REF!) ->  | AL63: =IF('Races, Positions & Points'!#REF!="","",'Races, Positions & Points'!#REF!) ->  | AM63: =IF('Races, Positions & Points'!#REF!="","",'Races, Positions & Points'!#REF!) ->  | AN63: =IF('Races, Positions & Points'!#REF!="","",'Races, Positions & Points'!#REF!) ->  | AO63: =IF('Races, Positions & Points'!#REF!="","",'Races, Positions & Points'!#REF!) ->  | AP63: =IF('Races, Positions & Points'!#REF!="","",'Races, Positions & Points'!#REF!) ->  | AQ63: =IF('Races, Positions & Points'!#REF!="","",'Races, Positions & Points'!#REF!) ->  | AR63: =IF('Races, Positions & Points'!#REF!="","",'Races, Positions & Points'!#REF!) ->  | AS63: =IF('Races, Positions & Points'!#REF!="","",'Races, Positions & Points'!#REF!) ->  | AT63: =IF('Races, Positions & Points'!#REF!="","",'Races, Positions & Points'!#REF!) ->  | AU63: =IF('Races, Positions & Points'!#REF!="","",'Races, Positions & Points'!#REF!) ->  | AV63: =IF('Races, Positions & Points'!#REF!="","",'Races, Positions & Points'!#REF!) ->  | AW63: =IF('Races, Positions & Points'!#REF!="","",'Races, Positions & Points'!#REF!) ->  | AX63: =IF('Races, Positions & Points'!#REF!="","",'Races, Positions & Points'!#REF!) ->  | AY63: =IF('Races, Positions & Points'!#REF!="","",'Races, Positions & Points'!#REF!) ->  | BH63: ='Races, Positions & Points'!#REF! ->  | BI63: ='Races, Positions & Points'!#REF! -> 
A64: ='Races, Positions & Points'!#REF! ->  | B64: =IF('Races, Positions & Points'!#REF!="","",'Races, Positions & Points'!#REF!) ->  | C64: =IF('Races, Positions & Points'!#REF!="","",'Races, Positions & Points'!#REF!) ->  | D64: =IF('Races, Positions & Points'!#REF!="","",'Races, Positions & Points'!#REF!) ->  | E64: =IF('Races, Positions & Points'!#REF!="","",'Races, Positions & Points'!#REF!) ->  | F64: =IF('Races, Positions & Points'!#REF!="","",'Races, Positions & Points'!#REF!) ->  | G64: =IF('Races, Positions & Points'!#REF!="","",'Races, Positions & Points'!#REF!) ->  | H64: =IF('Races, Positions & Points'!#REF!="","",'Races, Positions & Points'!#REF!) ->  | I64: =IF('Races, Positions & Points'!#REF!="","",'Races, Positions & Points'!#REF!) ->  | J64: =IF('Races, Positions & Points'!#REF!="","",'Races, Positions & Points'!#REF!) ->  | K64: =IF('Races, Positions & Points'!#REF!="","",'Races, Positions & Points'!#REF!) ->  | L64: =IF('Races, Positions & Points'!#REF!="","",'Races, Positions & Points'!#REF!) ->  | M64: =IF('Races, Positions & Points'!#REF!="","",'Races, Positions & Points'!#REF!) ->  | N64: =IF('Races, Positions & Points'!#REF!="","",'Races, Positions & Points'!#REF!) ->  | O64: =IF('Races, Positions & Points'!#REF!="","",'Races, Positions & Points'!#REF!) ->  | P64: =IF('Races, Positions & Points'!#REF!="","",'Races, Positions & Points'!#REF!) ->  | Q64: =IF('Races, Positions & Points'!#REF!="","",'Races, Positions & Points'!#REF!) ->  | R64: =IF('Races, Positions & Points'!#REF!="","",'Races, Positions & Points'!#REF!) ->  | S64: =IF('Races, Positions & Points'!#REF!="","",'Races, Positions & Points'!#REF!) ->  | T64: =IF('Races, Positions & Points'!#REF!="","",'Races, Positions & Points'!#REF!) ->  | U64: =IF('Races, Positions & Points'!#REF!="","",'Races, Positions & Points'!#REF!) ->  | V64: =IF('Races, Positions & Points'!#REF!="","",'Races, Positions & Points'!#REF!) ->  | W64: =IF('Races, Positions & Points'!#REF!="","",'Races, Positions & Points'!#REF!) ->  | X64: =IF('Races, Positions & Points'!#REF!="","",'Races, Positions & Points'!#REF!) ->  | Y64: =IF('Races, Positions & Points'!#REF!="","",'Races, Positions & Points'!#REF!) ->  | Z64: =IF('Races, Positions & Points'!#REF!="","",'Races, Positions & Points'!#REF!) ->  | AA64: =IF('Races, Positions & Points'!#REF!="","",'Races, Positions & Points'!#REF!) ->  | AB64: =IF('Races, Positions & Points'!#REF!="","",'Races, Positions & Points'!#REF!) ->  | AC64: =IF('Races, Positions & Points'!#REF!="","",'Races, Positions & Points'!#REF!) ->  | AD64: =IF('Races, Positions & Points'!#REF!="","",'Races, Positions & Points'!#REF!) ->  | AE64: =IF('Races, Positions & Points'!#REF!="","",'Races, Positions & Points'!#REF!) ->  | AF64: =IF('Races, Positions & Points'!#REF!="","",'Races, Positions & Points'!#REF!) ->  | AG64: =IF('Races, Positions & Points'!#REF!="","",'Races, Positions & Points'!#REF!) ->  | AH64: =IF('Races, Positions & Points'!#REF!="","",'Races, Positions & Points'!#REF!) ->  | AI64: =IF('Races, Positions & Points'!#REF!="","",'Races, Positions & Points'!#REF!) ->  | AJ64: =IF('Races, Positions & Points'!#REF!="","",'Races, Positions & Points'!#REF!) ->  | AK64: =IF('Races, Positions & Points'!#REF!="","",'Races, Positions & Points'!#REF!) ->  | AL64: =IF('Races, Positions & Points'!#REF!="","",'Races, Positions & Points'!#REF!) ->  | AM64: =IF('Races, Positions & Points'!#REF!="","",'Races, Positions & Points'!#REF!) ->  | AN64: =IF('Races, Positions & Points'!#REF!="","",'Races, Positions & Points'!#REF!) ->  | AO64: =IF('Races, Positions & Points'!#REF!="","",'Races, Positions & Points'!#REF!) ->  | AP64: =IF('Races, Positions & Points'!#REF!="","",'Races, Positions & Points'!#REF!) ->  | AQ64: =IF('Races, Positions & Points'!#REF!="","",'Races, Positions & Points'!#REF!) ->  | AR64: =IF('Races, Positions & Points'!#REF!="","",'Races, Positions & Points'!#REF!) ->  | AS64: =IF('Races, Positions & Points'!#REF!="","",'Races, Positions & Points'!#REF!) ->  | AT64: =IF('Races, Positions & Points'!#REF!="","",'Races, Positions & Points'!#REF!) ->  | AU64: =IF('Races, Positions & Points'!#REF!="","",'Races, Positions & Points'!#REF!) ->  | AV64: =IF('Races, Positions & Points'!#REF!="","",'Races, Positions & Points'!#REF!) ->  | AW64: =IF('Races, Positions & Points'!#REF!="","",'Races, Positions & Points'!#REF!) ->  | AX64: =IF('Races, Positions & Points'!#REF!="","",'Races, Positions & Points'!#REF!) ->  | AY64: =IF('Races, Positions & Points'!#REF!="","",'Races, Positions & Points'!#REF!) ->  | BH64: ='Races, Positions & Points'!#REF! ->  | BI64: ='Races, Positions & Points'!#REF! -> 
A65: ='Races, Positions & Points'!#REF! ->  | B65: =IF('Races, Positions & Points'!#REF!="","",'Races, Positions & Points'!#REF!) ->  | C65: =IF('Races, Positions & Points'!#REF!="","",'Races, Positions & Points'!#REF!) ->  | D65: =IF('Races, Positions & Points'!#REF!="","",'Races, Positions & Points'!#REF!) ->  | E65: =IF('Races, Positions & Points'!#REF!="","",'Races, Positions & Points'!#REF!) ->  | F65: =IF('Races, Positions & Points'!#REF!="","",'Races, Positions & Points'!#REF!) ->  | G65: =IF('Races, Positions & Points'!#REF!="","",'Races, Positions & Points'!#REF!) ->  | H65: =IF('Races, Positions & Points'!#REF!="","",'Races, Positions & Points'!#REF!) ->  | I65: =IF('Races, Positions & Points'!#REF!="","",'Races, Positions & Points'!#REF!) ->  | J65: =IF('Races, Positions & Points'!#REF!="","",'Races, Positions & Points'!#REF!) ->  | K65: =IF('Races, Positions & Points'!#REF!="","",'Races, Positions & Points'!#REF!) ->  | L65: =IF('Races, Positions & Points'!#REF!="","",'Races, Positions & Points'!#REF!) ->  | M65: =IF('Races, Positions & Points'!#REF!="","",'Races, Positions & Points'!#REF!) ->  | N65: =IF('Races, Positions & Points'!#REF!="","",'Races, Positions & Points'!#REF!) ->  | O65: =IF('Races, Positions & Points'!#REF!="","",'Races, Positions & Points'!#REF!) ->  | P65: =IF('Races, Positions & Points'!#REF!="","",'Races, Positions & Points'!#REF!) ->  | Q65: =IF('Races, Positions & Points'!#REF!="","",'Races, Positions & Points'!#REF!) ->  | R65: =IF('Races, Positions & Points'!#REF!="","",'Races, Positions & Points'!#REF!) ->  | S65: =IF('Races, Positions & Points'!#REF!="","",'Races, Positions & Points'!#REF!) ->  | T65: =IF('Races, Positions & Points'!#REF!="","",'Races, Positions & Points'!#REF!) ->  | U65: =IF('Races, Positions & Points'!#REF!="","",'Races, Positions & Points'!#REF!) ->  | V65: =IF('Races, Positions & Points'!#REF!="","",'Races, Positions & Points'!#REF!) ->  | W65: =IF('Races, Positions & Points'!#REF!="","",'Races, Positions & Points'!#REF!) ->  | X65: =IF('Races, Positions & Points'!#REF!="","",'Races, Positions & Points'!#REF!) ->  | Y65: =IF('Races, Positions & Points'!#REF!="","",'Races, Positions & Points'!#REF!) ->  | Z65: =IF('Races, Positions & Points'!#REF!="","",'Races, Positions & Points'!#REF!) ->  | AA65: =IF('Races, Positions & Points'!#REF!="","",'Races, Positions & Points'!#REF!) ->  | AB65: =IF('Races, Positions & Points'!#REF!="","",'Races, Positions & Points'!#REF!) ->  | AC65: =IF('Races, Positions & Points'!#REF!="","",'Races, Positions & Points'!#REF!) ->  | AD65: =IF('Races, Positions & Points'!#REF!="","",'Races, Positions & Points'!#REF!) ->  | AE65: =IF('Races, Positions & Points'!#REF!="","",'Races, Positions & Points'!#REF!) ->  | AF65: =IF('Races, Positions & Points'!#REF!="","",'Races, Positions & Points'!#REF!) ->  | AG65: =IF('Races, Positions & Points'!#REF!="","",'Races, Positions & Points'!#REF!) ->  | AH65: =IF('Races, Positions & Points'!#REF!="","",'Races, Positions & Points'!#REF!) ->  | AI65: =IF('Races, Positions & Points'!#REF!="","",'Races, Positions & Points'!#REF!) ->  | AJ65: =IF('Races, Positions & Points'!#REF!="","",'Races, Positions & Points'!#REF!) ->  | AK65: =IF('Races, Positions & Points'!#REF!="","",'Races, Positions & Points'!#REF!) ->  | AL65: =IF('Races, Positions & Points'!#REF!="","",'Races, Positions & Points'!#REF!) ->  | AM65: =IF('Races, Positions & Points'!#REF!="","",'Races, Positions & Points'!#REF!) ->  | AN65: =IF('Races, Positions & Points'!#REF!="","",'Races, Positions & Points'!#REF!) ->  | AO65: =IF('Races, Positions & Points'!#REF!="","",'Races, Positions & Points'!#REF!) ->  | AP65: =IF('Races, Positions & Points'!#REF!="","",'Races, Positions & Points'!#REF!) ->  | AQ65: =IF('Races, Positions & Points'!#REF!="","",'Races, Positions & Points'!#REF!) ->  | AR65: =IF('Races, Positions & Points'!#REF!="","",'Races, Positions & Points'!#REF!) ->  | AS65: =IF('Races, Positions & Points'!#REF!="","",'Races, Positions & Points'!#REF!) ->  | AT65: =IF('Races, Positions & Points'!#REF!="","",'Races, Positions & Points'!#REF!) ->  | AU65: =IF('Races, Positions & Points'!#REF!="","",'Races, Positions & Points'!#REF!) ->  | AV65: =IF('Races, Positions & Points'!#REF!="","",'Races, Positions & Points'!#REF!) ->  | AW65: =IF('Races, Positions & Points'!#REF!="","",'Races, Positions & Points'!#REF!) ->  | AX65: =IF('Races, Positions & Points'!#REF!="","",'Races, Positions & Points'!#REF!) ->  | AY65: =IF('Races, Positions & Points'!#REF!="","",'Races, Positions & Points'!#REF!) ->  | BH65: ='Races, Positions & Points'!#REF! ->  | BI65: ='Races, Positions & Points'!#REF! -> 
A66: ='Races, Positions & Points'!#REF! ->  | B66: =IF('Races, Positions & Points'!#REF!="","",'Races, Positions & Points'!#REF!) ->  | C66: =IF('Races, Positions & Points'!#REF!="","",'Races, Positions & Points'!#REF!) ->  | D66: =IF('Races, Positions & Points'!#REF!="","",'Races, Positions & Points'!#REF!) ->  | E66: =IF('Races, Positions & Points'!#REF!="","",'Races, Positions & Points'!#REF!) ->  | F66: =IF('Races, Positions & Points'!#REF!="","",'Races, Positions & Points'!#REF!) ->  | G66: =IF('Races, Positions & Points'!#REF!="","",'Races, Positions & Points'!#REF!) ->  | H66: =IF('Races, Positions & Points'!#REF!="","",'Races, Positions & Points'!#REF!) ->  | I66: =IF('Races, Positions & Points'!#REF!="","",'Races, Positions & Points'!#REF!) ->  | J66: =IF('Races, Positions & Points'!#REF!="","",'Races, Positions & Points'!#REF!) ->  | K66: =IF('Races, Positions & Points'!#REF!="","",'Races, Positions & Points'!#REF!) ->  | L66: =IF('Races, Positions & Points'!#REF!="","",'Races, Positions & Points'!#REF!) ->  | M66: =IF('Races, Positions & Points'!#REF!="","",'Races, Positions & Points'!#REF!) ->  | N66: =IF('Races, Positions & Points'!#REF!="","",'Races, Positions & Points'!#REF!) ->  | O66: =IF('Races, Positions & Points'!#REF!="","",'Races, Positions & Points'!#REF!) ->  | P66: =IF('Races, Positions & Points'!#REF!="","",'Races, Positions & Points'!#REF!) ->  | Q66: =IF('Races, Positions & Points'!#REF!="","",'Races, Positions & Points'!#REF!) ->  | R66: =IF('Races, Positions & Points'!#REF!="","",'Races, Positions & Points'!#REF!) ->  | S66: =IF('Races, Positions & Points'!#REF!="","",'Races, Positions & Points'!#REF!) ->  | T66: =IF('Races, Positions & Points'!#REF!="","",'Races, Positions & Points'!#REF!) ->  | U66: =IF('Races, Positions & Points'!#REF!="","",'Races, Positions & Points'!#REF!) ->  | V66: =IF('Races, Positions & Points'!#REF!="","",'Races, Positions & Points'!#REF!) ->  | W66: =IF('Races, Positions & Points'!#REF!="","",'Races, Positions & Points'!#REF!) ->  | X66: =IF('Races, Positions & Points'!#REF!="","",'Races, Positions & Points'!#REF!) ->  | Y66: =IF('Races, Positions & Points'!#REF!="","",'Races, Positions & Points'!#REF!) ->  | Z66: =IF('Races, Positions & Points'!#REF!="","",'Races, Positions & Points'!#REF!) ->  | AA66: =IF('Races, Positions & Points'!#REF!="","",'Races, Positions & Points'!#REF!) ->  | AB66: =IF('Races, Positions & Points'!#REF!="","",'Races, Positions & Points'!#REF!) ->  | AC66: =IF('Races, Positions & Points'!#REF!="","",'Races, Positions & Points'!#REF!) ->  | AD66: =IF('Races, Positions & Points'!#REF!="","",'Races, Positions & Points'!#REF!) ->  | AE66: =IF('Races, Positions & Points'!#REF!="","",'Races, Positions & Points'!#REF!) ->  | AF66: =IF('Races, Positions & Points'!#REF!="","",'Races, Positions & Points'!#REF!) ->  | AG66: =IF('Races, Positions & Points'!#REF!="","",'Races, Positions & Points'!#REF!) ->  | AH66: =IF('Races, Positions & Points'!#REF!="","",'Races, Positions & Points'!#REF!) ->  | AI66: =IF('Races, Positions & Points'!#REF!="","",'Races, Positions & Points'!#REF!) ->  | AJ66: =IF('Races, Positions & Points'!#REF!="","",'Races, Positions & Points'!#REF!) ->  | AK66: =IF('Races, Positions & Points'!#REF!="","",'Races, Positions & Points'!#REF!) ->  | AL66: =IF('Races, Positions & Points'!#REF!="","",'Races, Positions & Points'!#REF!) ->  | AM66: =IF('Races, Positions & Points'!#REF!="","",'Races, Positions & Points'!#REF!) ->  | AN66: =IF('Races, Positions & Points'!#REF!="","",'Races, Positions & Points'!#REF!) ->  | AO66: =IF('Races, Positions & Points'!#REF!="","",'Races, Positions & Points'!#REF!) ->  | AP66: =IF('Races, Positions & Points'!#REF!="","",'Races, Positions & Points'!#REF!) ->  | AQ66: =IF('Races, Positions & Points'!#REF!="","",'Races, Positions & Points'!#REF!) ->  | AR66: =IF('Races, Positions & Points'!#REF!="","",'Races, Positions & Points'!#REF!) ->  | AS66: =IF('Races, Positions & Points'!#REF!="","",'Races, Positions & Points'!#REF!) ->  | AT66: =IF('Races, Positions & Points'!#REF!="","",'Races, Positions & Points'!#REF!) ->  | AU66: =IF('Races, Positions & Points'!#REF!="","",'Races, Positions & Points'!#REF!) ->  | AV66: =IF('Races, Positions & Points'!#REF!="","",'Races, Positions & Points'!#REF!) ->  | AW66: =IF('Races, Positions & Points'!#REF!="","",'Races, Positions & Points'!#REF!) ->  | AX66: =IF('Races, Positions & Points'!#REF!="","",'Races, Positions & Points'!#REF!) ->  | AY66: =IF('Races, Positions & Points'!#REF!="","",'Races, Positions & Points'!#REF!) ->  | BH66: ='Races, Positions & Points'!#REF! ->  | BI66: ='Races, Positions & Points'!#REF! -> 
A67: ='Races, Positions & Points'!#REF! ->  | B67: =IF('Races, Positions & Points'!#REF!="","",'Races, Positions & Points'!#REF!) ->  | C67: =IF('Races, Positions & Points'!#REF!="","",'Races, Positions & Points'!#REF!) ->  | D67: =IF('Races, Positions & Points'!#REF!="","",'Races, Positions & Points'!#REF!) ->  | E67: =IF('Races, Positions & Points'!#REF!="","",'Races, Positions & Points'!#REF!) ->  | F67: =IF('Races, Positions & Points'!#REF!="","",'Races, Positions & Points'!#REF!) ->  | G67: =IF('Races, Positions & Points'!#REF!="","",'Races, Positions & Points'!#REF!) ->  | H67: =IF('Races, Positions & Points'!#REF!="","",'Races, Positions & Points'!#REF!) ->  | I67: =IF('Races, Positions & Points'!#REF!="","",'Races, Positions & Points'!#REF!) ->  | J67: =IF('Races, Positions & Points'!#REF!="","",'Races, Positions & Points'!#REF!) ->  | K67: =IF('Races, Positions & Points'!#REF!="","",'Races, Positions & Points'!#REF!) ->  | L67: =IF('Races, Positions & Points'!#REF!="","",'Races, Positions & Points'!#REF!) ->  | M67: =IF('Races, Positions & Points'!#REF!="","",'Races, Positions & Points'!#REF!) ->  | N67: =IF('Races, Positions & Points'!#REF!="","",'Races, Positions & Points'!#REF!) ->  | O67: =IF('Races, Positions & Points'!#REF!="","",'Races, Positions & Points'!#REF!) ->  | P67: =IF('Races, Positions & Points'!#REF!="","",'Races, Positions & Points'!#REF!) ->  | Q67: =IF('Races, Positions & Points'!#REF!="","",'Races, Positions & Points'!#REF!) ->  | R67: =IF('Races, Positions & Points'!#REF!="","",'Races, Positions & Points'!#REF!) ->  | S67: =IF('Races, Positions & Points'!#REF!="","",'Races, Positions & Points'!#REF!) ->  | T67: =IF('Races, Positions & Points'!#REF!="","",'Races, Positions & Points'!#REF!) ->  | U67: =IF('Races, Positions & Points'!#REF!="","",'Races, Positions & Points'!#REF!) ->  | V67: =IF('Races, Positions & Points'!#REF!="","",'Races, Positions & Points'!#REF!) ->  | W67: =IF('Races, Positions & Points'!#REF!="","",'Races, Positions & Points'!#REF!) ->  | X67: =IF('Races, Positions & Points'!#REF!="","",'Races, Positions & Points'!#REF!) ->  | Y67: =IF('Races, Positions & Points'!#REF!="","",'Races, Positions & Points'!#REF!) ->  | Z67: =IF('Races, Positions & Points'!#REF!="","",'Races, Positions & Points'!#REF!) ->  | AA67: =IF('Races, Positions & Points'!#REF!="","",'Races, Positions & Points'!#REF!) ->  | AB67: =IF('Races, Positions & Points'!#REF!="","",'Races, Positions & Points'!#REF!) ->  | AC67: =IF('Races, Positions & Points'!#REF!="","",'Races, Positions & Points'!#REF!) ->  | AD67: =IF('Races, Positions & Points'!#REF!="","",'Races, Positions & Points'!#REF!) ->  | AE67: =IF('Races, Positions & Points'!#REF!="","",'Races, Positions & Points'!#REF!) ->  | AF67: =IF('Races, Positions & Points'!#REF!="","",'Races, Positions & Points'!#REF!) ->  | AG67: =IF('Races, Positions & Points'!#REF!="","",'Races, Positions & Points'!#REF!) ->  | AH67: =IF('Races, Positions & Points'!#REF!="","",'Races, Positions & Points'!#REF!) ->  | AI67: =IF('Races, Positions & Points'!#REF!="","",'Races, Positions & Points'!#REF!) ->  | AJ67: =IF('Races, Positions & Points'!#REF!="","",'Races, Positions & Points'!#REF!) ->  | AK67: =IF('Races, Positions & Points'!#REF!="","",'Races, Positions & Points'!#REF!) ->  | AL67: =IF('Races, Positions & Points'!#REF!="","",'Races, Positions & Points'!#REF!) ->  | AM67: =IF('Races, Positions & Points'!#REF!="","",'Races, Positions & Points'!#REF!) ->  | AN67: =IF('Races, Positions & Points'!#REF!="","",'Races, Positions & Points'!#REF!) ->  | AO67: =IF('Races, Positions & Points'!#REF!="","",'Races, Positions & Points'!#REF!) ->  | AP67: =IF('Races, Positions & Points'!#REF!="","",'Races, Positions & Points'!#REF!) ->  | AQ67: =IF('Races, Positions & Points'!#REF!="","",'Races, Positions & Points'!#REF!) ->  | AR67: =IF('Races, Positions & Points'!#REF!="","",'Races, Positions & Points'!#REF!) ->  | AS67: =IF('Races, Positions & Points'!#REF!="","",'Races, Positions & Points'!#REF!) ->  | AT67: =IF('Races, Positions & Points'!#REF!="","",'Races, Positions & Points'!#REF!) ->  | AU67: =IF('Races, Positions & Points'!#REF!="","",'Races, Positions & Points'!#REF!) ->  | AV67: =IF('Races, Positions & Points'!#REF!="","",'Races, Positions & Points'!#REF!) ->  | AW67: =IF('Races, Positions & Points'!#REF!="","",'Races, Positions & Points'!#REF!) ->  | AX67: =IF('Races, Positions & Points'!#REF!="","",'Races, Positions & Points'!#REF!) ->  | AY67: =IF('Races, Positions & Points'!#REF!="","",'Races, Positions & Points'!#REF!) ->  | BH67: ='Races, Positions & Points'!#REF! ->  | BI67: ='Races, Positions & Points'!#REF! -> 
